Workbook

Sheet Guide
B2: Cells Colour Code | Q2: Asset Base range
Q3: 2006
B4: Data input cells have a green background with blue text for positive numbers and red for negative numbers | E4: 10.5 | F4: -20.6 | Q4: 2007
B5: Data input cells which have a strong black border (but are otherwise the same as the above) have had inputs which were pasted in by the macro (see below for more details) | E5: 10.5 | F5: -20.6 | Q5: 2008 | S5: Yes/No toggle
B7: Cells containing formula or referring to other cells have a white background and black text when positive and red text when negative | E7: =E4 -> 10.5 | F7: =F4+E4 -> -10.1 | Q7: 2009 | S7: 0
Q8: 2010 | S8: 1
B9: Cells that are used to determine scenarios have an orange background and black text | E9: 2016 | Q9: 2011
Q10: 2012
B11: Cells that are used to profile revenue have a yellow background and blue text | E11: 2.9 | Q11: 2013
B13: Macros
B15: This model uses macros to perform goal seeks when setting the % change in tariffs from one year to the next. See worksheet 'outputs 1' for details.
B17: Overview of worksheets
B18: Audit trail | C18: Provides details on changes to this model.
B19: PC3_inputs | C19: Provides all inputs for the PC3 period.
B20: PC2_inputs | C20: Provides all inputs for the PC2 period.
B21: PC1_inputs | C21: Provides all inputs for the PC2 period.
B22: Indexation | C22: Provides indexation values used within the model.
B23: PC3 distribution RAB | C23: Provides the RAB, in terms of historic cost, indexed gross asset value (in 2010/2011 prices) and indexed net book value.
B24: Calc of PC1 & PC2 adj. | C24: Provides the adjustments related to PC1 & PC2 which must be made to PC3 revenue.
B25: Calc of total rev | C25: Calculates the total revenue which is to be recovered during PC3.
B26: Outputs1 | C26: Profiles revenue recovery over the 5 years of PC3, by allowing the % change in annual tariffs to be set
B27: Outputs2 | C27: Provides the annual revenue for each year.
B29: Points of note
B30: All revenue is in 2010/2011 terms unless otherwise stated.
B31: All revenue is in €m unless otherwise stated.

Sheet Audit trail
B2: Version # | C2: Date | D2: Comment
B3: v0.1 | C3: 2012-03-02 | D3: Draft circulated to BGN
B4: v0.6 | C4: 2012-05-21 | D4: Draft published
B5: v1.7 | C5: 2012-09-12 | D5: Demand for each year updated, WACC Adjusted, Additional opex added, C&I Upgrade asset items reassigned in RAB - as per email fromBrendan O'Riordan, Yr to Yr adjustments updated taking account of 2012/13 tariffs

Sheet PC3_inputs
B1: Year of control | C1: 0 | D1: 1 | E1: 2 | F1: 3 | G1: 4 | H1: 5 | J1: PC3 WACC
B2: Gas year | C2: 2011/12 | D2: 2012/13 | E2: 2013/14 | F2: 2014/15 | G2: 2015/16 | H2: 2016/17 | J2: Year 1 | K2: Year 2 | L2: Year 3 | M2: Year 4 | N2: Year 5
J3: 0.0639 | K3: 0.052 | L3: 0.052 | M3: 0.052 | N3: 0.052
A4: GENERAL INPUTS
A6: Timing assumptions
A7: Assumed to happen at year end | D7: 0 | E7: 0 | F7: 0 | G7: 0 | H7: 0
A8: Assumed to be constant through year | D8: 0.5 | E8: 0.5 | F8: 0.5 | G8: 0.5 | H8: 0.5
A10: Discounting indices
A11: RAB discounting index | H11: =(1+$J$3)*(1+$K$3)*(1+$L$3)*(1+$M$3)*(1+$N$3) -> 1.303058064
A12: Capex & Opex expenditure and revenues discounting index | D12: =(1+$J$3)^(0.5) -> 1.031455283 | E12: =(1+$J$3)*((1+$K$3)^(0.5)) -> 1.091210858 | F12: =(1+$J$3)*(1+$K$3)*((1+$L$3)^(0.5)) -> 1.147953823 | G12: =(1+$J$3)*(1+$K$3)*(1+$L$3)*((1+$M$3)^(0.5)) -> 1.207647422 | H12: =(1+$J$3)*(1+$K$3)*(1+$L$3)*(1+$M$3)*((1+$N$3)^(0.5)) -> 1.270445087
A14: Distribution revenue split
A15: Commodity | B15: 0.2
A16: Capacity | B16: 0.8
A18: Conversion factors
A19: Convert from €m to € | B19: 1000000
O20: 0.0425363911 | P20: 0.002680311891 | Q20: 0.003156361282 | R20: 0.0002901353965 | S20: 0.000628383604
A21: DEMAND | O21: 1.056715188 | P21: 1.003573749 | Q21: 1.004208482 | R21: 1.000386847 | S21: 1.000837845
A22: Annual demand - Commodity | B22: MWh | C22: 14559000 | D22: 14467744.14 | E22: 14484579.04 | F22: 14560341.33 | G22: 14584819.19 | H22: 14626283.37 | J22: Source: page p9, PR066, BGN submission | N22: 14564000 | O22: 15390000 | P22: 15445000 | Q22: 15510000 | R22: 15516000 | S22: 15529000
A23: Peak demand - Capacity | B23: MWh/day | C23: 116300 | D23: 114559.3817 | E23: 115228.359 | F23: 116165.9495 | G23: 117180.7406 | H23: 118266.0091 | J23: Source: page p9, PR066, BGN submission | N23: 116300 | O23: 116970 | P23: 117760 | Q23: 118650 | R23: 119740 | S23: 121070
O24: 1.005760963 | P24: 1.006753869 | Q24: 1.007557745 | R24: 1.009186684 | S24: 1.011107399
A25: OPERATING EXPENDITURE | O25: 0.00432072227 | P25: 0.005065401385 | Q25: 0.005668308424 | R25: 0.006890012642 | S25: 0.008330549524
J26: Source: page 6, CEPA summary of working papers on distribution revenue
A27: Direct opex categories
A28: Network maintenance | B28: €m | D28: 18.55627884 | E28: 18.36875585 | F28: 18.1831277 | G28: 18.00033582 | H28: 17.81938147
A29: New business | B29: €m | D29: 1.31049864 | E29: 1.297393654 | F29: 1.284419717 | G29: 1.27157552 | H29: 1.258859765
A30: Support activities | B30: €m | D30: 10.83966048 | E30: 10.71754248 | F30: 10.61036705 | G30: 10.50426338 | H30: 11.07922075
A31: Miscellaneous deduction charges | B31: €m | D31: 0.503 | E31: 0.503 | F31: 0.503 | G31: 0.503 | H31: 0.503
A32: Innovation fund | B32: €m | D32: 0.16 | E32: 0.16 | F32: 0.16 | G32: 0.16 | H32: =SUM(0.16+0.039139) -> 0.199139
A33: NEGATIVE ADJUSTMENT | B33: €m | D33: -0.2 | E33: -0.2 | F33: -0.2 | G33: -0.2 | H33: -0.2
A34: Additional Allowance for Glide Path to Efficiency | B34: €m | D34: 5 | E34: 3 | F34: 0 | G34: 0 | H34: 0.16
A35: DRI Maintenance | B35: €m | D35: 0.25 | E35: 0.25 | F35: 0.25 | G35: 0.25 | H35: 0.25
A36: Market Development | B36: €m | D36: 0.2 | E36: 0.2 | F36: 0.2 | G36: 0.2 | H36: 0.2
A37: Smart metering Phase 2 Costs | B37: €m | D37: 4.070450098 | E37: 4.070450098 | F37: 0 | G37: 0 | H37: 0
A38: Spare direct opex line ( nenagh) | B38: €m | D38: 0 | E38: 0 | F38: 0.076376 | G38: 0.152752 | H38: 0.152752
A39: Technical Training | B39: €m | D39: 0 | E39: 0 | F39: 0.098626 | G39: 0.197252 | H39: 0.2959883
A40: Apprenticeship Scheme | B40: €m | D40: 0 | E40: 0 | F40: 0 | G40: 0.146077 | H40: 0.2050117
A41: Customer Capture trial | B41: €m | D41: 0 | E41: 0 | F41: 0 | G41: 0.16535 | H41: 0
A42: PPM Front Office | B42: €m | D42: 0 | E42: 0 | F42: 0 | G42: 0 | H42: 0.39740705
A43: Towns Refresh Campaign | B43: €m | D43: 0 | E43: 0 | F43: 0 | G43: 0 | H43: 0.181018
A44: Spare direct opex line | B44: €m | D44: 0 | E44: 0 | F44: 0 | G44: 0 | H44: 0
A45: Spare direct opex line | B45: €m | D45: 0 | E45: 0 | F45: 0 | G45: 0 | H45: 0
A46: Spare direct opex line | B46: €m | D46: 0 | E46: 0 | F46: 0 | G46: 0 | H46: 0
A47: Spare direct opex line | B47: €m | D47: 0 | E47: 0 | F47: 0 | G47: 0 | H47: 0
A48: Spare direct opex line | B48: €m | D48: 0 | E48: 0 | F48: 0 | G48: 0 | H48: 0
A51: Shared opex categories
A52: Safety advertising | B52: €m | D52: 1.891585127 | E52: 0.6 | F52: 0.6 | G52: 0.6 | H52: 0.6
A53: Safety initiatives | B53: €m | D53: 0.09 | E53: 0.09 | F53: 0.09 | G53: 0.09 | H53: 0.09
A54: Technical training & Assessment costs | B54: €m | D54: 0 | E54: 0 | F54: 0.4274381708 | G54: 0 | H54: 0
A55: Spare direct shared opex | B55: €m | D55: 0 | E55: 0 | F55: 0 | G55: 0 | H55: 0
A56: Spare direct shared opex | B56: €m | D56: 0 | E56: 0 | F56: 0 | G56: 0 | H56: 0
A57: Spare direct shared opex | B57: €m | D57: 0 | E57: 0 | F57: 0 | G57: 0 | H57: 0
A58: Spare direct shared opex | B58: €m | D58: 0 | E58: 0 | F58: 0 | G58: 0 | H58: 0
A59: Spare direct shared opex | B59: €m | D59: 0 | E59: 0 | F59: 0 | G59: 0 | H59: 0
A62: Transportation
A63: Transportation | B63: €m | D63: 23.13135 | E63: 23.061753 | F63: 23.31337407 | G63: 23.18686649 | H63: 23.05960673
A64: Spare indirect opex line | B64: €m | D64: 0 | E64: 0 | F64: 0 | G64: 0 | H64: 0
A65: Spare indirect opex line | B65: €m | D65: 0 | E65: 0 | F65: 0 | G65: 0 | H65: 0
A66: Spare indirect opex line | B66: €m | D66: 0 | E66: 0 | F66: 0 | G66: 0 | H66: 0
A67: Spare indirect opex line | B67: €m | D67: 0 | E67: 0 | F67: 0 | G67: 0 | H67: 0
A68: Spare indirect opex line | B68: €m | D68: 0 | E68: 0 | F68: 0 | G68: 0 | H68: 0
A69: Spare indirect opex line | B69: €m | D69: 0 | E69: 0 | F69: 0 | G69: 0 | H69: 0
A70: Spare indirect opex line | B70: €m | D70: 0 | E70: 0 | F70: 0 | G70: 0 | H70: 0
A72: Gas shrinkage
A73: Gas shrinkage | B73: €m | D73: 4.318 | E73: 4.106 | F73: 3.845 | G73: 3.586 | H73: 3.327
A74: Shrinkage gas capacity charge | B74: €m | D74: 0.717352 | E74: 0.721519 | F74: 0.726478 | G74: 0.731842 | H74: 0.737954
A75: Net cost Leaks | B75: €m | D75: 0.5 | E75: 0.5 | F75: 0.5 | G75: 0.5 | H75: 0.5
A76: Revenue Protection | B76: €m | D76: 0.551 | E76: 0.551 | F76: 0.551 | G76: 0.551 | H76: 0.551
A77: Gas shrinkage spare line | B77: €m | D77: 0 | E77: 0 | F77: 0 | G77: 0 | H77: 0
A78: Gas shrinkage spare line | B78: €m | D78: 0 | E78: 0 | F78: 0 | G78: 0 | H78: 0
A80: Customer contributions (Opex)
A81: Customer contributions spare line | B81: €m | D81: 0 | E81: 0 | F81: 0 | G81: 0 | H81: 0
A82: Customer contributions spare line | B82: €m | D82: 0 | E82: 0 | F82: 0 | G82: 0 | H82: 0
A83: Customer contributions spare line | B83: €m | D83: 0 | E83: 0 | F83: 0 | G83: 0 | H83: 0
A84: Customer contributions spare line | B84: €m | D84: 0 | E84: 0 | F84: 0 | G84: 0 | H84: 0
A85: Customer contributions spare line | B85: €m | D85: 0 | E85: 0 | F85: 0 | G85: 0 | H85: 0
A86: Customer contributions spare line | B86: €m | D86: 0 | E86: 0 | F86: 0 | G86: 0 | H86: 0
A88: Pass through categories
A89: CER levy | B89: €m | D89: 1.319796 | E89: 1.32 | F89: 1.32 | G89: 1.32 | H89: 1.32
A90: Rates | B90: €m | D90: 11.284804 | E90: 11.28904483 | F90: 11.88280002 | G90: 13.40780018 | H90: 14.51189981
A91: Gaslink ISO | B91: €m | D91: 0.6022 | E91: 0.5779271828 | F91: 0.573247911 | G91: 0.5686154319 | H91: 0.5640292775
A92: innovation | B92: €m | D92: 0 | E92: 0 | F92: 0 | G92: 0 | H92: 0
A93: Pass through spare line | B93: €m | D93: 0 | E93: 0 | F93: 0 | G93: 0 | H93: 0
A94: Pass through spare line | B94: €m | D94: 0 | E94: 0 | F94: 0 | G94: 0 | H94: 0
A95: Pass through spare line | B95: €m | D95: 0 | E95: 0 | F95: 0 | G95: 0 | H95: 0
A96: Pass through spare line | B96: €m | D96: 0 | E96: 0 | F96: 0 | G96: 0 | H96: 0
A97: Pass through spare line | B97: €m
A99: Total operating expenditure | B99: €m | D99: =SUM(D28:D97) -> 85.09597519 | E99: =SUM(E28:E97) -> 81.1843861 | F99: =SUM(F28:F97) -> 74.99525463 | G99: =SUM(G28:G97) -> 75.89272982 | H99: 77.800519
A101: CAPITAL EXPENDITURE
A103: Growth related capex
I104: Classification | K104: Classifications (D=direct, S=shared)
A105: Mains | B105: €m | D105: 6.836 | E105: 7.492 | F105: 8.159 | G105: 9.028 | H105: 9.72 | I105: Pipelines/Above ground installations - S | K105: Pipelines/Above ground installations - D
A106: Services | B106: €m | D106: 9.563 | E106: 10.101 | F106: 10.373 | G106: 10.74 | H106: 11.114 | I106: Pipelines/Above ground installations - S | K106: Meters - D
A107: Meters | B107: €m | D107: 3.268 | E107: 3.478 | F107: 3.694 | G107: 3.915 | H107: 4.141 | I107: Meters - S | K107: Land - D
A108: Customer Contributions | B108: €m | D108: -2.262 | E108: -2.402 | F108: -2.545 | G108: -2.712 | H108: -2.859 | I108: Pipelines/Above ground installations - S | K108: Buildings - D
A109: New Towns/ Infills (Listowel) | B109: €m | D109: 5.377 | E109: 0 | F109: 0 | G109: 0 | H109: 6.849315 | I109: Pipelines/Above ground installations - S | K109: Equipment - D
A110: Innovation | B110: €m | D110: 0 | E110: 0 | F110: 0 | G110: 0 | H110: 0 | I110: Pipelines/Above ground installations - S | K110: Pipelines/Above ground installations - S
K111: Meters - S
A112: Replacement related capex | K112: Land - S
K113: Buildings - S
A114: Meters | B114: €m | D114: 20.2755474 | E114: 19.0130474 | F114: 20.34081073 | G114: 16.76232173 | H114: 17.33232173 | I114: Meters - S | K114: Equipment - S
A115: Mains Reinforcement | B115: €m | D115: 5.588 | E115: 3.035 | F115: 3.623 | G115: 5.294 | H115: 5.294 | I115: Pipelines/Above ground installations - S
A116: Mains Replacement | B116: €m | D116: 0.813 | E116: 0.813 | F116: 0 | G116: 0 | H116: 0 | I116: Pipelines/Above ground installations - S
A117: Operational Upgrades | B117: €m | D117: 0.870858 | E117: 0.870858 | F117: 0.870858 | G117: 0 | H117: 0 | I117: Pipelines/Above ground installations - S
A118: Service replacement | B118: €m | D118: 4.901 | E118: 4.905 | F118: 3.678 | G118: 1.812 | H118: 1.817 | I118: Pipelines/Above ground installations - S
A119: Operational Upgrades | B119: €m | D119: 0.25092 | E119: 0.37638 | F119: 0.6273 | G119: 0.6273 | H119: 0.6273 | I119: Equipment - D
A121: Non-network capex
A123: IT | B123: €m | D123: 4.1 | E123: 3.35 | F123: 3.1 | G123: 2.25 | H123: 2.2 | I123: Equipment - S
A124: Facilities | B124: €m | D124: 1.182 | E124: 0.8235 | F124: 0.66825 | G124: 0.47475 | H124: 0.44025 | I124: Equipment - S
A125: Smart Meters - Work in Progress | B125: €m | D125: 0.69 | E125: 0 | F125: 0 | G125: 0 | H125: 0 | I125: Meters - S
A126: Equipment - Work in Progress | B126: €m | D126: 1.13 | E126: 0 | F126: 0 | G126: 0 | H126: 0 | I126: Equipment - S
A127: PPM Front Office | B127: €m | D127: 0 | E127: 0 | F127: 0 | G127: 0 | H127: 0.08259 | I127: Equipment - S
A128: Spare non-network capex line | B128: €m | D128: 0 | E128: 0 | F128: 0 | G128: 0 | H128: 0
A130: Allocated shared capex Wexford & Nenagh
A132: Spare allocated shared capex line | B132: €m | D132: 0 | E132: 11.104963 | F132: 11.104963 | G132: 0 | H132: 0 | I132: Pipelines/Above ground installations - S
A133: Spare allocated shared capex line | B133: €m | D133: 0 | E133: 0 | F133: 0 | G133: 0 | H133: 0
A134: Spare allocated shared capex line | B134: €m | D134: 0 | E134: 0 | F134: 0 | G134: 0 | H134: 0
A135: Spare allocated shared capex line | B135: €m | D135: 0 | E135: 0 | F135: 0 | G135: 0 | H135: 0
A136: Spare allocated shared capex line | B136: €m | D136: 0 | E136: 0 | F136: 0 | G136: 0 | H136: 0
A138: Customer contributions related capex
A140: Spare customer contributions line | B140: €m | D140: 0 | E140: 0 | F140: 0 | G140: 0 | H140: 0
A141: Spare customer contributions line | B141: €m | D141: 0 | E141: 0 | F141: 0 | G141: 0 | H141: 0
A142: Spare customer contributions line | B142: €m | D142: 0 | E142: 0 | F142: 0 | G142: 0 | H142: 0
A143: Spare customer contributions line | B143: €m | D143: 0 | E143: 0 | F143: 0 | G143: 0 | H143: 0
A145: Total capital expenditure | B145: €m | D145: =SUM(D105:D143) -> 62.5833254 | E145: =SUM(E105:E143) -> 62.9607484 | F145: =SUM(F105:F143) -> 63.69418173 | G145: =SUM(G105:G143) -> 48.19137173 | H145: =SUM(H105:H143) -> 56.75877673
A147: REGULATED ASSET BASE
A148: Opening RAB | B148: €m | D148: =PC2_inputs!H84 -> 1288.533302 | E148: =D149 -> 1305.820617 | F148: =E149 -> 1322.096333 | G148: =F149 -> 1338.943925 | H148: =G149 -> 1340.325495
A149: Closing RAB | B149: €m | D149: ='PC3 distribution RAB'!K3 -> 1305.820617 | E149: ='PC3 distribution RAB'!L3 -> 1322.096333 | F149: ='PC3 distribution RAB'!M3 -> 1338.943925 | G149: ='PC3 distribution RAB'!N3 -> 1340.325495 | H149: ='PC3 distribution RAB'!O3 -> 1349.022205
A150: Depreciation | B150: €m | D150: =D148+D145-D149 -> 45.29600984 | E150: =E148+E145-E149 -> 46.68503324 | F150: =F148+F145-F149 -> 46.84658962 | G150: =G148+G145-G149 -> 46.80980097 | H150: =H148+H145-H149 -> 48.06206684 | I150: Depreciation is calculated for info only
I151: The depreciation value is not used elsewhere

Sheet PC2_inputs
B1: Year of PC2 control | D1: 1 | E1: 2 | F1: 3 | G1: 4 | H1: 5 | J1: Important point: The prices on this page are in 10/11 terms unless otherwise stated.
B2: Gas year | C2: Oct to Dec 07 | D2: 2008 | E2: 2009 | F2: 2010 | G2: 2011-09-30 | H2: 2011/12 | J2: PR2 WACC | K2: 0.052
B4: GENERAL INPUTS
B6: Timing assumptions
B7: Assumed to be constant through year | D7: 0.5 | E7: 0.5 | F7: 0.5 | G7: 0.5 | H7: 0.5
B8: Assumed to happen at year end | D8: 0 | E8: 0 | F8: 0 | G8: 0 | H8: 0
B10: Discounting indices
B11: RAB discounting index | H11: =(1+K2)^(H1-H8) -> 1.288483018
B12: Capex and Opex expenditure discounting index | D12: =(1+$K$2)^(D1-D7) -> 1.025670512 | E12: =(1+$K$2)^(E1-E7) -> 1.079005379 | F12: =(1+$K$2)^(F1-F7) -> 1.135113659 | G12: =(1+$K$2)^(G1-G7) -> 1.194139569 | H12: =(1+$K$2)^(H1-H7) -> 1.256234827
B14: Distribution revenue split
B15: Commodity | D15: 0.2
B16: Capacity | D16: 0.8
B18: Conversion factors
B19: Convert from €m to € | D19: 1000000
B21: REVENUE & DEMAND FIGURES RELATED TO LAST YEAR OF PR02 | E21: 2011/2012
B22: Allowed revenue for 2011/2012, in 10/11 terms | D22: €m | E22: =187.75/1.011 -> 185.7072206
B23: Expected Commodity demand | D23: MWh | E23: 14564000
B24: Expected Capacity demand | D24: MWh/day | E24: 116300
B25: Average Commodity price, in 10/11 terms | D25: € / MWh | E25: =(E22*D15)/E23*D19 -> 2.550222749
B26: Average Capacity price, in 10/11 terms | D26: € / MWh/d | E26: =(E22*D16)/E24*D19 -> 1277.435739
B28: CAPITAL EXPENDITURE
C29: 2007 | D29: 2008 | F29: 2009 | H29: 2010 | J29: 2011 | K29: 2011/12
B30: Growth related capex | C30: Oct to Dec | D30: Jan to Sept | E30: Oct to Dec | F30: Jan to Sept | G30: Oct to Dec | H30: Jan to Sept | I30: Oct to Dec | J30: Jan to Sept | K30: Oct to Sept
C31: Nominal terms | I31: 10/11 terms | L31: Classification | N31: Classifications (D=direct, S=shared)
B32: Spare growth related capex line | C32: -0.008322 | D32: 0 | E32: 0 | F32: 0 | G32: 0 | H32: 0.007256 | I32: 0 | J32: 0.00666 | K32: 0 | L32: Buildings - D | N32: Pipelines/Above ground installations - D
B33: Spare growth related capex line | C33: 5.067892 | D33: 1.74099 | E33: 8.680632 | F33: 1.504979 | G33: 1.005069 | H33: 0.748846 | I33: 20.104317 | J33: 0.773494 | K33: 5.775 | L33: Equipment - D | N33: Meters - D
B34: Spare growth related capex line | C34: 0 | D34: 0 | E34: 0 | F34: 0 | G34: 0 | H34: 0 | I34: 0 | J34: 0.414 | K34: 0 | L34: Land - S | N34: Land - D
B35: Spare growth related capex line | C35: 3.407846 | D35: 10.435357 | E35: 2.498724 | F35: 8.047534 | G35: 3.089858 | H35: 5.782441 | I35: 2.945079 | J35: 14.586344 | K35: 27.65 | L35: Meters - S | N35: Buildings - D
B36: Spare growth related capex line | C36: 18.198788 | D36: 56.423209 | E36: 34.537127 | F36: 51.83731 | G36: 11.746423 | H36: 16.27461 | I36: 6.830295 | J36: 25.280548 | K36: 30.264 | L36: Pipelines/Above ground installations - S | N36: Equipment - D
B37: NEGATIVE EFFICIENCY | D37: -1.4 | F37: -0.8 | H37: -1.1 | J37: -0.9 | K37: -0.2 | L37: Pipelines/Above ground installations - D | N37: Pipelines/Above ground installations - S
N38: Meters - S
B39: Replacement related capex | N39: Land - S
N40: Buildings - S
B41: NEGATIVE EFFICIENCY | H41: -0.2 | J41: -0.2 | K41: -0.2 | L41: Equipment - D | N41: Equipment - S
B42: Spare replacement related capex line | N42: ITO setup
B43: Spare replacement related capex line
B44: Spare replacement related capex line
B45: Spare replacement related capex line
B46: Spare replacement related capex line
B48: Non-network capex
B50: Spare non-network capex line
B51: Spare non-network capex line
B52: Spare non-network capex line
B53: Spare non-network capex line
B54: Spare non-network capex line
B55: Spare non-network capex line
B57: Allocated shared capex
B59: Spare allocated shared capex line | J59: =((24-1.5)*6/7)*20% -> 3.857142857 | L59: ITO setup
B60: Spare allocated shared capex line
B61: Spare allocated shared capex line
B62: Spare allocated shared capex line
B63: Spare allocated shared capex line
B65: Customer contributions related capex
B67: Spare customer contributions line
B68: Spare customer contributions line
B69: Spare customer contributions line
B70: Spare customer contributions line
B72: Total capital expenditure | C72: =SUM(C32:C70) -> 26.666204 | D72: 67.199556 | E72: 45.716483 | F72: 60.589823 | G72: 15.84135 | H72: 21.513153 | I72: 29.879691 | J72: 43.81818886 | K72: 63.289
B74: REGULATED ASSET BASE & CAPITAL EXPENDITURE
D75: 07 08 | E75: 08 09 | F75: 09 10 | G75: 10 11 | H75: 11 12
B76: Figures as per PC2 decision (inflated to 10/11 monies to be consistent with this page) | J76: Figures as per PC2 decision (in 05/06 monies)
B77: Opening RAB | D77: =K77*Indexation!$B$8 -> 1186.468751 | E77: =L77*Indexation!$B$8 -> 1292.421987 | F77: =M77*Indexation!$B$8 -> 1376.856967 | G77: =N77*Indexation!$B$8 -> 1413.379477 | H77: =O77*Indexation!$B$8 -> 1442.077486 | J77: Opening RAB | K77: 1133.659403 | L77: 1234.896694 | M77: 1315.5735 | N77: 1350.470404 | O77: 1377.891074
B78: Closing RAB | D78: =K78*Indexation!$B$8 -> 1292.421987 | E78: =L78*Indexation!$B$8 -> 1376.856967 | F78: =M78*Indexation!$B$8 -> 1413.379477 | G78: =N78*Indexation!$B$8 -> 1442.077486 | H78: =O78*Indexation!$B$8 -> 1464.775398 | J78: Closing RAB | K78: 1234.896694 | L78: 1315.5735 | M78: 1350.470404 | N78: 1377.891074 | O78: 1399.578709
B80: Capex | D80: =K80*Indexation!$B$8 -> 149.7649516 | E80: =L80*Indexation!$B$8 -> 126.7838819 | F80: =M80*Indexation!$B$8 -> 81.52073363 | G80: =N80*Indexation!$B$8 -> 76.59427574 | H80: =O80*Indexation!$B$8 -> 73.06533192 | J80: Capex | K80: 143.0989611 | L80: 121.1407715 | M80: 77.8922716 | N80: 73.1850888 | O80: 69.81321715
B82: Approved outturn figures, 10/11 terms
B83: Opening RAB | D83: =PC1_inputs!C70 -> 1122.628402 | E83: =D84 -> 1177.686642 | F83: =E84 -> 1241.032512 | G83: =F84 -> 1240.339886 | H83: =G84 -> 1269.296045
B84: Closing RAB | D84: ='PC3 distribution RAB'!F3 -> 1177.686642 | E84: ='PC3 distribution RAB'!G3 -> 1241.032512 | F84: ='PC3 distribution RAB'!H3 -> 1240.339886 | G84: ='PC3 distribution RAB'!I3 -> 1269.296045 | H84: ='PC3 distribution RAB'!J3 -> 1288.533302
B86: Capex | D86: =SUM(C72:D72)*Indexation!D8 -> 92.06335118 | E86: =SUM(E72:F72)*Indexation!E8 -> 105.0000141 | F86: =SUM(G72:H72)*Indexation!F8 -> 37.80275704 | G86: =SUM(I72:J72)*Indexation!G8 -> 73.69787986 | H86: =SUM(K72) -> 63.289
B88: REVENUE REQUIRED TO COVER CAPITAL EXPENDITURE, DEPRECIATION AND RETURN, 10/11 terms
B90: Revenue required to cover capex, depreciation & return
B91: As per PC2 decision
B92: NPV of revenue required to reinburse changes in RAB | I92: =D77-(H78/H11) -> 49.64709537
B93: NPV of revenue required to reinburse capex | D93: =D80/D12 -> 146.0166299 | E93: =E80/E12 -> 117.5006949 | F93: =F80/F12 -> 71.81724314 | G93: =G80/G12 -> 64.14181201 | H93: =H80/H12 -> 58.16216075 | I93: =SUM(D93:H93) -> 457.6385408
B94: Total | I94: =SUM(I92:I93) -> 507.2856361
B96: Revenue returned during annual updates
B97: Ex-ante adjustment calculation, 05/06 monies | E97: 0.94 | F97: 2.19 | G97: 2.5 | H97: 2.63
B98: Ex-post adjustment 05/06 monies | D98: 0.42 | E98: 1.05 | F98: 0.39
B99: Total returned, 10/11 monies | D99: =SUM(D97:D98)*Indexation!$B$8*1.1167 -> 0.4908621173 | E99: =SUM(E97:E98)*Indexation!$B$8 -> 2.082700332 | F99: =SUM(F97:F98)*Indexation!$B$8 -> 2.70018435 | G99: =SUM(G97:G98)*Indexation!$B$8 -> 2.616457703 | H99: =SUM(H97:H98)*Indexation!$B$8 -> 2.752513504
B100: NPV of revenue returned | D100: =D99/D12 -> 0.4785768055 | E100: =E99/E12 -> 1.930203845 | F100: =F99/F12 -> 2.378778838 | G100: =G99/G12 -> 2.19108199 | H100: =H99/H12 -> 2.19108199 | I100: =SUM(D100:H100) -> 9.169723469
B102: As per approved outturn figures
B103: NPV of revenue required to reinburse changes in RAB | I103: =D83-(H84/H11) -> 122.5893769
B104: NPV of revenue required to reinburse capex | D104: =D86/D12 -> 89.75918686 | E104: =E86/E12 -> 97.31185419 | F104: =F86/F12 -> 33.3030589 | G104: =G86/G12 -> 61.71630333 | H104: =H86/H12 -> 50.37991199 | I104: =SUM(D104:H104) -> 332.4703153
B105: Total | I105: =SUM(I103:I104) -> 455.0596922
B107: PC3 adjustment due to difference between above | I107: =I105-(I94-I100) -> -43.05622051
B109: PC2 k factors, 10/11 terms
B110: K factors relating to PC2 | I110: =4.8+5-2.2 -> 7.6 | K110: ITO opex + est of k factor - ITO prepayment
B112: REVENUE RELATED TO EFFICIENCY SAVINGS
B115: Historic cost of efficiency savings nominal to 2010, 10/11 prices thereafter
B116: Distribution business unit - direct
B117: Pipelines/Above ground installations - D | C117: 60 | D117: 22.092 | E117: 18.144 | F117: 1.527 | G117: 2.038 | H117: 1.796 | I117: =SUM(D117:H117) -> 45.597 | K117: Historic Capex Spreadsheet final
B118: Dublin Cast Iron - D | C118: 60 | D118: 0 | E118: 0 | F118: 0 | G118: 0 | H118: 0 | I118: =SUM(D118:H118) -> 0 | K118: Note how are customer contributions dealt with
B119: Cork Cast Iron - D | C119: 60 | D119: 0 | E119: 0 | F119: 0 | G119: 0 | H119: 0 | I119: 0
B120: Meters - D | C120: 15 | D120: 4.036 | E120: 2.477 | F120: 2.88 | G120: 2.818 | H120: 2.922 | I120: 15.133
B121: Land - D | C121: 40 | D121: 0 | E121: 0 | F121: 0 | G121: 0 | H121: 0 | I121: 0
B122: Buildings - D | C122: 40 | D122: 0 | E122: 0 | F122: 0 | G122: 0 | H122: 0 | I122: 0
B123: Equipment - D | C123: 5 | D123: 0 | E123: 0 | F123: 0 | G123: 0 | H123: 0 | I123: 0
B124: Sum: | D124: =SUM(D117:D123) -> 26.128 | E124: =SUM(E117:E123) -> 20.621 | F124: =SUM(F117:F123) -> 4.407 | G124: =SUM(G117:G123) -> 4.856 | H124: =SUM(H117:H123) -> 4.718 | I124: 60.73
B126: Distribution business unit - shared
B127: Pipelines/Above ground installations - S | C127: 60 | D127: 0 | E127: 0 | F127: 0 | G127: 0 | H127: 0 | I127: =SUM(D127:H127) -> 0
B128: Dublin Cast Iron - S | C128: 60 | D128: 0 | E128: 0 | F128: 0 | G128: 0 | H128: 0 | I128: 0
B129: Cork Cast Iron - S | C129: 60 | D129: 0 | E129: 0 | F129: 0 | G129: 0 | H129: 0 | I129: 0
B130: Meters - S | C130: 15 | D130: 0 | E130: 0 | F130: 0 | G130: 0 | H130: 0 | I130: 0
B131: Land - S | C131: 40 | D131: 0 | E131: 0 | F131: 0 | G131: 0 | H131: 0 | I131: 0
B132: Buildings - S | C132: 40 | D132: 0 | E132: 0 | F132: 0 | G132: 0 | H132: 0 | I132: 0
B133: Equipment - S | C133: 5 | D133: 0 | E133: 0 | F133: 0 | G133: 0 | H133: 0 | I133: 0
B134: Sum: | D134: =SUM(D127:D133) -> 0 | E134: =SUM(E127:E133) -> 0 | F134: =SUM(F127:F133) -> 0 | G134: =SUM(G127:G133) -> 0 | H134: =SUM(H127:H133) -> 0 | I134: 0
B136: Total historic cost | D136: =D124+D134 -> 26.128 | E136: =E124+E134 -> 20.621 | F136: =F124+F134 -> 4.407 | G136: =G124+G134 -> 4.856 | H136: =H124+H134 -> 4.718 | I136: =SUM(D136:H136) -> 60.73
B138: Indexed gross value of efficiency savings in 2010/2011 prices | K138: Revenue for 5 years, 10/11 prices
B139: Distribution business unit - direct | C139: Asset life | I139: Total | K139: Depreciation | L139: Return | M139: Total
B140: Pipelines/Above ground installations | C140: 60 | D140: =D117*Indexation!AA$4 -> 21.63228738 | E140: =E117*Indexation!AB$4 -> 18.07369415 | F140: =F117*Indexation!AC$4 -> 1.545816114 | G140: =G117 -> 2.038 | H140: 1.796 | I140: =SUM(D140:H140) -> 45.08579765 | K140: =I140/C140*5 -> 3.757149804 | L140: =(I140*PC2_inputs!$K$2)+((I140-(I140/C140*1))*$K$2)+((I140-(I140/C140*2))*$K$2)+((I140-(I140/C140*3))*$K$2)+((I140-(I140/C140*4))*$K$2) -> 11.33156381 | M140: =K140+L140 -> 15.08871361
B141: Dublin Cast Iron | C141: 60 | D141: =D118*Indexation!AA$4 -> 0 | E141: =E118*Indexation!AB$4 -> 0 | F141: =F118*Indexation!AC$4 -> 0 | G141: 0 | H141: 0 | I141: 0 | K141: =I141/C141*5 -> 0 | L141: =(I141*PC2_inputs!$K$2)+((I141-(I141/C141*1))*$K$2)+((I141-(I141/C141*2))*$K$2)+((I141-(I141/C141*3))*$K$2)+((I141-(I141/C141*4))*$K$2) -> 0 | M141: =K141+L141 -> 0
B142: Cork Cast Iron | C142: 60 | D142: =D119*Indexation!AA$4 -> 0 | E142: =E119*Indexation!AB$4 -> 0 | F142: =F119*Indexation!AC$4 -> 0 | G142: 0 | H142: 0 | I142: 0 | K142: 0 | L142: =(I142*PC2_inputs!$K$2)+((I142-(I142/C142*1))*$K$2)+((I142-(I142/C142*2))*$K$2)+((I142-(I142/C142*3))*$K$2)+((I142-(I142/C142*4))*$K$2) -> 0 | M142: 0
B143: Meters | C143: 15 | D143: =D120*Indexation!AA$4 -> 3.952014842 | E143: =E120*Indexation!AB$4 -> 2.467401919 | F143: =F120*Indexation!AC$4 -> 2.915488152 | G143: 2.818 | H143: 2.922 | I143: 15.07490491 | K143: 5.024968304 | L143: =(I143*PC2_inputs!$K$2)+((I143-(I143/C143*1))*$K$2)+((I143-(I143/C143*2))*$K$2)+((I143-(I143/C143*3))*$K$2)+((I143-(I143/C143*4))*$K$2) -> 3.396878573 | M143: 8.421846877
B144: Land | C144: 40 | D144: =D121*Indexation!AA$4 -> 0 | E144: =E121*Indexation!AB$4 -> 0 | F144: =F121*Indexation!AC$4 -> 0 | G144: 0 | H144: 0 | I144: 0 | K144: 0 | L144: =(I144*PC2_inputs!$K$2)+((I144-(I144/C144*1))*$K$2)+((I144-(I144/C144*2))*$K$2)+((I144-(I144/C144*3))*$K$2)+((I144-(I144/C144*4))*$K$2) -> 0 | M144: 0
B145: Buildings | C145: 40 | D145: =D122*Indexation!AA$4 -> 0 | E145: =E122*Indexation!AB$4 -> 0 | F145: =F122*Indexation!AC$4 -> 0 | G145: 0 | H145: 0 | I145: 0 | K145: 0 | L145: =(I145*PC2_inputs!$K$2)+((I145-(I145/C145*1))*$K$2)+((I145-(I145/C145*2))*$K$2)+((I145-(I145/C145*3))*$K$2)+((I145-(I145/C145*4))*$K$2) -> 0 | M145: 0
B146: Equipment | C146: 5 | D146: =D123*Indexation!AA$4 -> 0 | E146: =E123*Indexation!AB$4 -> 0 | F146: =F123*Indexation!AC$4 -> 0 | G146: 0 | H146: 0 | I146: 0 | K146: 0 | L146: =(I146*PC2_inputs!$K$2)+((I146-(I146/C146*1))*$K$2)+((I146-(I146/C146*2))*$K$2)+((I146-(I146/C146*3))*$K$2)+((I146-(I146/C146*4))*$K$2) -> 0 | M146: 0
B147: Sum: | D147: =SUM(D140:D146) -> 25.58430223 | E147: =SUM(E140:E146) -> 20.54109607 | F147: =SUM(F140:F146) -> 4.461304265 | G147: =SUM(G140:G146) -> 4.856 | H147: =SUM(H140:H146) -> 4.718 | I147: 60.16070256 | K147: =SUM(K140:K146) -> 8.782118108 | L147: =SUM(L140:L146) -> 14.72844238 | M147: 23.51056049
B149: Distribution business unit - shared
B150: Pipelines/Above ground installations | C150: 60 | D150: =D127*Indexation!AA$4 -> 0 | E150: =E127*Indexation!AB$4 -> 0 | F150: =F127*Indexation!AC$4 -> 0 | G150: =G127 -> 0 | H150: 0 | I150: =SUM(D150:H150) -> 0 | K150: =I150/C150*5 -> 0 | L150: =(I150*PC2_inputs!$K$2)+((I150-(I150/C150*1))*$K$2)+((I150-(I150/C150*2))*$K$2)+((I150-(I150/C150*3))*$K$2)+((I150-(I150/C150*4))*$K$2) -> 0 | M150: 0
B151: Dublin Cast Iron | C151: 60 | D151: =D128*Indexation!AA$4 -> 0 | E151: =E128*Indexation!AB$4 -> 0 | F151: =F128*Indexation!AC$4 -> 0 | G151: 0 | H151: 0 | I151: 0 | K151: =I151/C151*5 -> 0 | L151: =(I151*PC2_inputs!$K$2)+((I151-(I151/C151*1))*$K$2)+((I151-(I151/C151*2))*$K$2)+((I151-(I151/C151*3))*$K$2)+((I151-(I151/C151*4))*$K$2) -> 0 | M151: 0
B152: Cork Cast Iron | C152: 60 | D152: =D129*Indexation!AA$4 -> 0 | E152: =E129*Indexation!AB$4 -> 0 | F152: =F129*Indexation!AC$4 -> 0 | G152: 0 | H152: 0 | I152: 0 | K152: 0 | L152: =(I152*PC2_inputs!$K$2)+((I152-(I152/C152*1))*$K$2)+((I152-(I152/C152*2))*$K$2)+((I152-(I152/C152*3))*$K$2)+((I152-(I152/C152*4))*$K$2) -> 0 | M152: 0
B153: Meters | C153: 15 | D153: =D130*Indexation!AA$4 -> 0 | E153: =E130*Indexation!AB$4 -> 0 | F153: =F130*Indexation!AC$4 -> 0 | G153: 0 | H153: 0 | I153: 0 | K153: 0 | L153: =(I153*PC2_inputs!$K$2)+((I153-(I153/C153*1))*$K$2)+((I153-(I153/C153*2))*$K$2)+((I153-(I153/C153*3))*$K$2)+((I153-(I153/C153*4))*$K$2) -> 0 | M153: 0
B154: Land | C154: 40 | D154: =D131*Indexation!AA$4 -> 0 | E154: =E131*Indexation!AB$4 -> 0 | F154: =F131*Indexation!AC$4 -> 0 | G154: 0 | H154: 0 | I154: 0 | K154: 0 | L154: =(I154*PC2_inputs!$K$2)+((I154-(I154/C154*1))*$K$2)+((I154-(I154/C154*2))*$K$2)+((I154-(I154/C154*3))*$K$2)+((I154-(I154/C154*4))*$K$2) -> 0 | M154: 0
B155: Buildings | C155: 40 | D155: =D132*Indexation!AA$4 -> 0 | E155: =E132*Indexation!AB$4 -> 0 | F155: =F132*Indexation!AC$4 -> 0 | G155: 0 | H155: 0 | I155: 0 | K155: 0 | L155: =(I155*PC2_inputs!$K$2)+((I155-(I155/C155*1))*$K$2)+((I155-(I155/C155*2))*$K$2)+((I155-(I155/C155*3))*$K$2)+((I155-(I155/C155*4))*$K$2) -> 0 | M155: 0
B156: Equipment | C156: 5 | D156: =D133*Indexation!AA$4 -> 0 | E156: =E133*Indexation!AB$4 -> 0 | F156: =F133*Indexation!AC$4 -> 0 | G156: 0 | H156: 0 | I156: 0 | K156: 0 | L156: =(I156*PC2_inputs!$K$2)+((I156-(I156/C156*1))*$K$2)+((I156-(I156/C156*2))*$K$2)+((I156-(I156/C156*3))*$K$2)+((I156-(I156/C156*4))*$K$2) -> 0 | M156: 0
B157: Sum: | D157: =SUM(D150:D156) -> 0 | E157: =SUM(E150:E156) -> 0 | F157: =SUM(F150:F156) -> 0 | G157: =SUM(G150:G156) -> 0 | H157: =SUM(H150:H156) -> 0 | I157: 0 | K157: =SUM(K150:K156) -> 0 | L157: =SUM(L150:L156) -> 0 | M157: 0
B159: Total indexed gross value of efficiency savings | D159: =D147+D157 -> 25.58430223 | E159: =E147+E157 -> 20.54109607 | F159: =F147+F157 -> 4.461304265 | G159: =G147+G157 -> 4.856 | H159: =H147+H157 -> 4.718 | I159: =SUM(D159:H159) -> 60.16070256 | K159: =SUM(K147+K157) -> 8.782118108 | L159: =SUM(L147+L157) -> 14.72844238 | M159: 23.51056049
B161: REVENUE RELATED TO EFFICIENT DEFFERALS
B163: Historic cost of efficient deferrals, nominal to 2010, 10/11 prices thereafter
C164: Asset life | I164: Total
B165: Pipelines/Above ground installations | C165: 60 | D165: 0 | E165: 0 | F165: 0 | G165: 0 | H165: 0 | I165: =SUM(D165:H165) -> 0
B166: Dublin Cast Iron | C166: 60 | D166: 0 | E166: 0 | F166: 0 | G166: 0 | H166: 0 | I166: =SUM(D166:H166) -> 0
B167: Cork Cast Iron | C167: 60 | D167: 0 | E167: 0 | F167: 0 | G167: 0 | H167: 0 | I167: 0
B168: Meters | C168: 15 | D168: 0 | E168: 0 | F168: 0 | G168: 0 | H168: 0 | I168: 0
B169: Land | C169: 40 | D169: 0 | E169: 0 | F169: 0 | G169: 0 | H169: 0 | I169: 0
B170: Buildings | C170: 40 | D170: 0 | E170: 0 | F170: 0 | G170: 0 | H170: 0 | I170: 0
B171: Equipment | C171: 5 | D171: 0 | E171: 0 | F171: 0 | G171: 0 | H171: 0 | I171: 0
B173: Total historic cost | D173: =SUM(D165:D171) -> 0 | E173: =SUM(E165:E171) -> 0 | F173: =SUM(F165:F171) -> 0 | G173: =SUM(G165:G171) -> 0 | H173: =SUM(H165:H171) -> 0 | I173: =SUM(D173:H173) -> 0
B175: Indexed gross value of efficient deferrals in 2010/2011 prices | K175: Revenue for 5 years, 10/11 prices
C176: Asset life | I176: Total | K176: Depreciation | L176: Return | M176: Total
B177: =B165 -> Pipelines/Above ground installations | C177: =C165 -> 60 | D177: =D165*Indexation!AA$4 -> 0 | E177: =E165*Indexation!AB$4 -> 0 | F177: =F165*Indexation!AC$4 -> 0 | G177: =G165 -> 0 | H177: 0 | I177: =SUM(D177:H177) -> 0 | K177: =I177/C177*2.5 -> 0 | L177: =(I177*PC2_inputs!$K$2)+((I177-(I177/C177*1))*$K$2)+((I177-(I177/C177*2))*$K$2)+((I177-(I177/C177*3))*$K$2)+((I177-(I177/C177*4))*$K$2) -> 0 | M177: =K177+L177 -> 0
B178: =B166 -> Dublin Cast Iron | C178: 60 | D178: =D166*Indexation!AA$4 -> 0 | E178: =E166*Indexation!AB$4 -> 0 | F178: =F166*Indexation!AC$4 -> 0 | G178: 0 | H178: 0 | I178: 0 | K178: =I178/C178*2.5 -> 0 | L178: =(I178*PC2_inputs!$K$2)+((I178-(I178/C178*1))*$K$2)+((I178-(I178/C178*2))*$K$2)+((I178-(I178/C178*3))*$K$2)+((I178-(I178/C178*4))*$K$2) -> 0 | M178: =K178+L178 -> 0
B179: Cork Cast Iron | C179: 60 | D179: =D167*Indexation!AA$4 -> 0 | E179: =E167*Indexation!AB$4 -> 0 | F179: =F167*Indexation!AC$4 -> 0 | G179: 0 | H179: 0 | I179: 0 | K179: 0 | L179: =(I179*PC2_inputs!$K$2)+((I179-(I179/C179*1))*$K$2)+((I179-(I179/C179*2))*$K$2)+((I179-(I179/C179*3))*$K$2)+((I179-(I179/C179*4))*$K$2) -> 0 | M179: 0
B180: Meters | C180: 15 | D180: =D168*Indexation!AA$4 -> 0 | E180: =E168*Indexation!AB$4 -> 0 | F180: =F168*Indexation!AC$4 -> 0 | G180: 0 | H180: 0 | I180: 0 | K180: 0 | L180: =(I180*PC2_inputs!$K$2)+((I180-(I180/C180*1))*$K$2)+((I180-(I180/C180*2))*$K$2)+((I180-(I180/C180*3))*$K$2)+((I180-(I180/C180*4))*$K$2) -> 0 | M180: 0
B181: Land | C181: 40 | D181: =D169*Indexation!AA$4 -> 0 | E181: =E169*Indexation!AB$4 -> 0 | F181: =F169*Indexation!AC$4 -> 0 | G181: 0 | H181: 0 | I181: 0 | K181: 0 | L181: =(I181*PC2_inputs!$K$2)+((I181-(I181/C181*1))*$K$2)+((I181-(I181/C181*2))*$K$2)+((I181-(I181/C181*3))*$K$2)+((I181-(I181/C181*4))*$K$2) -> 0 | M181: 0
B182: Buildings | C182: 40 | D182: =D170*Indexation!AA$4 -> 0 | E182: =E170*Indexation!AB$4 -> 0 | F182: =F170*Indexation!AC$4 -> 0 | G182: 0 | H182: 0 | I182: 0 | K182: 0 | L182: =(I182*PC2_inputs!$K$2)+((I182-(I182/C182*1))*$K$2)+((I182-(I182/C182*2))*$K$2)+((I182-(I182/C182*3))*$K$2)+((I182-(I182/C182*4))*$K$2) -> 0 | M182: 0
B183: Equipment | C183: 5 | D183: =D171*Indexation!AA$4 -> 0 | E183: =E171*Indexation!AB$4 -> 0 | F183: =F171*Indexation!AC$4 -> 0 | G183: 0 | H183: 0 | I183: 0 | K183: 0 | L183: =(I183*PC2_inputs!$K$2)+((I183-(I183/C183*1))*$K$2)+((I183-(I183/C183*2))*$K$2)+((I183-(I183/C183*3))*$K$2)+((I183-(I183/C183*4))*$K$2) -> 0 | M183: 0
B185: Total indexed gross value of efficient deferrals | D185: =SUM(D177:D183) -> 0 | E185: =SUM(E177:E183) -> 0 | F185: =SUM(F177:F183) -> 0 | G185: =SUM(G177:G183) -> 0 | H185: =SUM(H177:H183) -> 0 | I185: =SUM(D185:H185) -> 0 | K185: =SUM(K177:K183) -> 0 | L185: =SUM(L177:L183) -> 0 | M185: =K185+L185 -> 0
B188: REVENUE RELATED TO NEGATIVE SCOPE AND NEGATIVE EFFICIENCY
B190: Historic cost of negative scope/efficiency, nominal to 2010, 10/11 prices thereafter
C191: Asset life | I191: Total
B192: Pipelines/Above ground installations | C192: 60 | D192: =-4.002 -1.201 -> -5.203 | E192: =-2.934 -17.745 -> -20.679 | F192: =-4.796 -1.084 -> -5.88 | G192: =-6.022 -2.805 -> -8.827 | H192: =-2.97 -3.922 -> -6.892 | I192: =SUM(D192:H192) -> -47.481
B193: Dublin Cast Iron | C193: 60 | D193: 0 | E193: 0 | F193: 0 | G193: 0 | H193: 0 | I193: =SUM(D193:H193) -> 0
B194: Cork Cast Iron | C194: 60 | D194: 0 | E194: 0 | F194: 0 | G194: 0 | H194: 0 | I194: 0
B195: Meters | C195: 15 | D195: 0 | E195: 0 | F195: -0.292 | G195: 0 | H195: 0 | I195: -0.292
B196: Land | C196: 40 | D196: 0 | E196: 0 | F196: 0 | G196: 0 | H196: 0 | I196: 0
B197: Buildings | C197: 40 | D197: 0 | E197: 0 | F197: 0 | G197: 0 | H197: 0 | I197: 0
B198: Equipment | C198: 5 | D198: 0 | E198: 0 | F198: 0 | G198: 0 | H198: 0 | I198: 0
B200: Total historic cost | D200: =SUM(D192:D198) -> -5.203 | E200: =SUM(E192:E198) -> -20.679 | F200: =SUM(F192:F198) -> -6.172 | G200: =SUM(G192:G198) -> -8.827 | H200: =SUM(H192:H198) -> -6.892 | I200: =SUM(D200:H200) -> -47.773
B202: Indexed gross value of negative scope/efficiency in 2010/2011 prices
C203: Asset life | I203: Total
B204: =B192 -> Pipelines/Above ground installations | C204: 60 | D204: =D192*Indexation!AA$4 -> -5.094730729 | E204: =E192*Indexation!AB$4 -> -20.59887133 | F204: =F192*Indexation!AC$4 -> -5.952454976 | G204: =G192 -> -8.827 | H204: -6.892 | I204: =SUM(D204:H204) -> -47.36505703
B205: Dublin Cast Iron | C205: 60 | D205: =D193*Indexation!AA$4 -> 0 | E205: =E193*Indexation!AB$4 -> 0 | F205: =F193*Indexation!AC$4 -> 0 | G205: 0 | H205: 0 | I205: 0
B206: Cork Cast Iron | C206: 60 | D206: =D194*Indexation!AA$4 -> 0 | E206: =E194*Indexation!AB$4 -> 0 | F206: =F194*Indexation!AC$4 -> 0 | G206: 0 | H206: 0 | I206: 0
B207: Meters | C207: 15 | D207: =D195*Indexation!AA$4 -> 0 | E207: =E195*Indexation!AB$4 -> 0 | F207: =F195*Indexation!AC$4 -> -0.2955981043 | G207: 0 | H207: 0 | I207: -0.2955981043
B208: Land | C208: 40 | D208: =D196*Indexation!AA$4 -> 0 | E208: =E196*Indexation!AB$4 -> 0 | F208: =F196*Indexation!AC$4 -> 0 | G208: 0 | H208: 0 | I208: 0
B209: Buildings | C209: 40 | D209: =D197*Indexation!AA$4 -> 0 | E209: =E197*Indexation!AB$4 -> 0 | F209: =F197*Indexation!AC$4 -> 0 | G209: 0 | H209: 0 | I209: 0
B210: Equipment | C210: 5 | D210: =D198*Indexation!AA$4 -> 0 | E210: =E198*Indexation!AB$4 -> 0 | F210: =F198*Indexation!AC$4 -> 0 | G210: 0 | H210: 0 | I210: 0
B212: Total indexed gross value of negative scope / efficiency | D212: =SUM(D204:D210) -> -5.094730729 | E212: =SUM(E204:E210) -> -20.59887133 | F212: =SUM(F204:F210) -> -6.248053081 | G212: =SUM(G204:G210) -> -8.827 | H212: =SUM(H204:H210) -> -6.892 | I212: =SUM(D212:H212) -> -47.66065513
B214: Return on negative scope/efficiency in 2010/2011 prices
C215: Asset life | I215: Total
B216: =B204 -> Pipelines/Above ground installations | C216: 60 | D216: =(D204*PC2_inputs!$K$2/2)+((D204-(D204/$C216*1))*$K$2)+((D204-(D204/$C216*2))*$K$2)+((D204-(D204/$C216*3))*$K$2)+((D204-(D204/$C216*4))*$K$2) -> -1.148012658 | E216: =(E204*PC2_inputs!$K$2/2)+((E204-(E204/$C216*1))*$K$2)+((E204-(E204/$C216*2))*$K$2)+((E204-(E204/$C216*3))*$K$2) -> -3.64188045 | F216: =(F204*PC2_inputs!$K$2/2)+((F204-(F204/$C216*1))*$K$2)+((F204-(F204/$C216*2))*$K$2) -> -0.758342764 | G216: =(G204*PC2_inputs!$K$2/2)+((G204-(G204/$C216*1))*$K$2) -> -0.6808559333 | H216: =(H204*PC2_inputs!$K$2/2) -> -0.179192 | I216: =SUM(D216:H216) -> -6.408283805
B217: Dublin Cast Iron | C217: 60 | D217: =(D205*PC2_inputs!$K$2/2)+((D205-(D205/C217*1))*$K$2)+((D205-(D205/C205*2))*$K$2)+((D205-(D205/C205*3))*$K$2)+((D205-(D205/C205*4))*$K$2) -> 0 | E217: =(E205*PC2_inputs!$K$2/2)+((E205-(E205/$C217*1))*$K$2)+((E205-(E205/$C217*2))*$K$2)+((E205-(E205/$C217*3))*$K$2) -> 0 | F217: =(F205*PC2_inputs!$K$2/2)+((F205-(F205/$C217*1))*$K$2)+((F205-(F205/$C217*2))*$K$2) -> 0 | G217: =(G205*PC2_inputs!$K$2/2)+((G205-(G205/$C217*1))*$K$2) -> 0 | H217: =(H205*PC2_inputs!$K$2/2) -> 0 | I217: 0
B218: Cork Cast Iron | C218: 60 | D218: =(D206*PC2_inputs!$K$2/2)+((D206-(D206/C218*1))*$K$2)+((D206-(D206/C206*2))*$K$2)+((D206-(D206/C206*3))*$K$2)+((D206-(D206/C206*4))*$K$2) -> 0 | E218: =(E206*PC2_inputs!$K$2/2)+((E206-(E206/$C218*1))*$K$2)+((E206-(E206/$C218*2))*$K$2)+((E206-(E206/$C218*3))*$K$2) -> 0 | F218: =(F206*PC2_inputs!$K$2/2)+((F206-(F206/$C218*1))*$K$2)+((F206-(F206/$C218*2))*$K$2) -> 0 | G218: =(G206*PC2_inputs!$K$2/2)+((G206-(G206/$C218*1))*$K$2) -> 0 | H218: =(H206*PC2_inputs!$K$2/2) -> 0 | I218: 0
B219: Meters | C219: 15 | D219: =(D207*PC2_inputs!$K$2/2)+((D207-(D207/C219*1))*$K$2)+((D207-(D207/C207*2))*$K$2)+((D207-(D207/C207*3))*$K$2)+((D207-(D207/C207*4))*$K$2) -> 0 | E219: =(E207*PC2_inputs!$K$2/2)+((E207-(E207/$C219*1))*$K$2)+((E207-(E207/$C219*2))*$K$2)+((E207-(E207/$C219*3))*$K$2) -> 0 | F219: =(F207*PC2_inputs!$K$2/2)+((F207-(F207/$C219*1))*$K$2)+((F207-(F207/$C219*2))*$K$2) -> -0.03535353327 | G219: =(G207*PC2_inputs!$K$2/2)+((G207-(G207/$C219*1))*$K$2) -> 0 | H219: =(H207*PC2_inputs!$K$2/2) -> 0 | I219: -0.03535353327
B220: Land | C220: 40 | D220: =(D208*PC2_inputs!$K$2/2)+((D208-(D208/C220*1))*$K$2)+((D208-(D208/C208*2))*$K$2)+((D208-(D208/C208*3))*$K$2)+((D208-(D208/C208*4))*$K$2) -> 0 | E220: =(E208*PC2_inputs!$K$2/2)+((E208-(E208/$C220*1))*$K$2)+((E208-(E208/$C220*2))*$K$2)+((E208-(E208/$C220*3))*$K$2) -> 0 | F220: =(F208*PC2_inputs!$K$2/2)+((F208-(F208/$C220*1))*$K$2)+((F208-(F208/$C220*2))*$K$2) -> 0 | G220: =(G208*PC2_inputs!$K$2/2)+((G208-(G208/$C220*1))*$K$2) -> 0 | H220: =(H208*PC2_inputs!$K$2/2) -> 0 | I220: 0
B221: Buildings | C221: 40 | D221: =(D209*PC2_inputs!$K$2/2)+((D209-(D209/C221*1))*$K$2)+((D209-(D209/C209*2))*$K$2)+((D209-(D209/C209*3))*$K$2)+((D209-(D209/C209*4))*$K$2) -> 0 | E221: =(E209*PC2_inputs!$K$2/2)+((E209-(E209/$C221*1))*$K$2)+((E209-(E209/$C221*2))*$K$2)+((E209-(E209/$C221*3))*$K$2) -> 0 | F221: =(F209*PC2_inputs!$K$2/2)+((F209-(F209/$C221*1))*$K$2)+((F209-(F209/$C221*2))*$K$2) -> 0 | G221: =(G209*PC2_inputs!$K$2/2)+((G209-(G209/$C221*1))*$K$2) -> 0 | H221: =(H209*PC2_inputs!$K$2/2) -> 0 | I221: 0
B222: Equipment | C222: 5 | D222: =(D210*PC2_inputs!$K$2/2)+((D210-(D210/C222*1))*$K$2)+((D210-(D210/C210*2))*$K$2)+((D210-(D210/C210*3))*$K$2)+((D210-(D210/C210*4))*$K$2) -> 0 | E222: =(E210*PC2_inputs!$K$2/2)+((E210-(E210/$C222*1))*$K$2)+((E210-(E210/$C222*2))*$K$2)+((E210-(E210/$C222*3))*$K$2) -> 0 | F222: =(F210*PC2_inputs!$K$2/2)+((F210-(F210/$C222*1))*$K$2)+((F210-(F210/$C222*2))*$K$2) -> 0 | G222: =(G210*PC2_inputs!$K$2/2)+((G210-(G210/$C222*1))*$K$2) -> 0 | H222: =(H210*PC2_inputs!$K$2/2) -> 0 | I222: 0
B224: Total return on negative scope/efficiency | D224: =SUM(D216:D222) -> -1.148012658 | E224: =SUM(E216:E222) -> -3.64188045 | F224: =SUM(F216:F222) -> -0.7936962973 | G224: =SUM(G216:G222) -> -0.6808559333 | H224: =SUM(H216:H222) -> -0.179192 | I224: =SUM(D224:H224) -> -6.443637338

Sheet PC1_inputs
B1: Year of PC1 control | C1: 1
B2: Gas year | C2: Oct to Dec 06 | D2: Jan to Sept 07 | E2: Total | G2: PR1 WACC | H2: 0.0574
B4: GENERAL INPUTS
B6: Timing assumptions
B7: Assumed to be constant through year | C7: 0.5
B8: Assumed to happen at year end | C8: 0
B10: Discounting indices
B11: RAB discounting index | C11: =(1+H2)^(C1-C8) -> 1.0574
B12: Capex and Opex expenditure discounting index | C12: =(1+$H$2)^(C1-C7) -> 1.028299567
B14: CAPITAL EXPENDITURE
B16: Growth related capex
C17: Nominal terms | E17: Classification | G17: Classifications (D=direct, S=shared)
B18: Hist Direct | C18: 0.029783 | D18: -0.076783 | E18: Buildings - D | G18: Pipelines/Above ground installations - D
B19: Hist Direct | C19: 0.200055 | D19: 0.626475 | E19: Equipment - D | G19: Meters - D
B20: Hist Direct | C20: 0 | D20: 0 | E20: Land - S | G20: Land - D
B21: Hist Direct | C21: 3.373875 | D21: 8.372961 | E21: Meters - S | G21: Buildings - D
B22: Hist Direct | C22: 16.983364 | D22: 32.360426 | E22: Pipelines/Above ground installations - S | G22: Equipment - D
B23: Hist Direct | G23: Pipelines/Above ground installations - S
G24: Meters - S
B25: Replacement related capex | G25: Land - S
G26: Buildings - S
B27: NEGATIVE EFFICIENCY | D27: -0.7 | E27: Pipelines/Above ground installations - S | G27: Equipment - S
B28: Spare replacement related capex line
B29: Spare replacement related capex line
B30: Spare replacement related capex line
B31: Spare replacement related capex line
B32: Spare replacement related capex line
B34: Non-network capex
B36: Spare non-network capex line
B37: Spare non-network capex line
B38: Spare non-network capex line
B39: Spare non-network capex line
B40: Spare non-network capex line
B41: Spare non-network capex line
B43: Allocated shared capex
B45: Hist
B46: Spare allocated shared capex line
B47: Spare allocated shared capex line
B48: Spare allocated shared capex line | C48: 0
B49: Spare allocated shared capex line | C49: 0
B51: Customer contributions related capex
B53: Spare customer contributions line | C53: 0
B54: Spare customer contributions line | C54: 0
B55: Spare customer contributions line | C55: 0
B56: Spare customer contributions line | C56: 0
B58: Total capital expenditure | C58: =SUM(C18:C56) -> 20.587077 | D58: =SUM(D18:D56) -> 40.583079
B60: REGULATED ASSET BASE & CAPITAL EXPENDITURE
E61: Figures as per PC2 decision (05/06 terms)
B62: Figures as per PC2 decision (inflated to 10/11 terms)
B63: Opening RAB | C63: =F63*Indexation!B8 -> 1111.157257 | E63: Opening RAB for Oct 06 | F63: 1061.7
B64: Closing RAB | C64: =F64*Indexation!B8 -> 1186.511239 | E64: Closing RAB for Sept 07 | F64: 1133.7
B66: Capex | C66: =F66*Indexation!B8 -> 118.7871797 | E66: Capex for 06/07 gas year | F66: 113.5
B68: Approved outturn figures, 10/11 terms
B69: Opening RAB | C69: ='PC3 distribution RAB'!D3 -> 1099.977759
B70: Closing RAB | C70: ='PC3 distribution RAB'!E3 -> 1122.628402
B72: Capex | C72: =SUM(C58:D58)*Indexation!C8 -> 62.21540365
B74: REVENUE REQUIRED TO COVER CAPITAL EXPENDITURE, DEPRECIATION AND RETURN
B76: Revenue required to cover capex, depreciation & return, 10/11 terms
B77: As per PC2 decision
B78: Revenue required to reinburse changes in RAB | D78: =C63-(C64/C11) -> -10.94529533
B79: Revenue required to reinburse capex | C79: =C66/C12 -> 115.5180684 | D79: =SUM(C79) -> 115.5180684
B80: Total | D80: =SUM(D78:D79) -> 104.5727731
B82: Revenue returned during annual updates
B83: Ex-ante adjustment calculation, 02/03 monies | D83: 0.15
B84: Ex-post adjustment, 02/03 monies | D84: 0.37
B85: Total returned, 10/11 monies | D85: =(D83+D84)*1.093*Indexation!B8 -> 0.5948359601
B86: NPV of revenue returned | D86: =D85/C12 -> 0.578465633
B88: As per approved outturn figures
B89: Revenue required to reinburse changes in RAB | D89: =C69-(C70/C11) -> 38.29022099
B90: Revenue required to reinburse capex | C90: =C72/C12 -> 60.50318956 | D90: =SUM(C90) -> 60.50318956
B91: Total | D91: =SUM(D89:D90) -> 98.79341055
B93: PC3 adjustment due to difference between above | D93: =D91-(D80-D86) -> -5.200896876
B97: REVENUE RELATED TO EFFICIENCY SAVINGS
B100: Historic cost of efficiency savings nominal to 2010, 10/11 prices thereafter
B101: Distribution business unit - direct
B102: Pipelines/Above ground installations - D | C102: 60 | D102: 15.96340813 | E102: =SUM(D102:D102) -> 15.96340813
B103: Dublin Cast Iron - D | C103: 60 | E103: 0
B104: Cork Cast Iron - D | C104: 60 | E104: 0
B105: Meters - D | C105: 15 | D105: 0.9142311264 | E105: 0.9142311264
B106: Land - D | C106: 40 | E106: 0
B107: Buildings - D | C107: 40 | E107: 0
B108: Equipment - D | C108: 5 | E108: 0
B109: Sum: | D109: =SUM(D102:D108) -> 16.87763926 | E109: 16.87763926
B111: Distribution business unit - shared
B112: Pipelines/Above ground installations - S | C112: 60 | D112: 0 | E112: =SUM(D112:D112) -> 0
B113: Dublin Cast Iron - S | C113: 60 | D113: 0 | E113: 0
B114: Cork Cast Iron - S | C114: 60 | D114: 0 | E114: 0
B115: Meters - S | C115: 15 | D115: 0 | E115: 0
B116: Land - S | C116: 40 | D116: 0 | E116: 0
B117: Buildings - S | C117: 40 | D117: 0 | E117: 0
B118: Equipment - S | C118: 5 | D118: 0 | E118: 0
B119: Sum: | D119: =SUM(D112:D118) -> 0 | E119: 0
B121: Total historic cost | D121: =D109+D119 -> 16.87763926 | E121: =SUM(D121:D121) -> 16.87763926
B123: Indexed gross value of efficiency savings in 2010/2011 prices | G123: Revenue for 5 years, 10/11 prices
B124: Distribution business unit - direct | C124: Asset life | E124: Total | G124: Depreciation | H124: Return | I124: Total
B125: Pipelines/Above ground installations | C125: 60 | D125: =D102*Indexation!$Z$4 -> 16.11579342 | E125: =SUM(D125:D125) -> 16.11579342 | G125: =E125/C125*5 -> 1.342982785 | H125: =(E125*$H$2)+((E125-(E125/C125*1))*PC2_inputs!$K$2)+((E125-(E125/C125*2))*PC2_inputs!$K$2)+((E125-(E125/C125*3))*PC2_inputs!$K$2)+((E125-(E125/C125*4))*PC2_inputs!$K$2) -> 4.137461365 | I125: =G125+H125 -> 5.48044415
B126: Dublin Cast Iron | C126: 60 | D126: =D103*Indexation!$Z$4 -> 0 | E126: 0 | G126: 0 | H126: =(E126*$H$2)+((E126-(E126/C126*1))*PC2_inputs!$K$2)+((E126-(E126/C126*2))*PC2_inputs!$K$2)+((E126-(E126/C126*3))*PC2_inputs!$K$2)+((E126-(E126/C126*4))*PC2_inputs!$K$2) -> 0 | I126: =G126+H126 -> 0
B127: Cork Cast Iron | C127: 60 | D127: =D104*Indexation!$Z$4 -> 0 | E127: 0 | G127: 0 | H127: =(E127*$H$2)+((E127-(E127/C127*1))*PC2_inputs!$K$2)+((E127-(E127/C127*2))*PC2_inputs!$K$2)+((E127-(E127/C127*3))*PC2_inputs!$K$2)+((E127-(E127/C127*4))*PC2_inputs!$K$2) -> 0 | I127: 0
B128: Meters | C128: 15 | D128: =D105*Indexation!$Z$4 -> 0.9229582965 | E128: 0.9229582965 | G128: 0.3076527655 | H128: =(E128*$H$2)+((E128-(E128/C128*1))*PC2_inputs!$K$2)+((E128-(E128/C128*2))*PC2_inputs!$K$2)+((E128-(E128/C128*3))*PC2_inputs!$K$2)+((E128-(E128/C128*4))*PC2_inputs!$K$2) -> 0.2129572443 | I128: 0.5206100098
B129: Land | C129: 40 | D129: =D106*Indexation!$Z$4 -> 0 | E129: 0 | G129: 0 | H129: =(E129*$H$2)+((E129-(E129/C129*1))*PC2_inputs!$K$2)+((E129-(E129/C129*2))*PC2_inputs!$K$2)+((E129-(E129/C129*3))*PC2_inputs!$K$2)+((E129-(E129/C129*4))*PC2_inputs!$K$2) -> 0 | I129: 0
B130: Buildings | C130: 40 | D130: =D107*Indexation!$Z$4 -> 0 | E130: 0 | G130: 0 | H130: =(E130*$H$2)+((E130-(E130/C130*1))*PC2_inputs!$K$2)+((E130-(E130/C130*2))*PC2_inputs!$K$2)+((E130-(E130/C130*3))*PC2_inputs!$K$2)+((E130-(E130/C130*4))*PC2_inputs!$K$2) -> 0 | I130: 0
B131: Equipment | C131: 5 | D131: =D108*Indexation!$Z$4 -> 0 | E131: 0 | G131: 0 | H131: =(E131*$H$2)+((E131-(E131/C131*1))*PC2_inputs!$K$2)+((E131-(E131/C131*2))*PC2_inputs!$K$2)+((E131-(E131/C131*3))*PC2_inputs!$K$2)+((E131-(E131/C131*4))*PC2_inputs!$K$2) -> 0 | I131: 0
B132: Sum: | D132: =SUM(D125:D131) -> 17.03875172 | E132: 17.03875172 | G132: =SUM(G125:G131) -> 1.650635551 | H132: =SUM(H125:H131) -> 4.350418609 | I132: 6.00105416
B134: Distribution business unit - shared
B135: Pipelines/Above ground installations | C135: 60 | D135: =D112*Indexation!$Z$4 -> 0 | E135: =SUM(D135:D135) -> 0 | G135: =E135/C135*5 -> 0 | H135: =(E135*$H$2)+((E135-(E135/C135*1))*PC2_inputs!$K$2)+((E135-(E135/C135*2))*PC2_inputs!$K$2)+((E135-(E135/C135*3))*PC2_inputs!$K$2)+((E135-(E135/C135*4))*PC2_inputs!$K$2) -> 0 | I135: 0
B136: Dublin Cast Iron | C136: 60 | D136: =D113*Indexation!$Z$4 -> 0 | E136: 0 | G136: 0 | H136: =(E136*$H$2)+((E136-(E136/C136*1))*PC2_inputs!$K$2)+((E136-(E136/C136*2))*PC2_inputs!$K$2)+((E136-(E136/C136*3))*PC2_inputs!$K$2)+((E136-(E136/C136*4))*PC2_inputs!$K$2) -> 0 | I136: 0
B137: Cork Cast Iron | C137: 60 | D137: =D114*Indexation!$Z$4 -> 0 | E137: 0 | G137: 0 | H137: =(E137*$H$2)+((E137-(E137/C137*1))*PC2_inputs!$K$2)+((E137-(E137/C137*2))*PC2_inputs!$K$2)+((E137-(E137/C137*3))*PC2_inputs!$K$2)+((E137-(E137/C137*4))*PC2_inputs!$K$2) -> 0 | I137: 0
B138: Meters | C138: 15 | D138: =D115*Indexation!$Z$4 -> 0 | E138: 0 | G138: 0 | H138: =(E138*$H$2)+((E138-(E138/C138*1))*PC2_inputs!$K$2)+((E138-(E138/C138*2))*PC2_inputs!$K$2)+((E138-(E138/C138*3))*PC2_inputs!$K$2)+((E138-(E138/C138*4))*PC2_inputs!$K$2) -> 0 | I138: 0
B139: Land | C139: 40 | D139: =D116*Indexation!$Z$4 -> 0 | E139: 0 | G139: 0 | H139: =(E139*$H$2)+((E139-(E139/C139*1))*PC2_inputs!$K$2)+((E139-(E139/C139*2))*PC2_inputs!$K$2)+((E139-(E139/C139*3))*PC2_inputs!$K$2)+((E139-(E139/C139*4))*PC2_inputs!$K$2) -> 0 | I139: 0
B140: Buildings | C140: 40 | D140: =D117*Indexation!$Z$4 -> 0 | E140: 0 | G140: 0 | H140: =(E140*$H$2)+((E140-(E140/C140*1))*PC2_inputs!$K$2)+((E140-(E140/C140*2))*PC2_inputs!$K$2)+((E140-(E140/C140*3))*PC2_inputs!$K$2)+((E140-(E140/C140*4))*PC2_inputs!$K$2) -> 0 | I140: 0
B141: Equipment | C141: 5 | D141: =D118*Indexation!$Z$4 -> 0 | E141: 0 | G141: 0 | H141: =(E141*$H$2)+((E141-(E141/C141*1))*PC2_inputs!$K$2)+((E141-(E141/C141*2))*PC2_inputs!$K$2)+((E141-(E141/C141*3))*PC2_inputs!$K$2)+((E141-(E141/C141*4))*PC2_inputs!$K$2) -> 0 | I141: 0
B142: Sum: | D142: =SUM(D135:D141) -> 0 | E142: 0 | G142: =SUM(G135:G141) -> 0 | H142: =SUM(H135:H141) -> 0 | I142: 0
B144: Total indexed gross value of efficiency savings | D144: =D132+D142 -> 17.03875172 | E144: =SUM(D144:D144) -> 17.03875172 | G144: =SUM(G132+G142) -> 1.650635551 | H144: =SUM(H132+H142) -> 4.350418609 | I144: 6.00105416
B146: REVENUE RELATED TO EFFICIENT DEFFERALS
B148: Historic cost of efficient deferrals, nominal to 2010, 10/11 prices thereafter
C149: Asset life | E149: Total
B150: Pipelines/Above ground installations | C150: 60 | D150: 0 | E150: =SUM(D150:D150) -> 0
B151: Dublin Cast Iron | C151: 60 | D151: 0 | E151: 0
B152: Cork Cast Iron | C152: 60 | D152: 0 | E152: 0
B153: Meters | C153: 15 | D153: 0 | E153: 0
B154: Land | C154: 40 | D154: 0 | E154: 0
B155: Buildings | C155: 40 | D155: 0 | E155: 0
B156: Equipment | C156: 5 | D156: 0 | E156: 0
B158: Total historic cost | D158: =SUM(D150:D156) -> 0 | E158: =SUM(D158:D158) -> 0
B160: Indexed gross value of efficient deferrals in 2010/2011 prices | G160: Revenue for 5 years, 10/11 prices
C161: Asset life | E161: Total | G161: Depreciation | H161: Return | I161: Total
B162: =B150 -> Pipelines/Above ground installations | C162: =C150 -> 60 | D162: =D150*Indexation!$Z$4 -> 0 | E162: =SUM(D162:D162) -> 0 | G162: =E162/C162*0.5 -> 0 | H162: =(E162*POWER($H$2,0.5)) -> 0 | I162: =G162+H162 -> 0
B163: =B151 -> Dublin Cast Iron | C163: 60 | D163: =D151*Indexation!$Z$4 -> 0 | E163: 0 | G163: =E163/C163*0.5 -> 0 | H163: 0 | I163: =G163+H163 -> 0
B164: Cork Cast Iron | C164: 60 | D164: =D152*Indexation!$Z$4 -> 0 | E164: 0 | G164: 0 | H164: 0 | I164: 0
B165: Meters | C165: 15 | D165: =D153*Indexation!$Z$4 -> 0 | E165: 0 | G165: 0 | H165: 0 | I165: 0
B166: Land | C166: 40 | D166: =D154*Indexation!$Z$4 -> 0 | E166: 0 | G166: 0 | H166: 0 | I166: 0
B167: Buildings | C167: 40 | D167: =D155*Indexation!$Z$4 -> 0 | E167: 0 | G167: 0 | H167: 0 | I167: 0
B168: Equipment | C168: 5 | D168: =D156*Indexation!$Z$4 -> 0 | E168: 0 | G168: 0 | H168: 0 | I168: 0
B170: Total indexed gross value of efficient deferrals | D170: =SUM(D162:D168) -> 0 | E170: =SUM(D170:D170) -> 0 | G170: =SUM(G162:G168) -> 0 | H170: =SUM(H162:H168) -> 0 | I170: =G170+H170 -> 0

Sheet Indexation
B2: 1983 | C2: 1984 | D2: 1985 | E2: 1986 | F2: 1987 | G2: 1988 | H2: 1989 | I2: 1990 | J2: 1991 | K2: 1992 | L2: 1993 | M2: 1994 | N2: 1995 | O2: 1996 | P2: 1997 | Q2: 1998 | R2: 1999 | S2: 2000 | T2: 2001 | U2: 2002 | V2: 2003 | W2: 2004 | X2: 2005 | Y2: 2006 | Z2: 2007 | AA2: 2008 | AB2: 2009 | AC2: 2010 | AD2: 2011 | AE2: 2012
A3: Indexation (CPI to 2001, HICP for 2002 & later years) | B3: 0.104 | C3: 0.086 | D3: 0.054 | E3: 0.039 | F3: 0.032 | G3: 0.021 | H3: 0.04 | I3: 0.034 | J3: 0.032 | K3: 0.03 | L3: 0.015 | M3: 0.024 | N3: 0.025 | O3: 0.016 | P3: 0.015 | Q3: 0.024 | R3: 0.016 | S3: 0.056 | T3: 0.049 | U3: 0.046 | V3: 0.04 | W3: 0.023 | X3: 0.022 | Y3: 0.027 | Z3: 0.028 | AA3: 0.031 | AB3: -0.017 | AC3: -0.016 | AD3: 0.0123222749
A4: Multiplier to bring to 2011 prices | B4: =1*(1+C3)*C4 -> 2.198498101 | C4: =1*(1+D3)*D4 -> 2.024399724 | D4: 1.920682851 | E4: 1.848587922 | F4: =1*(1+G3)*G4 -> 1.791267366 | G4: =1*(1+H3)*H4 -> 1.754424452 | H4: 1.686946589 | I4: 1.631476392 | J4: 1.580887976 | K4: 1.534842695 | L4: 1.512160291 | M4: 1.476719034 | N4: 1.440701497 | O4: 1.418013284 | P4: 1.397057423 | Q4: 1.36431389 | R4: 1.342828631 | S4: 1.271618022 | T4: 1.212219278 | U4: 1.158909443 | V4: 1.114336003 | W4: =1*(1+X3)*X4 -> 1.089282505 | X4: =1*(1+Y3)*Y4 -> 1.065834154 | Y4: 1.037813198 | Z4: =1*(1+AA3)*AA4 -> 1.009545912 | AA4: 0.9791909915 | AB4: 0.9961251185 | AC4: =1*(1+AD3) -> 1.012322275 | AD4: 1 | AE4: =1-AE3 -> 1
B6: 05/06 | C6: 06/07 | D6: 07/08 | E6: 08/09 | F6: 09/10 | G6: 10/11
A7: Indexation | C7: 0.029 | D7: 0.037 | E7: -0.007 | F7: -0.024 | G7: 0.012 | I7: Ref: These are Irish HICP figures on an April to March basis
A8: Multiplier to bring to 10/11 prices | B8: =1*(1+C7)*(1+D7)*(1+E7)*(1+F7)*(1+G7) -> 1.046583081 | C8: =1*(1+D7)*(1+E7)*(1+F7)*(1+G7) -> 1.017087543 | D8: =1*(1+E7)*(1+F7)*(1+G7) -> 0.980798016 | E8: =1*(1+F7)*(1+G7) -> 0.987712 | F8: =1*(1+G7) -> 1.012 | G8: =1 -> 1

Sheet PC3 distribution RAB
B1: Vaue used in calculations | D1: 2007 | E1: 2008 | F1: 2009 | G1: 2010 | H1: 2011 | I1: 2012 | J1: 2013 | K1: 2014 | L1: 2015 | M1: 2016 | N1: 2017 | O1: 2018 | U1: 06/07 | V1: PC2 | AB1: Important points: | AE1: The worksheet is calendar year up to 2006 and then moves to gas year. All prices in €m
B2: Date | D2: 2006-10-01 | E2: 2007-10-01 | F2: 2008-10-01 | G2: 2009-10-01 | H2: 2010-10-01 | I2: 2011-10-01 | J2: 2012-10-01 | K2: 2013-10-01 | L2: 2014-10-01 | M2: 2015-10-01 | N2: 2016-10-01 | O2: 2017-10-01 | R2: Value used for depreciation cal | U2: -0.75 | V2: -0.5 | Y2: Y1 | Z2: Y2
B3: NBV of opening asset base | D3: =AU151 -> 1099.977759 | E3: =AU271 -> 1122.628402 | F3: =AU391 -> 1177.686642 | G3: =AU512 -> 1241.032512 | H3: =AU633 -> 1240.339886 | I3: =AU754 -> 1269.296045 | J3: =AU827 -> 1288.533302 | K3: =AU900 -> 1305.820617 | L3: =AU973 -> 1322.096333 | M3: =AU1046 -> 1338.943925 | N3: =AU1119 -> 1340.325495 | O3: =AU1192 -> 1349.022205 | V3: 0 | X3: 06/07 | Y3: 0.5 | Z3: 0.5
X4: PC2 | Y4: 0.25 | Z4: 0.25 | AD4: Oct to Dec | AE4: Jan to Sept | AF4: Oct to Dec | AG4: Jan to Sept | AH4: Oct to Dec | AI4: Jan to Sept | AJ4: Oct to Dec | AK4: Jan to Sept | AL4: Oct to Dec | AM4: Jan to Sept
AC5: Jan to Sept | AD5: 2006/ | AE5: 2006 | AF5: 2007 | AG5: 2007 | AH5: 2008 | AI5: 2008 | AJ5: 2009 | AK5: 2009 | AL5: 2010 | AM5: 2010 | AN5: 2011/ | AO5: 2012/ | AP5: 2013/ | AQ5: 2014/ | AR5: 2015/ | AS5: 2016/
A6: Date | C6: Asset life | D6: 1975 | E6: 1976 | F6: 1983 | G6: 1984 | H6: 1985 | I6: 1986 | J6: 1987 | K6: 1988 | L6: 1989 | M6: 1990 | N6: 1991 | O6: 1992 | P6: 1993 | Q6: 1994 | R6: 1995 | S6: 1996 | T6: 1997 | U6: 1998 | V6: 1999 | W6: 2000 | X6: 2001 | Y6: 2002 | Z6: 2003 | AA6: 2004 | AB6: 2005 | AC6: 2006 | AD6: 2007 | AE6: 2007 | AF6: 2008 | AG6: 2008 | AH6: 2009 | AI6: 2009 | AJ6: 2010 | AK6: 2010 | AL6: 2011 | AM6: 2011 | AN6: 2012 | AO6: 2013 | AP6: 2014 | AQ6: 2015 | AR6: 2016 | AS6: 2017 | AT6: 2018 | AU6: Total
A8: @ Sept 06 | B8: Historic cost, nominal to 2010, 10/11 prices thereafter
A9: Prior to reclassifications | B9: Distribution business unit - direct
B10: Pipelines/Above ground installations - D | C10: 60 | D10: 0 | E10: 0 | F10: 0 | G10: 0.081 | H10: -1.00388032 | I10: 4.7651048 | J10: 14.49017662 | K10: 19.67920898 | L10: 14.60889192 | M10: 22.62575049 | N10: 29.11871289 | O10: 25.05809471 | P10: 28.96549614 | Q10: 29.93047803 | R10: 34.23449523 | S10: 38.24430015 | T10: 52.60952482 | U10: 60.53537871 | V10: 61.73618178 | W10: 71.728549 | X10: 79.964538 | Y10: 56.23730287 | Z10: 67.636489 | AA10: 61.859692 | AB10: 61.363534 | AC10: =54.39815 -> 54.39815 | AU10: =SUM(D10:AS10) -> 888.8671698
B11: Dublin Cast Iron - D | C11: 60 | J11: 20.35689954 | AU11: =SUM(D11:AS11) -> 20.35689954
B12: Cork Cast Iron - D | C12: 60 | H12: 0.42793187 | AU12: 0.42793187
B13: Meters - D | C13: 15 | F13: 0.48503995 | G13: 0.96527393 | H13: 1.98939515 | I13: 0.6408203 | J13: 1.17537241 | K13: 2.53242272 | L13: 2.98949483 | M13: 3.82523579 | N13: 5.57307089 | O13: 4.66865004 | P13: 4.33983397 | Q13: 4.07568568 | R13: 4.55464904 | S13: 5.39355644 | T13: 10.23484425 | U13: 5.84694536 | V13: 6.61644778 | W13: 6.03893302 | X13: 8.59689683 | Y13: 8.66183416 | Z13: 10.06284189 | AA13: 10.87617561 | AB13: 11.40606462 | AC13: =8.79543464 -> 8.79543464 | AU13: 130.3449193
B14: Land - D | C14: 40 | AU14: =SUM(D14:AS14) -> 0
B15: Buildings - D | C15: 40 | J15: 0 | R15: 0 | S15: 0.54697079 | T15: 0 | U15: 0 | Y15: 0 | Z15: 0 | AU15: =SUM(D15:AS15) -> 0.54697079
B16: Equipment - D | C16: 5 | P16: 0.93462311 | Q16: 6.51021509 | R16: 0.79756244 | S16: 2.0785666 | T16: 1.10142143 | U16: 1.31673819 | V16: 0.9324495 | W16: 3.07198586 | X16: 3.5681277 | Y16: 1.69650889 | Z16: 1.46115966 | AA16: 0.70969133 | AB16: 0.35295372 | AC16: =0.29430539 -> 0.29430539 | AU16: 24.82630891
B17: ITO setup | C17: 15
B18: Sum: | D18: =SUM(D10:D17) -> 0 | E18: =SUM(E10:E17) -> 0 | F18: 0.48503995 | G18: 1.04627393 | H18: 1.4134467 | I18: 5.4059251 | J18: 36.02244857 | K18: 22.2116317 | L18: 17.59838675 | M18: 26.45098628 | N18: 34.69178378 | O18: 29.72674475 | P18: 34.23995322 | Q18: 40.5163788 | R18: 39.58670671 | S18: 46.26339398 | T18: 63.9457905 | U18: 67.69906226 | V18: 69.28507906 | W18: 80.83946788 | X18: 92.12956253 | Y18: 66.59564592 | Z18: 79.16049055 | AA18: 73.44555894 | AB18: 73.12255234 | AC18: 63.48789003 | AU18: =SUM(D18:AS18) -> 1065.3702
B20: Distribution business unit - shared
B21: Pipelines/Above ground installations - S | C21: 60 | AU21: =SUM(D21:AS21) -> 0
B22: Dublin Cast Iron - S | C22: 60 | AU22: =SUM(D22:AS22) -> 0
B23: Cork Cast Iron - S | C23: 60 | AU23: 0
B24: Meters - S | C24: 15 | AU24: 0
B25: Land - S | C25: 40 | Q25: 0.040491952 | R25: 0.109684308 | U25: 0.007034348 | AU25: 0.157210608
B26: Buildings - S | C26: 40 | J26: 0.1216437048 | R26: 0.0399976704 | W26: 6.382629965 | X26: 3.207322501 | Y26: 5.492995628 | Z26: 0.4214746116 | AA26: 0.1658217888 | AB26: 0.184576554 | AC26: =0.1473808464 -> 0.1473808464 | AU26: 16.16384327
B27: Equipment - S | C27: 5 | R27: 0.566467002 | S27: 0.172487914 | T27: 0.367526598 | U27: 0.173944316 | V27: 0.291518072 | W27: 0.953605534 | X27: 0.65340549 | Y27: 0.655723606 | Z27: 0.509586598 | AA27: 0.126721482 | AB27: 0.832882922 | AC27: =0.105882314 -> 0.105882314 | AU27: 5.409751848
B28: Sum: | D28: =SUM(D21:D27) -> 0 | E28: =SUM(E21:E27) -> 0 | F28: =SUM(F21:F27) -> 0 | G28: =SUM(G21:G27) -> 0 | H28: 0 | I28: 0 | J28: 0.1216437048 | K28: 0 | L28: 0 | M28: 0 | N28: 0 | O28: 0 | P28: 0 | Q28: 0.040491952 | R28: 0.7161489804 | S28: 0.172487914 | T28: 0.367526598 | U28: 0.180978664 | V28: 0.291518072 | W28: 7.336235499 | X28: 3.860727991 | Y28: 6.148719234 | Z28: 0.9310612096 | AA28: 0.2925432708 | AB28: 1.017459476 | AC28: =SUM(AC21:AC27) -> 0.2532631604 | AU28: =SUM(D28:AS28) -> 21.73080573
B30: Total historic cost | D30: =D18+D28 -> 0 | E30: 0 | F30: 0.48503995 | G30: 1.04627393 | H30: 1.4134467 | I30: 5.4059251 | J30: 36.14409227 | K30: 22.2116317 | L30: 17.59838675 | M30: 26.45098628 | N30: 34.69178378 | O30: 29.72674475 | P30: 34.23995322 | Q30: 40.55687075 | R30: 40.30285569 | S30: 46.43588189 | T30: 64.3133171 | U30: 67.88004092 | V30: 69.57659713 | W30: 88.17570338 | X30: 95.99029052 | Y30: 72.74436515 | Z30: 80.09155176 | AA30: 73.73810221 | AB30: 74.14001182 | AC30: 63.74115319 | AU30: =SUM(D30:AS30) -> 1087.101006
A32: @ Sept 06 | B32: Reclassifications, nominal to 2010, 10/11 prices thereafter
B33: Distribution business unit - direct
B34: Pipelines/Above ground installations | C34: 60 | AU34: =SUM(D34:AS34) -> 0
B35: Dublin Cast Iron | C35: 60 | AU35: =SUM(D35:AS35) -> 0
B36: Cork Cast Iron | C36: 60 | AU36: 0
B37: Meters | C37: 15 | AU37: 0
B38: Land | C38: 40 | AU38: 0
B39: Buildings | C39: 40 | AU39: 0
B40: Equipment | C40: 5 | AU40: 0
B41: ITO setup | C41: 15
B42: Sum: | D42: =SUM(D34:D41) -> 0 | E42: 0 | F42: 0 | G42: 0 | H42: 0 | I42: 0 | J42: 0 | K42: 0 | L42: 0 | M42: 0 | N42: 0 | O42: 0 | P42: 0 | Q42: 0 | R42: 0 | S42: 0 | T42: 0 | U42: 0 | V42: 0 | W42: 0 | X42: 0 | Y42: 0 | Z42: 0 | AA42: 0 | AB42: 0 | AC42: =SUM(AC34:AC41) -> 0 | AU42: =SUM(D42:AS42) -> 0
B44: Distribution business unit - shared
B45: Pipelines/Above ground installations | C45: 60 | AU45: =SUM(D45:AS45) -> 0
B46: Dublin Cast Iron | C46: 60 | AU46: =SUM(D46:AS46) -> 0
B47: Cork Cast Iron | C47: 60 | AU47: 0
B48: Meters | C48: 15 | AU48: =SUM(D48:AS48) -> 0
B49: Land | C49: 40 | AU49: 0
B50: Buildings | C50: 40 | AU50: 0
B51: Equipment | C51: 5 | AU51: 0
B52: Sum: | D52: =SUM(D45:D51) -> 0 | E52: =SUM(E45:E51) -> 0 | F52: =SUM(F45:F51) -> 0 | G52: =SUM(G45:G51) -> 0 | H52: 0 | I52: 0 | J52: 0 | K52: 0 | L52: 0 | M52: 0 | N52: 0 | O52: 0 | P52: 0 | Q52: 0 | R52: 0 | S52: 0 | T52: 0 | U52: 0 | V52: 0 | W52: 0 | X52: 0 | Y52: 0 | Z52: 0 | AA52: 0 | AB52: 0 | AC52: 0 | AU52: =SUM(D52:AS52) -> 0
B54: Total indexed gross asset value | D54: =D42+D52 -> 0 | E54: 0 | F54: =F42+F52 -> 0 | G54: 0 | H54: 0 | I54: 0 | J54: 0 | K54: 0 | L54: 0 | M54: 0 | N54: 0 | O54: 0 | P54: 0 | Q54: 0 | R54: 0 | S54: 0 | T54: 0 | U54: 0 | V54: 0 | W54: 0 | X54: 0 | Y54: 0 | Z54: 0 | AA54: 0 | AB54: 0 | AC54: 0 | AU54: =SUM(D54:AS54) -> 0
A56: @ Sept 06 | B56: Adjustments related to unused accruals & work, during PC2 or later, on assets that were capitalised pre PC2 (nominal to 2010, 10/11 prices thereafter)
B57: Distribution business unit - direct
B58: Pipelines/Above ground installations | C58: 60 | AU58: =SUM(D58:AS58) -> 0
B59: Dublin Cast Iron | C59: 60 | AU59: 0
B60: Cork Cast Iron | C60: 60 | AU60: 0
B61: Meters | C61: 15 | AU61: 0
B62: Land | C62: 40 | AU62: 0
B63: Buildings | C63: 40 | AU63: 0
B64: Equipment | C64: 5 | AU64: 0
B65: ITO setup | C65: 15 | AU65: 0
B66: Sum: | D66: =SUM(D58:D65) -> 0 | E66: 0 | F66: 0 | G66: 0 | H66: 0 | I66: 0 | J66: 0 | K66: 0 | L66: 0 | M66: 0 | N66: 0 | O66: 0 | P66: 0 | Q66: 0 | R66: 0 | S66: 0 | T66: 0 | U66: 0 | V66: 0 | W66: 0 | X66: 0 | Y66: 0 | Z66: 0 | AA66: 0 | AB66: 0 | AC66: =SUM(AC58:AC65) -> 0 | AU66: 0
B68: Distribution business unit - shared
B69: Pipelines/Above ground installations | C69: 60 | AU69: =SUM(D69:AS69) -> 0
B70: Dublin Cast Iron | C70: 60 | AU70: 0
B71: Cork Cast Iron | C71: 60 | AU71: 0
B72: Meters | C72: 15 | AU72: 0
B73: Land | C73: 40 | AU73: 0
B74: Buildings | C74: 40 | AU74: 0
B75: Equipment | C75: 5 | AU75: 0
B76: Sum: | D76: =SUM(D69:D75) -> 0 | E76: =SUM(E69:E75) -> 0 | F76: =SUM(F69:F75) -> 0 | G76: =SUM(G69:G75) -> 0 | H76: 0 | I76: 0 | J76: 0 | K76: 0 | L76: 0 | M76: 0 | N76: 0 | O76: 0 | P76: 0 | Q76: 0 | R76: 0 | S76: 0 | T76: 0 | U76: 0 | V76: 0 | W76: 0 | X76: 0 | Y76: 0 | Z76: =SUM(Z69:Z75) -> 0 | AA76: 0 | AB76: 0 | AC76: =SUM(AC69:AC75) -> 0 | AU76: 0
B78: Total indexed net book value | D78: =D66+D76 -> 0 | E78: =E66+E76 -> 0 | F78: =F66+F76 -> 0 | G78: =G66+G76 -> 0 | H78: =H66+H76 -> 0 | I78: 0 | J78: 0 | K78: 0 | L78: 0 | M78: 0 | N78: 0 | O78: 0 | P78: 0 | Q78: 0 | R78: 0 | S78: 0 | T78: 0 | U78: 0 | V78: 0 | W78: 0 | X78: 0 | Y78: 0 | Z78: 0 | AA78: 0 | AB78: 0 | AC78: 0 | AU78: =SUM(D78:AS78) -> 0
A81: @ Sept 06 | B81: Historic cost, nominal to 2010, 10/11 prices thereafter
A82: Following reclassifications | B82: Distribution business unit - direct
B83: Pipelines/Above ground installations - D | C83: 60 | D83: =D10+D34+D58 -> 0 | E83: =E10+E34+E58 -> 0 | F83: 0 | G83: 0.081 | H83: -1.00388032 | I83: 4.7651048 | J83: 14.49017662 | K83: 19.67920898 | L83: 14.60889192 | M83: 22.62575049 | N83: 29.11871289 | O83: 25.05809471 | P83: 28.96549614 | Q83: =Q10+Q34+Q58 -> 29.93047803 | R83: 34.23449523 | S83: 38.24430015 | T83: 52.60952482 | U83: 60.53537871 | V83: 61.73618178 | W83: 71.728549 | X83: 79.964538 | Y83: 56.23730287 | Z83: 67.636489 | AA83: 61.859692 | AB83: 61.363534 | AC83: 54.39815 | AU83: =SUM(D83:AS83) -> 888.8671698
B84: Dublin Cast Iron - D | C84: 60 | D84: =D11+D35+D59 -> 0 | E84: 0 | F84: 0 | G84: 0 | H84: 0 | I84: 0 | J84: 20.35689954 | K84: 0 | L84: 0 | M84: 0 | N84: 0 | O84: 0 | P84: =P11+P35+P59 -> 0 | Q84: =Q11+Q35+Q59 -> 0 | R84: 0 | S84: 0 | T84: 0 | U84: 0 | V84: 0 | W84: 0 | X84: 0 | Y84: 0 | Z84: 0 | AA84: 0 | AB84: 0 | AC84: 0 | AU84: 20.35689954
B85: Cork Cast Iron - D | C85: 60 | D85: 0 | E85: 0 | F85: 0 | G85: 0 | H85: 0.42793187 | I85: 0 | J85: 0 | K85: 0 | L85: 0 | M85: 0 | N85: 0 | O85: 0 | P85: 0 | Q85: =Q12+Q36+Q60 -> 0 | R85: 0 | S85: 0 | T85: 0 | U85: 0 | V85: 0 | W85: 0 | X85: 0 | Y85: 0 | Z85: 0 | AA85: 0 | AB85: 0 | AC85: 0 | AU85: 0.42793187
B86: Meters - D | C86: 15 | D86: 0 | E86: 0 | F86: 0.48503995 | G86: 0.96527393 | H86: 1.98939515 | I86: 0.6408203 | J86: 1.17537241 | K86: 2.53242272 | L86: 2.98949483 | M86: 3.82523579 | N86: 5.57307089 | O86: 4.66865004 | P86: 4.33983397 | Q86: =Q13+Q37+Q61 -> 4.07568568 | R86: 4.55464904 | S86: 5.39355644 | T86: 10.23484425 | U86: 5.84694536 | V86: 6.61644778 | W86: 6.03893302 | X86: 8.59689683 | Y86: 8.66183416 | Z86: 10.06284189 | AA86: 10.87617561 | AB86: 11.40606462 | AC86: 8.79543464 | AU86: 130.3449193
B87: Land - D | C87: 40 | D87: 0 | E87: 0 | F87: 0 | G87: 0 | H87: 0 | I87: 0 | J87: 0 | K87: 0 | L87: 0 | M87: 0 | N87: 0 | O87: 0 | P87: 0 | Q87: =Q14+Q38+Q62 -> 0 | R87: 0 | S87: 0 | T87: 0 | U87: 0 | V87: 0 | W87: 0 | X87: 0 | Y87: 0 | Z87: 0 | AA87: 0 | AB87: 0 | AC87: 0 | AU87: 0
B88: Buildings - D | C88: 40 | D88: 0 | E88: 0 | F88: 0 | G88: 0 | H88: 0 | I88: 0 | J88: 0 | K88: 0 | L88: 0 | M88: 0 | N88: 0 | O88: 0 | P88: 0 | Q88: =Q15+Q39+Q63 -> 0 | R88: 0 | S88: 0.54697079 | T88: 0 | U88: 0 | V88: 0 | W88: 0 | X88: 0 | Y88: 0 | Z88: 0 | AA88: 0 | AB88: 0 | AC88: 0 | AU88: 0.54697079
B89: Equipment - D | C89: 5 | D89: 0 | E89: 0 | F89: 0 | G89: 0 | H89: 0 | I89: 0 | J89: 0 | K89: 0 | L89: 0 | M89: 0 | N89: 0 | O89: 0 | P89: 0.93462311 | Q89: =Q16+Q40+Q64 -> 6.51021509 | R89: 0.79756244 | S89: 2.0785666 | T89: 1.10142143 | U89: 1.31673819 | V89: 0.9324495 | W89: 3.07198586 | X89: 3.5681277 | Y89: 1.69650889 | Z89: 1.46115966 | AA89: 0.70969133 | AB89: 0.35295372 | AC89: =AC16+AC40+AC64 -> 0.29430539 | AU89: 24.82630891
B90: ITO setup | C90: 15 | D90: 0 | E90: 0 | F90: 0 | G90: 0 | H90: 0 | I90: 0 | J90: 0 | K90: 0 | L90: 0 | M90: 0 | N90: 0 | O90: 0 | P90: 0 | Q90: =Q17+Q41+Q65 -> 0 | R90: 0 | S90: 0 | T90: 0 | U90: 0 | V90: 0 | W90: 0 | X90: 0 | Y90: 0 | Z90: 0 | AA90: 0 | AB90: 0 | AC90: 0
B91: Sum: | D91: =SUM(D83:D90) -> 0 | E91: =SUM(E83:E90) -> 0 | F91: 0.48503995 | G91: 1.04627393 | H91: 1.4134467 | I91: 5.4059251 | J91: 36.02244857 | K91: 22.2116317 | L91: 17.59838675 | M91: 26.45098628 | N91: 34.69178378 | O91: 29.72674475 | P91: 34.23995322 | Q91: 40.5163788 | R91: 39.58670671 | S91: 46.26339398 | T91: 63.9457905 | U91: 67.69906226 | V91: 69.28507906 | W91: 80.83946788 | X91: 92.12956253 | Y91: 66.59564592 | Z91: 79.16049055 | AA91: 73.44555894 | AB91: 73.12255234 | AC91: =SUM(AC83:AC90) -> 63.48789003 | AU91: =SUM(D91:AS91) -> 1065.3702
B93: Distribution business unit - shared
B94: Pipelines/Above ground installations - S | C94: 60 | D94: =D21+D45+D69 -> 0 | E94: 0 | F94: 0 | G94: 0 | H94: 0 | I94: 0 | J94: 0 | K94: 0 | L94: 0 | M94: 0 | N94: 0 | O94: 0 | P94: 0 | Q94: 0 | R94: 0 | S94: 0 | T94: 0 | U94: 0 | V94: 0 | W94: 0 | X94: 0 | Y94: 0 | Z94: 0 | AA94: 0 | AB94: 0 | AC94: 0 | AU94: =SUM(D94:AS94) -> 0
B95: Dublin Cast Iron - S | C95: 60 | D95: 0 | E95: 0 | F95: 0 | G95: 0 | H95: 0 | I95: 0 | J95: 0 | K95: 0 | L95: 0 | M95: 0 | N95: 0 | O95: 0 | P95: 0 | Q95: 0 | R95: 0 | S95: 0 | T95: 0 | U95: 0 | V95: 0 | W95: 0 | X95: 0 | Y95: 0 | Z95: 0 | AA95: 0 | AB95: 0 | AC95: 0 | AU95: =SUM(D95:AS95) -> 0
B96: Cork Cast Iron - S | C96: 60 | D96: 0 | E96: 0 | F96: 0 | G96: 0 | H96: 0 | I96: 0 | J96: 0 | K96: 0 | L96: 0 | M96: 0 | N96: 0 | O96: 0 | P96: 0 | Q96: 0 | R96: 0 | S96: 0 | T96: 0 | U96: 0 | V96: 0 | W96: 0 | X96: 0 | Y96: 0 | Z96: 0 | AA96: 0 | AB96: 0 | AC96: 0 | AU96: 0
B97: Meters - S | C97: 15 | D97: 0 | E97: 0 | F97: 0 | G97: 0 | H97: 0 | I97: 0 | J97: 0 | K97: 0 | L97: 0 | M97: 0 | N97: 0 | O97: 0 | P97: 0 | Q97: 0 | R97: 0 | S97: 0 | T97: 0 | U97: 0 | V97: 0 | W97: 0 | X97: 0 | Y97: 0 | Z97: 0 | AA97: 0 | AB97: 0 | AC97: 0 | AU97: 0
B98: Land - S | C98: 40 | D98: 0 | E98: 0 | F98: 0 | G98: 0 | H98: 0 | I98: 0 | J98: 0 | K98: 0 | L98: 0 | M98: 0 | N98: 0 | O98: 0 | P98: 0 | Q98: 0.040491952 | R98: 0.109684308 | S98: 0 | T98: 0 | U98: 0.007034348 | V98: 0 | W98: 0 | X98: 0 | Y98: 0 | Z98: 0 | AA98: 0 | AB98: 0 | AC98: 0 | AU98: 0.157210608
B99: Buildings - S | C99: 40 | D99: 0 | E99: 0 | F99: 0 | G99: 0 | H99: 0 | I99: 0 | J99: 0.1216437048 | K99: 0 | L99: 0 | M99: 0 | N99: 0 | O99: 0 | P99: 0 | Q99: =Q26+Q50+Q74 -> 0 | R99: 0.0399976704 | S99: 0 | T99: 0 | U99: 0 | V99: 0 | W99: 6.382629965 | X99: 3.207322501 | Y99: 5.492995628 | Z99: 0.4214746116 | AA99: 0.1658217888 | AB99: 0.184576554 | AC99: 0.1473808464 | AU99: 16.16384327
B100: Equipment - S | C100: 5 | D100: 0 | E100: 0 | F100: 0 | G100: 0 | H100: 0 | I100: 0 | J100: 0 | K100: 0 | L100: 0 | M100: =M27+M51+M75 -> 0 | N100: =N27+N51+N75 -> 0 | O100: =O27+O51+O75 -> 0 | P100: =P27+P51+P75 -> 0 | Q100: =Q27+Q51+Q75 -> 0 | R100: 0.566467002 | S100: 0.172487914 | T100: 0.367526598 | U100: 0.173944316 | V100: 0.291518072 | W100: 0.953605534 | X100: 0.65340549 | Y100: 0.655723606 | Z100: 0.509586598 | AA100: 0.126721482 | AB100: 0.832882922 | AC100: 0.105882314 | AU100: 5.409751848
B101: Sum: | D101: =SUM(D94:D100) -> 0 | E101: =SUM(E94:E100) -> 0 | F101: =SUM(F94:F100) -> 0 | G101: =SUM(G94:G100) -> 0 | H101: 0 | I101: 0 | J101: 0.1216437048 | K101: 0 | L101: 0 | M101: 0 | N101: 0 | O101: 0 | P101: 0 | Q101: 0.040491952 | R101: 0.7161489804 | S101: 0.172487914 | T101: 0.367526598 | U101: 0.180978664 | V101: 0.291518072 | W101: 7.336235499 | X101: 3.860727991 | Y101: 6.148719234 | Z101: 0.9310612096 | AA101: 0.2925432708 | AB101: 1.017459476 | AC101: =SUM(AC94:AC100) -> 0.2532631604 | AU101: =SUM(D101:AS101) -> 21.73080573
B103: Total historic cost | D103: =D91+D101 -> 0 | E103: 0 | F103: 0.48503995 | G103: 1.04627393 | H103: 1.4134467 | I103: 5.4059251 | J103: 36.14409227 | K103: 22.2116317 | L103: 17.59838675 | M103: 26.45098628 | N103: 34.69178378 | O103: 29.72674475 | P103: 34.23995322 | Q103: 40.55687075 | R103: 40.30285569 | S103: 46.43588189 | T103: 64.3133171 | U103: 67.88004092 | V103: 69.57659713 | W103: 88.17570338 | X103: 95.99029052 | Y103: 72.74436515 | Z103: 80.09155176 | AA103: 73.73810221 | AB103: 74.14001182 | AC103: 63.74115319 | AU103: =SUM(D103:AS103) -> 1087.101006
A105: @ Sept 06 | B105: Indexed gross asset value in 2010/2011 prices
B106: Distribution business unit - direct
B107: Pipelines/Above ground installations | C107: 60 | F107: =F83*Indexation!B$4 -> 0 | G107: =G83*Indexation!C$4 -> 0.1639763777 | H107: =H83*Indexation!D$4 -> -1.928135715 | I107: =I83*Indexation!E$4 -> 8.808715179 | J107: =J83*Indexation!F$4 -> 25.95578051 | K107: =K83*Indexation!G$4 -> 34.52568544 | L107: =L83*Indexation!H$4 -> 24.64442039 | M107: =M83*Indexation!I$4 -> 36.91337777 | N107: =N83*Indexation!J$4 -> 46.03342309 | O107: =O83*Indexation!K$4 -> 38.46023363 | P107: =P83*Indexation!L$4 -> 43.80047307 | Q107: =Q83*Indexation!M$4 -> 44.19890661 | R107: =R83*Indexation!N$4 -> 49.32168852 | S107: =S83*Indexation!O$4 -> 54.23092566 | T107: =T83*Indexation!P$4 -> 73.49852717 | U107: =U83*Indexation!Q$4 -> 82.58925799 | V107: =V83*Indexation!R$4 -> 82.90111249 | W107: =W83*Indexation!S$4 -> 91.21131562 | X107: =X83*Indexation!T$4 -> 96.93455449 | Y107: =Y83*Indexation!U$4 -> 65.17394136 | Z107: =Z83*Indexation!V$4 -> 75.36977482 | AA107: =AA83*Indexation!W$4 -> 67.38268029 | AB107: =AB83*Indexation!X$4 -> 65.40335035 | AC107: =AC83*Indexation!Y$4 -> 56.455118 | AU107: =SUM(D107:AS107) -> 1162.049103
B108: Dublin Cast Iron | C108: 60 | F108: =F84*Indexation!B$4 -> 0 | G108: =G84*Indexation!C$4 -> 0 | H108: =H84*Indexation!D$4 -> 0 | I108: =I84*Indexation!E$4 -> 0 | J108: =J84*Indexation!F$4 -> 36.46464982 | K108: =K84*Indexation!G$4 -> 0 | L108: =L84*Indexation!H$4 -> 0 | M108: =M84*Indexation!I$4 -> 0 | N108: =N84*Indexation!J$4 -> 0 | O108: =O84*Indexation!K$4 -> 0 | P108: =P84*Indexation!L$4 -> 0 | Q108: =Q84*Indexation!M$4 -> 0 | R108: =R84*Indexation!N$4 -> 0 | S108: =S84*Indexation!O$4 -> 0 | T108: =T84*Indexation!P$4 -> 0 | U108: =U84*Indexation!Q$4 -> 0 | V108: =V84*Indexation!R$4 -> 0 | W108: =W84*Indexation!S$4 -> 0 | X108: =X84*Indexation!T$4 -> 0 | Y108: =Y84*Indexation!U$4 -> 0 | Z108: =Z84*Indexation!V$4 -> 0 | AA108: =AA84*Indexation!W$4 -> 0 | AB108: =AB84*Indexation!X$4 -> 0 | AC108: =AC84*Indexation!Y$4 -> 0 | AU108: =SUM(D108:AS108) -> 36.46464982
B109: Cork Cast Iron | C109: 60 | F109: =F85*Indexation!B$4 -> 0 | G109: =G85*Indexation!C$4 -> 0 | H109: =H85*Indexation!D$4 -> 0.8219214039 | I109: =I85*Indexation!E$4 -> 0 | J109: =J85*Indexation!F$4 -> 0 | K109: =K85*Indexation!G$4 -> 0 | L109: =L85*Indexation!H$4 -> 0 | M109: =M85*Indexation!I$4 -> 0 | N109: =N85*Indexation!J$4 -> 0 | O109: =O85*Indexation!K$4 -> 0 | P109: =P85*Indexation!L$4 -> 0 | Q109: =Q85*Indexation!M$4 -> 0 | R109: =R85*Indexation!N$4 -> 0 | S109: =S85*Indexation!O$4 -> 0 | T109: =T85*Indexation!P$4 -> 0 | U109: =U85*Indexation!Q$4 -> 0 | V109: =V85*Indexation!R$4 -> 0 | W109: =W85*Indexation!S$4 -> 0 | X109: =X85*Indexation!T$4 -> 0 | Y109: =Y85*Indexation!U$4 -> 0 | Z109: =Z85*Indexation!V$4 -> 0 | AA109: =AA85*Indexation!W$4 -> 0 | AB109: =AB85*Indexation!X$4 -> 0 | AC109: =AC85*Indexation!Y$4 -> 0 | AU109: 0.8219214039
B110: Meters | C110: 15 | F110: =F86*Indexation!B$4 -> 1.066359409 | G110: =G86*Indexation!C$4 -> 1.954100278 | H110: =H86*Indexation!D$4 -> 3.820997148 | I110: =I86*Indexation!E$4 -> 1.184612667 | J110: =J86*Indexation!F$4 -> 2.105406241 | K110: =K86*Indexation!G$4 -> 4.442944344 | L110: =L86*Indexation!H$4 -> 5.043118106 | M110: =M86*Indexation!I$4 -> 6.240781883 | N110: =N86*Indexation!J$4 -> 8.810400761 | O110: =O86*Indexation!K$4 -> 7.165643411 | P110: =P86*Indexation!L$4 -> 6.562524599 | Q110: =Q86*Indexation!M$4 -> 6.018642621 | R110: =R86*Indexation!N$4 -> 6.561889689 | S110: =S86*Indexation!O$4 -> 7.648134681 | T110: =T86*Indexation!P$4 -> 14.29866513 | U110: =U86*Indexation!Q$4 -> 7.977068766 | V110: =V86*Indexation!R$4 -> 8.884755518 | W110: =W86*Indexation!S$4 -> 7.679216063 | X110: =X86*Indexation!T$4 -> 10.42132407 | Y110: =Y86*Indexation!U$4 -> 10.0382814 | Z110: =Z86*Indexation!V$4 -> 11.21338701 | AA110: =AA86*Indexation!W$4 -> 11.84722782 | AB110: =AB86*Indexation!X$4 -> 12.15697324 | AC110: =AC86*Indexation!Y$4 -> 9.128018149 | AU110: 172.270473
B111: Land | C111: 40 | F111: =F87*Indexation!B$4 -> 0 | G111: =G87*Indexation!C$4 -> 0 | H111: =H87*Indexation!D$4 -> 0 | I111: =I87*Indexation!E$4 -> 0 | J111: =J87*Indexation!F$4 -> 0 | K111: =K87*Indexation!G$4 -> 0 | L111: =L87*Indexation!H$4 -> 0 | M111: =M87*Indexation!I$4 -> 0 | N111: =N87*Indexation!J$4 -> 0 | O111: =O87*Indexation!K$4 -> 0 | P111: =P87*Indexation!L$4 -> 0 | Q111: =Q87*Indexation!M$4 -> 0 | R111: =R87*Indexation!N$4 -> 0 | S111: =S87*Indexation!O$4 -> 0 | T111: =T87*Indexation!P$4 -> 0 | U111: =U87*Indexation!Q$4 -> 0 | V111: =V87*Indexation!R$4 -> 0 | W111: =W87*Indexation!S$4 -> 0 | X111: =X87*Indexation!T$4 -> 0 | Y111: =Y87*Indexation!U$4 -> 0 | Z111: =Z87*Indexation!V$4 -> 0 | AA111: =AA87*Indexation!W$4 -> 0 | AB111: =AB87*Indexation!X$4 -> 0 | AC111: =AC87*Indexation!Y$4 -> 0 | AU111: 0
B112: Buildings | C112: 40 | F112: =F88*Indexation!B$4 -> 0 | G112: =G88*Indexation!C$4 -> 0 | H112: =H88*Indexation!D$4 -> 0 | I112: =I88*Indexation!E$4 -> 0 | J112: =J88*Indexation!F$4 -> 0 | K112: =K88*Indexation!G$4 -> 0 | L112: =L88*Indexation!H$4 -> 0 | M112: =M88*Indexation!I$4 -> 0 | N112: =N88*Indexation!J$4 -> 0 | O112: =O88*Indexation!K$4 -> 0 | P112: =P88*Indexation!L$4 -> 0 | Q112: =Q88*Indexation!M$4 -> 0 | R112: =R88*Indexation!N$4 -> 0 | S112: =S88*Indexation!O$4 -> 0.7756118463 | T112: =T88*Indexation!P$4 -> 0 | U112: =U88*Indexation!Q$4 -> 0 | V112: =V88*Indexation!R$4 -> 0 | W112: =W88*Indexation!S$4 -> 0 | X112: =X88*Indexation!T$4 -> 0 | Y112: =Y88*Indexation!U$4 -> 0 | Z112: =Z88*Indexation!V$4 -> 0 | AA112: =AA88*Indexation!W$4 -> 0 | AB112: =AB88*Indexation!X$4 -> 0 | AC112: =AC88*Indexation!Y$4 -> 0 | AU112: 0.7756118463
B113: Equipment | C113: 5 | F113: =F89*Indexation!B$4 -> 0 | G113: =G89*Indexation!C$4 -> 0 | H113: =H89*Indexation!D$4 -> 0 | I113: =I89*Indexation!E$4 -> 0 | J113: =J89*Indexation!F$4 -> 0 | K113: =K89*Indexation!G$4 -> 0 | L113: =L89*Indexation!H$4 -> 0 | M113: =M89*Indexation!I$4 -> 0 | N113: =N89*Indexation!J$4 -> 0 | O113: =O89*Indexation!K$4 -> 0 | P113: =P89*Indexation!L$4 -> 1.413299954 | Q113: =Q89*Indexation!M$4 -> 9.61375854 | R113: =R89*Indexation!N$4 -> 1.149049401 | S113: =S89*Indexation!O$4 -> 2.947435051 | T113: =T89*Indexation!P$4 -> 1.538748985 | U113: =U89*Indexation!Q$4 -> 1.796444202 | V113: =V89*Indexation!R$4 -> 1.252119886 | W113: =W89*Indexation!S$4 -> 3.906392584 | X113: =X89*Indexation!T$4 -> 4.325353183 | Y113: =Y89*Indexation!U$4 -> 1.966100173 | Z113: =Z89*Indexation!V$4 -> 1.628222815 | AA113: =AA89*Indexation!W$4 -> 0.7730543501 | AB113: =AB89*Indexation!X$4 -> 0.3761901296 | AC113: =AC89*Indexation!Y$4 -> 0.3054340179 | AU113: 32.99160327
B114: ITO setup | C114: 15
B115: Sum: | D115: =SUM(D107:D114) -> 0 | E115: =SUM(E107:E114) -> 0 | F115: 1.066359409 | G115: 2.118076656 | H115: 2.714782837 | I115: 9.993327845 | J115: 64.52583656 | K115: 38.96862978 | L115: 29.6875385 | M115: 43.15415965 | N115: 54.84382385 | O115: 45.62587704 | P115: 51.77629763 | Q115: 59.83130777 | R115: 57.03262761 | S115: 65.60210724 | T115: 89.33594128 | U115: 92.36277095 | V115: 93.0379879 | W115: 102.7969243 | X115: 111.6812317 | Y115: 77.17832294 | Z115: 88.21138464 | AA115: 80.00296246 | AB115: 77.93651372 | AC115: =SUM(AC107:AC114) -> 65.88857017 | AU115: =SUM(D115:AS115) -> 1405.373362
B117: Distribution business unit - shared
B118: Pipelines/Above ground installations | C118: 60 | F118: =F94*Indexation!B$4 -> 0 | G118: =G94*Indexation!C$4 -> 0 | H118: =H94*Indexation!D$4 -> 0 | I118: =I94*Indexation!E$4 -> 0 | J118: =J94*Indexation!F$4 -> 0 | K118: =K94*Indexation!G$4 -> 0 | L118: =L94*Indexation!H$4 -> 0 | M118: =M94*Indexation!I$4 -> 0 | N118: =N94*Indexation!J$4 -> 0 | O118: =O94*Indexation!K$4 -> 0 | P118: =P94*Indexation!L$4 -> 0 | Q118: =Q94*Indexation!M$4 -> 0 | R118: =R94*Indexation!N$4 -> 0 | S118: =S94*Indexation!O$4 -> 0 | T118: =T94*Indexation!P$4 -> 0 | U118: =U94*Indexation!Q$4 -> 0 | V118: =V94*Indexation!R$4 -> 0 | W118: =W94*Indexation!S$4 -> 0 | X118: =X94*Indexation!T$4 -> 0 | Y118: =Y94*Indexation!U$4 -> 0 | Z118: =Z94*Indexation!V$4 -> 0 | AA118: =AA94*Indexation!W$4 -> 0 | AB118: =AB94*Indexation!X$4 -> 0 | AC118: =AC94*Indexation!Y$4 -> 0 | AU118: =SUM(D118:AS118) -> 0
B119: Dublin Cast Iron | C119: 60 | F119: =F95*Indexation!B$4 -> 0 | G119: =G95*Indexation!C$4 -> 0 | H119: =H95*Indexation!D$4 -> 0 | I119: =I95*Indexation!E$4 -> 0 | J119: =J95*Indexation!F$4 -> 0 | K119: =K95*Indexation!G$4 -> 0 | L119: =L95*Indexation!H$4 -> 0 | M119: =M95*Indexation!I$4 -> 0 | N119: =N95*Indexation!J$4 -> 0 | O119: =O95*Indexation!K$4 -> 0 | P119: =P95*Indexation!L$4 -> 0 | Q119: =Q95*Indexation!M$4 -> 0 | R119: =R95*Indexation!N$4 -> 0 | S119: =S95*Indexation!O$4 -> 0 | T119: =T95*Indexation!P$4 -> 0 | U119: =U95*Indexation!Q$4 -> 0 | V119: =V95*Indexation!R$4 -> 0 | W119: =W95*Indexation!S$4 -> 0 | X119: =X95*Indexation!T$4 -> 0 | Y119: =Y95*Indexation!U$4 -> 0 | Z119: =Z95*Indexation!V$4 -> 0 | AA119: =AA95*Indexation!W$4 -> 0 | AB119: =AB95*Indexation!X$4 -> 0 | AC119: =AC95*Indexation!Y$4 -> 0 | AU119: 0
B120: Cork Cast Iron | C120: 60 | F120: =F96*Indexation!B$4 -> 0 | G120: =G96*Indexation!C$4 -> 0 | H120: =H96*Indexation!D$4 -> 0 | I120: =I96*Indexation!E$4 -> 0 | J120: =J96*Indexation!F$4 -> 0 | K120: =K96*Indexation!G$4 -> 0 | L120: =L96*Indexation!H$4 -> 0 | M120: =M96*Indexation!I$4 -> 0 | N120: =N96*Indexation!J$4 -> 0 | O120: =O96*Indexation!K$4 -> 0 | P120: =P96*Indexation!L$4 -> 0 | Q120: =Q96*Indexation!M$4 -> 0 | R120: =R96*Indexation!N$4 -> 0 | S120: =S96*Indexation!O$4 -> 0 | T120: =T96*Indexation!P$4 -> 0 | U120: =U96*Indexation!Q$4 -> 0 | V120: =V96*Indexation!R$4 -> 0 | W120: =W96*Indexation!S$4 -> 0 | X120: =X96*Indexation!T$4 -> 0 | Y120: =Y96*Indexation!U$4 -> 0 | Z120: =Z96*Indexation!V$4 -> 0 | AA120: =AA96*Indexation!W$4 -> 0 | AB120: =AB96*Indexation!X$4 -> 0 | AC120: =AC96*Indexation!Y$4 -> 0 | AU120: 0
B121: Meters | C121: 15 | F121: =F97*Indexation!B$4 -> 0 | G121: =G97*Indexation!C$4 -> 0 | H121: =H97*Indexation!D$4 -> 0 | I121: =I97*Indexation!E$4 -> 0 | J121: =J97*Indexation!F$4 -> 0 | K121: =K97*Indexation!G$4 -> 0 | L121: =L97*Indexation!H$4 -> 0 | M121: =M97*Indexation!I$4 -> 0 | N121: =N97*Indexation!J$4 -> 0 | O121: =O97*Indexation!K$4 -> 0 | P121: =P97*Indexation!L$4 -> 0 | Q121: =Q97*Indexation!M$4 -> 0 | R121: =R97*Indexation!N$4 -> 0 | S121: =S97*Indexation!O$4 -> 0 | T121: =T97*Indexation!P$4 -> 0 | U121: =U97*Indexation!Q$4 -> 0 | V121: =V97*Indexation!R$4 -> 0 | W121: =W97*Indexation!S$4 -> 0 | X121: =X97*Indexation!T$4 -> 0 | Y121: =Y97*Indexation!U$4 -> 0 | Z121: =Z97*Indexation!V$4 -> 0 | AA121: =AA97*Indexation!W$4 -> 0 | AB121: =AB97*Indexation!X$4 -> 0 | AC121: =AC97*Indexation!Y$4 -> 0 | AU121: 0
B122: Land | C122: 40 | F122: =F98*Indexation!B$4 -> 0 | G122: =G98*Indexation!C$4 -> 0 | H122: =H98*Indexation!D$4 -> 0 | I122: =I98*Indexation!E$4 -> 0 | J122: =J98*Indexation!F$4 -> 0 | K122: =K98*Indexation!G$4 -> 0 | L122: =L98*Indexation!H$4 -> 0 | M122: =M98*Indexation!I$4 -> 0 | N122: =N98*Indexation!J$4 -> 0 | O122: =O98*Indexation!K$4 -> 0 | P122: =P98*Indexation!L$4 -> 0 | Q122: =Q98*Indexation!M$4 -> 0.05979523625 | R122: =R98*Indexation!N$4 -> 0.1580223467 | S122: =S98*Indexation!O$4 -> 0 | T122: =T98*Indexation!P$4 -> 0 | U122: =U98*Indexation!Q$4 -> 0.009597058681 | V122: =V98*Indexation!R$4 -> 0 | W122: =W98*Indexation!S$4 -> 0 | X122: =X98*Indexation!T$4 -> 0 | Y122: =Y98*Indexation!U$4 -> 0 | Z122: =Z98*Indexation!V$4 -> 0 | AA122: =AA98*Indexation!W$4 -> 0 | AB122: =AB98*Indexation!X$4 -> 0 | AC122: =AC98*Indexation!Y$4 -> 0 | AU122: 0.2274146416
B123: Buildings | C123: 40 | F123: =F99*Indexation!B$4 -> 0 | G123: =G99*Indexation!C$4 -> 0 | H123: =H99*Indexation!D$4 -> 0 | I123: =I99*Indexation!E$4 -> 0 | J123: =J99*Indexation!F$4 -> 0.2178963987 | K123: =K99*Indexation!G$4 -> 0 | L123: =L99*Indexation!H$4 -> 0 | M123: =M99*Indexation!I$4 -> 0 | N123: =N99*Indexation!J$4 -> 0 | O123: =O99*Indexation!K$4 -> 0 | P123: =P99*Indexation!L$4 -> 0 | Q123: =Q99*Indexation!M$4 -> 0 | R123: =R99*Indexation!N$4 -> 0.05762470362 | S123: =S99*Indexation!O$4 -> 0 | T123: =T99*Indexation!P$4 -> 0 | U123: =U99*Indexation!Q$4 -> 0 | V123: =V99*Indexation!R$4 -> 0 | W123: =W99*Indexation!S$4 -> 8.116267293 | X123: =X99*Indexation!T$4 -> 3.887978166 | Y123: =Y99*Indexation!U$4 -> 6.365884505 | Z123: =Z99*Indexation!V$4 -> 0.4696643341 | AA123: =AA99*Indexation!W$4 -> 0.1806267736 | AB123: =AB99*Indexation!X$4 -> 0.1967279953 | AC123: =AC99*Indexation!Y$4 -> 0.1529537875 | AU123: 19.64562396
B124: Equipment | C124: 5 | F124: =F100*Indexation!B$4 -> 0 | G124: =G100*Indexation!C$4 -> 0 | H124: =H100*Indexation!D$4 -> 0 | I124: =I100*Indexation!E$4 -> 0 | J124: =J100*Indexation!F$4 -> 0 | K124: =K100*Indexation!G$4 -> 0 | L124: =L100*Indexation!H$4 -> 0 | M124: =M100*Indexation!I$4 -> 0 | N124: =N100*Indexation!J$4 -> 0 | O124: =O100*Indexation!K$4 -> 0 | P124: =P100*Indexation!L$4 -> 0 | Q124: =Q100*Indexation!M$4 -> 0 | R124: =R100*Indexation!N$4 -> 0.8161098577 | S124: =S100*Indexation!O$4 -> 0.2445901534 | T124: =T100*Indexation!P$4 -> 0.5134557619 | U124: =U100*Indexation!Q$4 -> 0.2373146463 | V124: =V100*Indexation!R$4 -> 0.3914588137 | W124: =W100*Indexation!S$4 -> 1.212621983 | X124: =X100*Indexation!T$4 -> 0.7920707311 | Y124: =Y100*Indexation!U$4 -> 0.7599242792 | Z124: =Z100*Indexation!V$4 -> 0.5678506929 | AA124: =AA100*Indexation!W$4 -> 0.1380354934 | AB124: =AB100*Indexation!X$4 -> 0.8877150646 | AC124: =AC100*Indexation!Y$4 -> 0.1098860629 | AU124: 6.67103354
B125: Sum: | D125: =SUM(D118:D124) -> 0 | E125: =SUM(E118:E124) -> 0 | F125: =SUM(F118:F124) -> 0 | G125: =SUM(G118:G124) -> 0 | H125: 0 | I125: 0 | J125: 0.2178963987 | K125: 0 | L125: 0 | M125: 0 | N125: 0 | O125: 0 | P125: 0 | Q125: 0.05979523625 | R125: 1.031756908 | S125: 0.2445901534 | T125: 0.5134557619 | U125: 0.246911705 | V125: 0.3914588137 | W125: 9.328889276 | X125: 4.680048897 | Y125: 7.125808785 | Z125: 1.037515027 | AA125: 0.318662267 | AB125: 1.08444306 | AC125: =SUM(AC118:AC124) -> 0.2628398504 | AU125: 26.54407214
B127: Total indexed gross asset value | D127: =D115+D125 -> 0 | E127: =E115+E125 -> 0 | F127: =F115+F125 -> 1.066359409 | G127: =G115+G125 -> 2.118076656 | H127: 2.714782837 | I127: 9.993327845 | J127: 64.74373296 | K127: 38.96862978 | L127: 29.6875385 | M127: 43.15415965 | N127: 54.84382385 | O127: 45.62587704 | P127: 51.77629763 | Q127: 59.89110301 | R127: 58.06438452 | S127: 65.84669739 | T127: 89.84939705 | U127: 92.60968266 | V127: 93.42944671 | W127: 112.1258135 | X127: 116.3612806 | Y127: 84.30413172 | Z127: 89.24889967 | AA127: 80.32162473 | AB127: 79.02095678 | AC127: 66.15141002 | AU127: =SUM(D127:AS127) -> 1431.917435
A129: @ Sept 06 | B129: Indexed net book value @ 1 October 2006
B130: Distribution business unit - direct
B131: Pipelines/Above ground installations | C131: 60 | D131: =IF(AND(($D$1-0.25-D$6)<$C131,(D$6<$D$1)),($C131-($D$1-0.25-D$6))/$C131*D107,0) -> 0 | E131: 0 | F131: 0 | G131: 0.1018020011 | H131: -1.229186518 | I131: 5.762367846 | J131: 17.41200276 | K131: 23.73640874 | L131: 17.35377936 | M131: 26.60839314 | N131: 33.94964953 | O131: 29.00542619 | P131: 33.76286466 | Q131: 34.80663896 | R131: 39.66285785 | S131: 44.51455148 | T131: 61.5550165 | U131: 70.5449912 | V131: 72.19305213 | W131: 80.95004261 | X131: 87.64499302 | Y131: 60.01433767 | Z131: 70.65916389 | AA131: 64.29430744 | AB131: 63.49575264 | AC131: 55.74942903 | AU131: =SUM(D131:AS131) -> 992.5486421
B132: Dublin Cast Iron | C132: 60 | J132: =14.756 -> 14.756 | AU132: =SUM(D132:AS132) -> 14.756
B133: Cork Cast Iron | C133: 60 | H133: =0.122 -> 0.122 | AU133: 0.122
B134: Meters | C134: 15 | D134: =IF(AND(($D$1-0.25-D$6)<$C134,(D$6<$D$1)),($C134-($D$1-0.25-D$6))/$C134*D110,0) -> 0 | E134: =IF(AND(($D$1-0.25-E$6)<$C134,(E$6<$D$1)),($C134-($D$1-0.25-E$6))/$C134*E110,0) -> 0 | F134: 0 | G134: 0 | H134: 0 | I134: 0 | J134: 0 | K134: 0 | L134: 0 | M134: 0 | N134: 0 | O134: 0.1194273902 | P134: 0.5468770499 | Q134: 0.9027963932 | R134: 1.421742766 | S134: 2.166971493 | T134: 5.004532796 | U134: 3.323778653 | V134: 4.2942985 | W134: 4.223568835 | X134: 6.426483174 | Y134: 6.859492293 | Z134: 8.410040259 | AA134: 9.675236052 | AB134: 10.73865969 | AC134: 8.671617242 | AU134: 72.78552259
B135: Land | C135: 40 | D135: =IF(AND(($D$1-0.25-D$6)<$C135,(D$6<$D$1)),($C135-($D$1-0.25-D$6))/$C135*D111,0) -> 0 | E135: =IF(AND(($D$1-0.25-E$6)<$C135,(E$6<$D$1)),($C135-($D$1-0.25-E$6))/$C135*E111,0) -> 0 | F135: 0 | G135: 0 | H135: 0 | I135: 0 | J135: 0 | K135: 0 | L135: 0 | M135: 0 | N135: 0 | O135: 0 | P135: 0 | Q135: 0 | R135: 0 | S135: 0 | T135: 0 | U135: 0 | V135: 0 | W135: 0 | X135: 0 | Y135: 0 | Z135: 0 | AA135: 0 | AB135: 0 | AC135: 0 | AU135: 0
B136: Buildings | C136: 40 | D136: =IF(AND(($D$1-0.25-D$6)<$C136,(D$6<$D$1)),($C136-($D$1-0.25-D$6))/$C136*D112,0) -> 0 | E136: =IF(AND(($D$1-0.25-E$6)<$C136,(E$6<$D$1)),($C136-($D$1-0.25-E$6))/$C136*E112,0) -> 0 | F136: 0 | G136: 0 | H136: 0 | I136: 0 | J136: 0 | K136: 0 | L136: 0 | M136: 0 | N136: 0 | O136: 0 | P136: 0 | Q136: 0 | R136: 0 | S136: 0.5671661626 | T136: 0 | U136: 0 | V136: 0 | W136: 0 | X136: 0 | Y136: 0 | Z136: 0 | AA136: 0 | AB136: 0 | AC136: 0 | AU136: 0.5671661626
B137: Equipment | C137: 5 | D137: =IF(AND(($D$1-0.25-D$6)<$C137,(D$6<$D$1)),($C137-($D$1-0.25-D$6))/$C137*D113,0) -> 0 | E137: =IF(AND(($D$1-0.25-E$6)<$C137,(E$6<$D$1)),($C137-($D$1-0.25-E$6))/$C137*E113,0) -> 0 | F137: 0 | G137: 0 | H137: 0 | I137: 0 | J137: 0 | K137: 0 | L137: 0 | M137: 0 | N137: 0 | O137: 0 | P137: 0 | Q137: 0 | R137: 0 | S137: 0 | T137: 0 | U137: 0 | V137: 0 | W137: 0 | X137: 0 | Y137: 0.09830500866 | Z137: 0.4070557039 | AA137: 0.3478744575 | AB137: 0.2445235842 | AC137: 0.2596189152 | AU137: 1.35737767
B138: ITO setup | C138: 15 | D138: =IF(AND(($D$1-0.25-D$6)<$C138,(D$6<$D$1)),($C138-($D$1-0.25-D$6))/$C138*D114,0) -> 0 | E138: =IF(AND(($D$1-0.25-E$6)<$C138,(E$6<$D$1)),($C138-($D$1-0.25-E$6))/$C138*E114,0) -> 0 | F138: 0 | G138: 0 | H138: 0 | I138: 0 | J138: 0 | K138: 0 | L138: 0 | M138: 0 | N138: 0 | O138: 0 | P138: 0 | Q138: 0 | R138: 0 | S138: 0 | T138: 0 | U138: 0 | V138: 0 | W138: 0 | X138: 0 | Y138: 0 | Z138: 0 | AA138: 0 | AB138: 0 | AC138: 0 | AU138: 0
B139: Sum: | D139: =SUM(D131:D138) -> 0 | E139: =SUM(E131:E138) -> 0 | F139: 0 | G139: 0.1018020011 | H139: -1.107186518 | I139: 5.762367846 | J139: 32.16800276 | K139: 23.73640874 | L139: 17.35377936 | M139: 26.60839314 | N139: 33.94964953 | O139: 29.12485358 | P139: 34.30974171 | Q139: 35.70943535 | R139: 41.08460062 | S139: 47.24868914 | T139: 66.5595493 | U139: 73.86876985 | V139: 76.48735063 | W139: 85.17361145 | X139: 94.07147619 | Y139: 66.97213497 | Z139: 79.47625985 | AA139: 74.31741795 | AB139: 74.47893591 | AC139: =SUM(AC131:AC138) -> 64.68066519 | AU139: 1082.136709
B141: Distribution business unit - shared
B142: Pipelines/Above ground installations | C142: 60 | D142: =IF(AND(($D$1-0.25-D$6)<$C142,(D$6<$D$1)),($C142-($D$1-0.25-D$6))/$C142*D118,0) -> 0 | E142: 0 | F142: 0 | G142: 0 | H142: 0 | I142: 0 | J142: 0 | K142: 0 | L142: 0 | M142: 0 | N142: 0 | O142: 0 | P142: 0 | Q142: 0 | R142: 0 | S142: 0 | T142: 0 | U142: 0 | V142: 0 | W142: 0 | X142: 0 | Y142: 0 | Z142: 0 | AA142: 0 | AB142: 0 | AC142: 0 | AU142: =SUM(D142:AS142) -> 0
B143: Dublin Cast Iron | C143: 60 | D143: =IF(AND(($D$1-0.25-D$6)<$C143,(D$6<$D$1)),($C143-($D$1-0.25-D$6))/$C143*D119,0) -> 0 | E143: =IF(AND(($D$1-0.25-E$6)<$C143,(E$6<$D$1)),($C143-($D$1-0.25-E$6))/$C143*E119,0) -> 0 | F143: 0 | G143: 0 | H143: 0 | I143: 0 | J143: 0 | K143: 0 | L143: 0 | M143: 0 | N143: 0 | O143: 0 | P143: 0 | Q143: 0 | R143: 0 | S143: 0 | T143: =IF(AND(($D$1-0.25-T$6)<$C143,(T$6<$D$1)),($C143-($D$1-0.25-T$6))/$C143*T119,0) -> 0 | U143: 0 | V143: 0 | W143: 0 | X143: 0 | Y143: 0 | Z143: 0 | AA143: 0 | AB143: 0 | AC143: 0 | AU143: 0
B144: Cork Cast Iron | C144: 60 | D144: 0 | E144: =IF(AND(($D$1-0.25-E$6)<$C144,(E$6<$D$1)),($C144-($D$1-0.25-E$6))/$C144*E120,0) -> 0 | F144: 0 | G144: 0 | H144: 0 | I144: 0 | J144: 0 | K144: 0 | L144: 0 | M144: 0 | N144: 0 | O144: 0 | P144: 0 | Q144: 0 | R144: 0 | S144: 0 | T144: =IF(AND(($D$1-0.25-T$6)<$C144,(T$6<$D$1)),($C144-($D$1-0.25-T$6))/$C144*T120,0) -> 0 | U144: 0 | V144: 0 | W144: 0 | X144: 0 | Y144: 0 | Z144: 0 | AA144: 0 | AB144: 0 | AC144: 0 | AU144: 0
B145: Meters | C145: 15 | D145: 0 | E145: =IF(AND(($D$1-0.25-E$6)<$C145,(E$6<$D$1)),($C145-($D$1-0.25-E$6))/$C145*E121,0) -> 0 | F145: 0 | G145: 0 | H145: 0 | I145: 0 | J145: 0 | K145: 0 | L145: 0 | M145: 0 | N145: 0 | O145: 0 | P145: 0 | Q145: 0 | R145: 0 | S145: 0 | T145: =IF(AND(($D$1-0.25-T$6)<$C145,(T$6<$D$1)),($C145-($D$1-0.25-T$6))/$C145*T121,0) -> 0 | U145: 0 | V145: 0 | W145: 0 | X145: 0 | Y145: 0 | Z145: 0 | AA145: 0 | AB145: 0 | AC145: 0 | AU145: 0
B146: Land | C146: 40 | D146: 0 | E146: =IF(AND(($D$1-0.25-E$6)<$C146,(E$6<$D$1)),($C146-($D$1-0.25-E$6))/$C146*E122,0) -> 0 | F146: 0 | G146: 0 | H146: 0 | I146: 0 | J146: 0 | K146: 0 | L146: 0 | M146: 0 | N146: 0 | O146: 0 | P146: 0 | Q146: 0.0407355047 | R146: 0.1116032824 | S146: 0 | T146: =IF(AND(($D$1-0.25-T$6)<$C146,(T$6<$D$1)),($C146-($D$1-0.25-T$6))/$C146*T122,0) -> 0 | U146: 0.007497702094 | V146: 0 | W146: 0 | X146: 0 | Y146: 0 | Z146: 0 | AA146: 0 | AB146: 0 | AC146: 0 | AU146: 0.1598364892
B147: Buildings | C147: 40 | D147: 0 | E147: =IF(AND(($D$1-0.25-E$6)<$C147,(E$6<$D$1)),($C147-($D$1-0.25-E$6))/$C147*E123,0) -> 0 | F147: 0 | G147: 0 | H147: 0 | I147: 0 | J147: 0.1103100518 | K147: 0 | L147: 0 | M147: 0 | N147: 0 | O147: 0 | P147: 0 | Q147: 0 | R147: 0.04069744693 | S147: 0 | T147: =IF(AND(($D$1-0.25-T$6)<$C147,(T$6<$D$1)),($C147-($D$1-0.25-T$6))/$C147*T123,0) -> 0 | U147: 0 | V147: 0 | W147: 6.746647187 | X147: 3.329081304 | Y147: 5.60993572 | Z147: 0.4256333028 | AA147: 0.1682086829 | AB147: 0.1881211455 | AC147: 0.150085904 | AU147: 16.76872075
B148: Equipment | C148: 5 | D148: 0 | E148: =IF(AND(($D$1-0.25-E$6)<$C148,(E$6<$D$1)),($C148-($D$1-0.25-E$6))/$C148*E124,0) -> 0 | F148: 0 | G148: 0 | H148: 0 | I148: 0 | J148: 0 | K148: 0 | L148: 0 | M148: 0 | N148: 0 | O148: 0 | P148: 0 | Q148: 0 | R148: 0 | S148: 0 | T148: =IF(AND(($D$1-0.25-T$6)<$C148,(T$6<$D$1)),($C148-($D$1-0.25-T$6))/$C148*T124,0) -> 0 | U148: 0 | V148: 0 | W148: 0 | X148: 0 | Y148: 0.03799621396 | Z148: 0.1419626732 | AA148: 0.06211597204 | AB148: 0.577014792 | AC148: 0.09340315345 | AU148: 0.9124928047
B149: Sum: | D149: =SUM(D142:D148) -> 0 | E149: =SUM(E142:E148) -> 0 | F149: =SUM(F142:F148) -> 0 | G149: =SUM(G142:G148) -> 0 | H149: 0 | I149: 0 | J149: 0.1103100518 | K149: 0 | L149: 0 | M149: 0 | N149: 0 | O149: 0 | P149: 0 | Q149: 0.0407355047 | R149: 0.1523007293 | S149: 0 | T149: 0 | U149: 0.007497702094 | V149: 0 | W149: 6.746647187 | X149: 3.329081304 | Y149: 5.647931934 | Z149: 0.567595976 | AA149: 0.2303246549 | AB149: 0.7651359375 | AC149: =SUM(AC142:AC148) -> 0.2434890574 | AU149: 17.84105004
B151: Total indexed net book value | D151: =D139+D149 -> 0 | E151: =E139+E149 -> 0 | F151: =F139+F149 -> 0 | G151: =G139+G149 -> 0.1018020011 | H151: =H139+H149 -> -1.107186518 | I151: 5.762367846 | J151: 32.27831281 | K151: 23.73640874 | L151: 17.35377936 | M151: 26.60839314 | N151: 33.94964953 | O151: 29.12485358 | P151: 34.30974171 | Q151: 35.75017085 | R151: 41.23690135 | S151: 47.24868914 | T151: 66.5595493 | U151: 73.87626755 | V151: 76.48735063 | W151: 91.92025863 | X151: 97.4005575 | Y151: 72.6200669 | Z151: 80.04385583 | AA151: 74.54774261 | AB151: 75.24407185 | AC151: 64.92415424 | AU151: =SUM(D151:AS151) -> 1099.977759
A153: @ Sept 07 | B153: Historic cost, nominal to 2010, 10/11 prices thereafter
A154: Disposals not allowed for | B154: Distribution business unit - direct
B155: Pipelines/Above ground installations - D | C155: 60 | D155: =D83 -> 0 | E155: =E83 -> 0 | F155: =F83 -> 0 | G155: =G83 -> 0.081 | H155: -1.00388032 | I155: 4.7651048 | J155: 14.49017662 | K155: 19.67920898 | L155: 14.60889192 | M155: 22.62575049 | N155: 29.11871289 | O155: 25.05809471 | P155: 28.96549614 | Q155: 29.93047803 | R155: 34.23449523 | S155: 38.24430015 | T155: 52.60952482 | U155: 60.53537871 | V155: 61.73618178 | W155: 71.728549 | X155: 79.964538 | Y155: 56.23730287 | Z155: 67.636489 | AA155: 61.859692 | AB155: 61.363534 | AC155: 54.39815 | AD155: =SUMIF(PC1_inputs!$E$18:$E$56,$B155,PC1_inputs!C$18:C$56) -> 0 | AE155: =(SUMIF(PC1_inputs!$E$18:$E$56,$B155,PC1_inputs!D$18:D$56)) -> 0 | AU155: =SUM(D155:AS155) -> 888.8671698
B156: Dublin Cast Iron - D | C156: 60 | D156: =D84 -> 0 | E156: 0 | F156: 0 | G156: =G84 -> 0 | H156: 0 | I156: 0 | J156: =J84 -> 20.35689954 | K156: 0 | L156: 0 | M156: 0 | N156: 0 | O156: 0 | P156: 0 | Q156: 0 | R156: 0 | S156: 0 | T156: 0 | U156: 0 | V156: 0 | W156: 0 | X156: 0 | Y156: 0 | Z156: 0 | AA156: 0 | AB156: 0 | AC156: 0 | AD156: =SUMIF(PC1_inputs!$E$18:$E$56,$B156,PC1_inputs!C$18:C$56) -> 0 | AE156: =(SUMIF(PC1_inputs!$E$18:$E$56,$B156,PC1_inputs!D$18:D$56)) -> 0 | AU156: 20.35689954
B157: Cork Cast Iron - D | C157: 60 | D157: 0 | E157: 0 | F157: 0 | G157: =G85 -> 0 | H157: 0.42793187 | I157: 0 | J157: 0 | K157: 0 | L157: 0 | M157: 0 | N157: 0 | O157: 0 | P157: 0 | Q157: 0 | R157: 0 | S157: 0 | T157: 0 | U157: 0 | V157: 0 | W157: 0 | X157: 0 | Y157: 0 | Z157: 0 | AA157: 0 | AB157: 0 | AC157: 0 | AD157: =SUMIF(PC1_inputs!$E$18:$E$56,$B157,PC1_inputs!C$18:C$56) -> 0 | AE157: =(SUMIF(PC1_inputs!$E$18:$E$56,$B157,PC1_inputs!D$18:D$56)) -> 0 | AU157: 0.42793187
B158: Meters - D | C158: 15 | D158: 0 | E158: 0 | F158: 0.48503995 | G158: =G86 -> 0.96527393 | H158: 1.98939515 | I158: 0.6408203 | J158: 1.17537241 | K158: 2.53242272 | L158: 2.98949483 | M158: 3.82523579 | N158: 5.57307089 | O158: 4.66865004 | P158: 4.33983397 | Q158: 4.07568568 | R158: 4.55464904 | S158: 5.39355644 | T158: 10.23484425 | U158: 5.84694536 | V158: 6.61644778 | W158: 6.03893302 | X158: 8.59689683 | Y158: 8.66183416 | Z158: 10.06284189 | AA158: 10.87617561 | AB158: 11.40606462 | AC158: 8.79543464 | AD158: =SUMIF(PC1_inputs!$E$18:$E$56,$B158,PC1_inputs!C$18:C$56) -> 0 | AE158: =(SUMIF(PC1_inputs!$E$18:$E$56,$B158,PC1_inputs!D$18:D$56)) -> 0 | AU158: 130.3449193
B159: Land - D | C159: 40 | D159: 0 | E159: 0 | F159: 0 | G159: =G87 -> 0 | H159: 0 | I159: 0 | J159: 0 | K159: 0 | L159: 0 | M159: 0 | N159: 0 | O159: 0 | P159: 0 | Q159: 0 | R159: 0 | S159: 0 | T159: 0 | U159: 0 | V159: 0 | W159: 0 | X159: 0 | Y159: 0 | Z159: 0 | AA159: 0 | AB159: 0 | AC159: 0 | AD159: =SUMIF(PC1_inputs!$E$18:$E$56,$B159,PC1_inputs!C$18:C$56) -> 0 | AE159: =(SUMIF(PC1_inputs!$E$18:$E$56,$B159,PC1_inputs!D$18:D$56)) -> 0 | AU159: 0
B160: Buildings - D | C160: 40 | D160: 0 | E160: 0 | F160: 0 | G160: =G88 -> 0 | H160: 0 | I160: 0 | J160: 0 | K160: 0 | L160: 0 | M160: 0 | N160: 0 | O160: 0 | P160: 0 | Q160: 0 | R160: 0 | S160: 0.54697079 | T160: 0 | U160: 0 | V160: 0 | W160: 0 | X160: 0 | Y160: 0 | Z160: 0 | AA160: 0 | AB160: 0 | AC160: 0 | AD160: =SUMIF(PC1_inputs!$E$18:$E$56,$B160,PC1_inputs!C$18:C$56) -> 0.029783 | AE160: =(SUMIF(PC1_inputs!$E$18:$E$56,$B160,PC1_inputs!D$18:D$56)) -> -0.076783 | AU160: 0.49997079
B161: Equipment - D | C161: 5 | D161: 0 | E161: 0 | F161: 0 | G161: =G89 -> 0 | H161: 0 | I161: 0 | J161: 0 | K161: 0 | L161: 0 | M161: 0 | N161: 0 | O161: 0 | P161: 0.93462311 | Q161: 6.51021509 | R161: 0.79756244 | S161: 2.0785666 | T161: 1.10142143 | U161: 1.31673819 | V161: 0.9324495 | W161: 3.07198586 | X161: 3.5681277 | Y161: 1.69650889 | Z161: 1.46115966 | AA161: 0.70969133 | AB161: 0.35295372 | AC161: 0.29430539 | AD161: =SUMIF(PC1_inputs!$E$18:$E$56,$B161,PC1_inputs!C$18:C$56) -> 0.200055 | AE161: =(SUMIF(PC1_inputs!$E$18:$E$56,$B161,PC1_inputs!D$18:D$56)) -> 0.626475 | AU161: 25.65283891
B162: ITO setup | C162: 15 | D162: 0 | E162: 0 | F162: 0 | G162: =G90 -> 0 | H162: 0 | I162: 0 | J162: 0 | K162: 0 | L162: 0 | M162: 0 | N162: 0 | O162: 0 | P162: 0 | Q162: 0 | R162: 0 | S162: 0 | T162: 0 | U162: 0 | V162: 0 | W162: 0 | X162: 0 | Y162: 0 | Z162: 0 | AA162: 0 | AB162: 0 | AC162: 0
B163: Sum: | D163: =SUM(D155:D162) -> 0 | E163: 0 | F163: 0.48503995 | G163: 1.04627393 | H163: 1.4134467 | I163: 5.4059251 | J163: 36.02244857 | K163: 22.2116317 | L163: 17.59838675 | M163: 26.45098628 | N163: 34.69178378 | O163: 29.72674475 | P163: 34.23995322 | Q163: 40.5163788 | R163: 39.58670671 | S163: 46.26339398 | T163: 63.9457905 | U163: 67.69906226 | V163: 69.28507906 | W163: 80.83946788 | X163: 92.12956253 | Y163: 66.59564592 | Z163: 79.16049055 | AA163: 73.44555894 | AB163: 73.12255234 | AC163: 63.48789003 | AD163: 0.229838 | AE163: =SUM(AE155:AE162) -> 0.549692 | AU163: =SUM(D163:AS163) -> 1066.14973
B165: Distribution business unit - shared
B166: Pipelines/Above ground installations - S | C166: 60 | D166: =D94 -> 0 | E166: =E94 -> 0 | F166: 0 | G166: 0 | H166: 0 | I166: 0 | J166: 0 | K166: 0 | L166: 0 | M166: 0 | N166: 0 | O166: 0 | P166: 0 | Q166: 0 | R166: 0 | S166: 0 | T166: 0 | U166: 0 | V166: 0 | W166: 0 | X166: 0 | Y166: 0 | Z166: 0 | AA166: 0 | AB166: 0 | AC166: 0 | AD166: =SUMIF(PC1_inputs!$E$18:$E$56,$B166,PC1_inputs!C$18:C$56) -> 16.983364 | AE166: =(SUMIF(PC1_inputs!$E$18:$E$56,$B166,PC1_inputs!D$18:D$56)) -> 31.660426 | AU166: =SUM(D166:AS166) -> 48.64379
B167: Dublin Cast Iron - S | C167: 60 | D167: 0 | E167: =E95 -> 0 | F167: 0 | G167: 0 | H167: 0 | I167: 0 | J167: 0 | K167: 0 | L167: 0 | M167: 0 | N167: 0 | O167: 0 | P167: 0 | Q167: 0 | R167: 0 | S167: 0 | T167: 0 | U167: 0 | V167: 0 | W167: 0 | X167: 0 | Y167: 0 | Z167: 0 | AA167: 0 | AB167: 0 | AC167: 0 | AD167: =SUMIF(PC1_inputs!$E$18:$E$56,$B167,PC1_inputs!C$18:C$56) -> 0 | AE167: =(SUMIF(PC1_inputs!$E$18:$E$56,$B167,PC1_inputs!D$18:D$56)) -> 0 | AU167: =SUM(D167:AS167) -> 0
B168: Cork Cast Iron - S | C168: 60 | D168: 0 | E168: 0 | F168: 0 | G168: 0 | H168: 0 | I168: 0 | J168: 0 | K168: 0 | L168: 0 | M168: 0 | N168: 0 | O168: 0 | P168: 0 | Q168: 0 | R168: 0 | S168: 0 | T168: 0 | U168: 0 | V168: 0 | W168: 0 | X168: 0 | Y168: 0 | Z168: 0 | AA168: 0 | AB168: 0 | AC168: 0 | AD168: =SUMIF(PC1_inputs!$E$18:$E$56,$B168,PC1_inputs!C$18:C$56) -> 0 | AE168: =(SUMIF(PC1_inputs!$E$18:$E$56,$B168,PC1_inputs!D$18:D$56)) -> 0 | AU168: 0
B169: Meters - S | C169: 15 | D169: 0 | E169: 0 | F169: 0 | G169: 0 | H169: 0 | I169: 0 | J169: 0 | K169: 0 | L169: 0 | M169: 0 | N169: 0 | O169: 0 | P169: 0 | Q169: 0 | R169: 0 | S169: 0 | T169: 0 | U169: 0 | V169: 0 | W169: 0 | X169: 0 | Y169: 0 | Z169: 0 | AA169: 0 | AB169: 0 | AC169: 0 | AD169: =SUMIF(PC1_inputs!$E$18:$E$56,$B169,PC1_inputs!C$18:C$56) -> 3.373875 | AE169: =(SUMIF(PC1_inputs!$E$18:$E$56,$B169,PC1_inputs!D$18:D$56)) -> 8.372961 | AU169: 11.746836
B170: Land - S | C170: 40 | D170: 0 | E170: 0 | F170: 0 | G170: 0 | H170: 0 | I170: 0 | J170: 0 | K170: 0 | L170: 0 | M170: 0 | N170: 0 | O170: 0 | P170: 0 | Q170: 0.040491952 | R170: 0.109684308 | S170: 0 | T170: 0 | U170: 0.007034348 | V170: 0 | W170: 0 | X170: 0 | Y170: 0 | Z170: 0 | AA170: 0 | AB170: 0 | AC170: 0 | AD170: =SUMIF(PC1_inputs!$E$18:$E$56,$B170,PC1_inputs!C$18:C$56) -> 0 | AE170: =(SUMIF(PC1_inputs!$E$18:$E$56,$B170,PC1_inputs!D$18:D$56)) -> 0 | AU170: 0.157210608
B171: Buildings - S | C171: 40 | D171: 0 | E171: 0 | F171: 0 | G171: 0 | H171: 0 | I171: 0 | J171: 0.1216437048 | K171: 0 | L171: 0 | M171: 0 | N171: 0 | O171: 0 | P171: 0 | Q171: 0 | R171: 0.0399976704 | S171: 0 | T171: 0 | U171: 0 | V171: 0 | W171: 6.382629965 | X171: 3.207322501 | Y171: 5.492995628 | Z171: 0.4214746116 | AA171: 0.1658217888 | AB171: 0.184576554 | AC171: =AC99 -> 0.1473808464 | AD171: =SUMIF(PC1_inputs!$E$18:$E$56,$B171,PC1_inputs!C$18:C$56) -> 0 | AE171: =(SUMIF(PC1_inputs!$E$18:$E$56,$B171,PC1_inputs!D$18:D$56)) -> 0 | AU171: 16.16384327
B172: Equipment - S | C172: 5 | D172: 0 | E172: 0 | F172: 0 | G172: 0 | H172: 0 | I172: 0 | J172: 0 | K172: 0 | L172: 0 | M172: 0 | N172: 0 | O172: 0 | P172: 0 | Q172: 0 | R172: 0.566467002 | S172: 0.172487914 | T172: 0.367526598 | U172: 0.173944316 | V172: 0.291518072 | W172: 0.953605534 | X172: 0.65340549 | Y172: 0.655723606 | Z172: 0.509586598 | AA172: 0.126721482 | AB172: 0.832882922 | AC172: =AC100 -> 0.105882314 | AD172: =SUMIF(PC1_inputs!$E$18:$E$56,$B172,PC1_inputs!C$18:C$56) -> 0 | AE172: =(SUMIF(PC1_inputs!$E$18:$E$56,$B172,PC1_inputs!D$18:D$56)) -> 0 | AU172: 5.409751848
B173: Sum: | D173: =SUM(D166:D172) -> 0 | E173: =SUM(E166:E172) -> 0 | F173: =SUM(F166:F172) -> 0 | G173: =SUM(G166:G172) -> 0 | H173: 0 | I173: 0 | J173: 0.1216437048 | K173: 0 | L173: 0 | M173: 0 | N173: 0 | O173: 0 | P173: 0 | Q173: 0.040491952 | R173: 0.7161489804 | S173: 0.172487914 | T173: 0.367526598 | U173: 0.180978664 | V173: 0.291518072 | W173: 7.336235499 | X173: 3.860727991 | Y173: 6.148719234 | Z173: 0.9310612096 | AA173: 0.2925432708 | AB173: 1.017459476 | AC173: 0.2532631604 | AD173: 20.357239 | AE173: =SUM(AE166:AE172) -> 40.033387 | AU173: =SUM(D173:AS173) -> 82.12143173
B175: Total historic cost | D175: =D163+D173 -> 0 | E175: 0 | F175: 0.48503995 | G175: 1.04627393 | H175: 1.4134467 | I175: 5.4059251 | J175: 36.14409227 | K175: 22.2116317 | L175: 17.59838675 | M175: 26.45098628 | N175: 34.69178378 | O175: 29.72674475 | P175: 34.23995322 | Q175: 40.55687075 | R175: 40.30285569 | S175: 46.43588189 | T175: 64.3133171 | U175: 67.88004092 | V175: 69.57659713 | W175: 88.17570338 | X175: 95.99029052 | Y175: 72.74436515 | Z175: 80.09155176 | AA175: 73.73810221 | AB175: 74.14001182 | AC175: 63.74115319 | AD175: 20.587077 | AE175: =AE163+AE173 -> 40.583079 | AU175: =SUM(D175:AS175) -> 1148.271162
A177: during 06/07 | B177: Disposals, nominal to 2010, 10/11 prices thereafter
B178: Distribution business unit - direct
B179: Pipelines/Above ground installations - D | C179: 60 | AU179: =SUM(D179:AS179) -> 0
B180: Dublin Cast Iron - D | C180: 60 | AU180: 0
B181: Cork Cast Iron - D | C181: 60 | AU181: 0
B182: Meters - D | C182: 15 | AU182: 0
B183: Land - D | C183: 40 | AU183: 0
B184: Buildings - D | C184: 40 | AU184: 0
B185: Equipment - D | C185: 5 | AU185: 0
B186: ITO setup | C186: 15
B187: Sum: | D187: =SUM(D179:D186) -> 0 | E187: 0 | F187: 0 | G187: 0 | H187: 0 | I187: 0 | J187: 0 | K187: 0 | L187: 0 | M187: 0 | N187: 0 | O187: 0 | P187: 0 | Q187: 0 | R187: 0 | S187: 0 | T187: 0 | U187: 0 | V187: 0 | W187: 0 | X187: 0 | Y187: 0 | Z187: 0 | AA187: 0 | AB187: 0 | AC187: 0 | AD187: 0 | AE187: =SUM(AE179:AE186) -> 0 | AU187: =SUM(D187:AS187) -> 0
B189: Distribution business unit - shared
B190: Pipelines/Above ground installations - S | C190: 60 | AU190: =SUM(D190:AS190) -> 0
B191: Dublin Cast Iron - S | C191: 60 | AU191: =SUM(D191:AS191) -> 0
B192: Cork Cast Iron - S | C192: 60 | AU192: 0
B193: Meters - S | C193: 15 | AU193: 0
B194: Land - S | C194: 40 | Q194: =Q25/20*16 -> 0.0323935616 | R194: =R25/20*16 -> 0.0877474464 | U194: =U25/20*16 -> 0.0056274784 | AU194: 0.1257684864
B195: Buildings - S | C195: 40 | W195: -0.326013 | X195: 0.009511 | Y195: -0.322948 | Z195: 0 | AA195: 0 | AB195: -0.110739 | AC195: -0.145005 | AU195: -0.895194
B196: Equipment - S | C196: 5 | W196: 0.182306 | X196: -0.005284 | Y196: 0.179416 | Z196: 0.00064 | AA196: 0 | AB196: 0.061522 | AC196: 0.080559 | AU196: 0.499159
B197: Sum: | D197: =SUM(D190:D196) -> 0 | E197: 0 | F197: 0 | G197: 0 | H197: 0 | I197: 0 | J197: 0 | K197: 0 | L197: 0 | M197: 0 | N197: 0 | O197: 0 | P197: 0 | Q197: 0.0323935616 | R197: 0.0877474464 | S197: 0 | T197: 0 | U197: 0.0056274784 | V197: 0 | W197: -0.143707 | X197: 0.004227 | Y197: -0.143532 | Z197: 0.00064 | AA197: 0 | AB197: -0.049217 | AC197: -0.064446 | AD197: 0 | AE197: 0 | AU197: =SUM(D197:AS197) -> -0.2702665136
B199: Total historic cost | D199: =D187+D197 -> 0 | E199: 0 | F199: 0 | G199: 0 | H199: 0 | I199: 0 | J199: 0 | K199: 0 | L199: 0 | M199: 0 | N199: 0 | O199: 0 | P199: 0 | Q199: 0.0323935616 | R199: 0.0877474464 | S199: 0 | T199: 0 | U199: 0.0056274784 | V199: 0 | W199: -0.143707 | X199: 0.004227 | Y199: -0.143532 | Z199: 0.00064 | AA199: 0 | AB199: -0.049217 | AC199: -0.064446 | AD199: 0 | AE199: 0 | AU199: =SUM(D199:AS199) -> -0.2702665136
A201: @ Sept 07 | B201: Historic cost, nominal to 2010, 10/11 prices thereafter
A202: Disposals allowed for | B202: Distribution business unit - direct
B203: Pipelines/Above ground installations - D | C203: 60 | D203: =D155+D179 -> 0 | E203: =E155+E179 -> 0 | F203: 0 | G203: 0.081 | H203: -1.00388032 | I203: 4.7651048 | J203: 14.49017662 | K203: 19.67920898 | L203: 14.60889192 | M203: 22.62575049 | N203: 29.11871289 | O203: 25.05809471 | P203: 28.96549614 | Q203: 29.93047803 | R203: 34.23449523 | S203: 38.24430015 | T203: 52.60952482 | U203: 60.53537871 | V203: 61.73618178 | W203: 71.728549 | X203: 79.964538 | Y203: 56.23730287 | Z203: 67.636489 | AA203: 61.859692 | AB203: 61.363534 | AC203: 54.39815 | AD203: 0 | AE203: 0 | AU203: =SUM(D203:AS203) -> 888.8671698
B204: Dublin Cast Iron - D | C204: 60 | D204: 0 | E204: =E156+E180 -> 0 | F204: 0 | G204: 0 | H204: 0 | I204: 0 | J204: 20.35689954 | K204: 0 | L204: 0 | M204: 0 | N204: 0 | O204: 0 | P204: 0 | Q204: 0 | R204: 0 | S204: 0 | T204: 0 | U204: 0 | V204: 0 | W204: 0 | X204: 0 | Y204: 0 | Z204: 0 | AA204: 0 | AB204: 0 | AC204: 0 | AD204: 0 | AE204: 0 | AU204: 20.35689954
B205: Cork Cast Iron - D | C205: 60 | D205: 0 | E205: 0 | F205: 0 | G205: 0 | H205: 0.42793187 | I205: 0 | J205: 0 | K205: 0 | L205: 0 | M205: 0 | N205: 0 | O205: 0 | P205: 0 | Q205: 0 | R205: 0 | S205: 0 | T205: 0 | U205: 0 | V205: 0 | W205: 0 | X205: 0 | Y205: 0 | Z205: 0 | AA205: 0 | AB205: 0 | AC205: 0 | AD205: 0 | AE205: 0 | AU205: 0.42793187
B206: Meters - D | C206: 15 | D206: 0 | E206: 0 | F206: 0.48503995 | G206: 0.96527393 | H206: 1.98939515 | I206: 0.6408203 | J206: 1.17537241 | K206: 2.53242272 | L206: 2.98949483 | M206: 3.82523579 | N206: 5.57307089 | O206: 4.66865004 | P206: 4.33983397 | Q206: 4.07568568 | R206: 4.55464904 | S206: 5.39355644 | T206: 10.23484425 | U206: 5.84694536 | V206: 6.61644778 | W206: 6.03893302 | X206: 8.59689683 | Y206: 8.66183416 | Z206: 10.06284189 | AA206: 10.87617561 | AB206: 11.40606462 | AC206: 8.79543464 | AD206: 0 | AE206: 0 | AU206: 130.3449193
B207: Land - D | C207: 40 | D207: 0 | E207: 0 | F207: 0 | G207: 0 | H207: 0 | I207: 0 | J207: 0 | K207: 0 | L207: 0 | M207: 0 | N207: 0 | O207: 0 | P207: 0 | Q207: 0 | R207: 0 | S207: 0 | T207: 0 | U207: 0 | V207: 0 | W207: 0 | X207: 0 | Y207: 0 | Z207: 0 | AA207: 0 | AB207: 0 | AC207: 0 | AD207: 0 | AE207: 0 | AU207: 0
B208: Buildings - D | C208: 40 | D208: 0 | E208: 0 | F208: 0 | G208: 0 | H208: 0 | I208: 0 | J208: 0 | K208: 0 | L208: 0 | M208: 0 | N208: 0 | O208: 0 | P208: 0 | Q208: 0 | R208: 0 | S208: 0.54697079 | T208: 0 | U208: 0 | V208: 0 | W208: 0 | X208: 0 | Y208: 0 | Z208: 0 | AA208: 0 | AB208: 0 | AC208: 0 | AD208: 0.029783 | AE208: -0.076783 | AU208: 0.49997079
B209: Equipment - D | C209: 5 | D209: 0 | E209: 0 | F209: 0 | G209: 0 | H209: 0 | I209: 0 | J209: 0 | K209: 0 | L209: 0 | M209: 0 | N209: 0 | O209: 0 | P209: 0.93462311 | Q209: 6.51021509 | R209: 0.79756244 | S209: 2.0785666 | T209: 1.10142143 | U209: 1.31673819 | V209: 0.9324495 | W209: 3.07198586 | X209: 3.5681277 | Y209: 1.69650889 | Z209: 1.46115966 | AA209: 0.70969133 | AB209: 0.35295372 | AC209: =AC161+AC185 -> 0.29430539 | AD209: 0.200055 | AE209: 0.626475 | AU209: 25.65283891
B210: ITO setup | C210: 15 | D210: 0 | E210: 0 | F210: 0 | G210: 0 | H210: 0 | I210: 0 | J210: 0 | K210: 0 | L210: 0 | M210: 0 | N210: 0 | O210: 0 | P210: 0 | Q210: 0 | R210: 0 | S210: 0 | T210: 0 | U210: 0 | V210: 0 | W210: 0 | X210: 0 | Y210: 0 | Z210: 0 | AA210: 0 | AB210: 0 | AC210: 0 | AD210: 0 | AE210: 0
B211: Sum: | D211: =SUM(D203:D210) -> 0 | E211: 0 | F211: 0.48503995 | G211: 1.04627393 | H211: 1.4134467 | I211: 5.4059251 | J211: 36.02244857 | K211: 22.2116317 | L211: 17.59838675 | M211: 26.45098628 | N211: 34.69178378 | O211: 29.72674475 | P211: 34.23995322 | Q211: 40.5163788 | R211: 39.58670671 | S211: 46.26339398 | T211: 63.9457905 | U211: 67.69906226 | V211: 69.28507906 | W211: 80.83946788 | X211: 92.12956253 | Y211: 66.59564592 | Z211: 79.16049055 | AA211: 73.44555894 | AB211: 73.12255234 | AC211: 63.48789003 | AD211: 0.229838 | AE211: =SUM(AE203:AE210) -> 0.549692 | AU211: =SUM(D211:AS211) -> 1066.14973
B213: Distribution business unit - shared
B214: Pipelines/Above ground installations - S | C214: 60 | D214: =D166+D190 -> 0 | E214: =E166+E190 -> 0 | F214: 0 | G214: 0 | H214: 0 | I214: 0 | J214: 0 | K214: 0 | L214: 0 | M214: 0 | N214: 0 | O214: 0 | P214: 0 | Q214: 0 | R214: 0 | S214: 0 | T214: 0 | U214: 0 | V214: 0 | W214: 0 | X214: 0 | Y214: 0 | Z214: 0 | AA214: 0 | AB214: 0 | AC214: 0 | AD214: 16.983364 | AE214: 31.660426 | AU214: =SUM(D214:AS214) -> 48.64379
B215: Dublin Cast Iron - S | C215: 60 | D215: 0 | E215: =E167+E191 -> 0 | F215: 0 | G215: 0 | H215: 0 | I215: 0 | J215: 0 | K215: 0 | L215: 0 | M215: 0 | N215: 0 | O215: 0 | P215: 0 | Q215: 0 | R215: 0 | S215: 0 | T215: 0 | U215: 0 | V215: 0 | W215: 0 | X215: 0 | Y215: 0 | Z215: 0 | AA215: 0 | AB215: 0 | AC215: 0 | AD215: 0 | AE215: 0 | AU215: =SUM(D215:AS215) -> 0
B216: Cork Cast Iron - S | C216: 60 | D216: 0 | E216: 0 | F216: 0 | G216: 0 | H216: 0 | I216: 0 | J216: 0 | K216: 0 | L216: 0 | M216: 0 | N216: 0 | O216: 0 | P216: 0 | Q216: 0 | R216: 0 | S216: 0 | T216: 0 | U216: 0 | V216: 0 | W216: 0 | X216: 0 | Y216: 0 | Z216: 0 | AA216: 0 | AB216: 0 | AC216: 0 | AD216: 0 | AE216: 0 | AU216: 0
B217: Meters - S | C217: 15 | D217: 0 | E217: 0 | F217: 0 | G217: 0 | H217: 0 | I217: 0 | J217: 0 | K217: 0 | L217: 0 | M217: 0 | N217: 0 | O217: 0 | P217: 0 | Q217: 0 | R217: 0 | S217: 0 | T217: 0 | U217: 0 | V217: 0 | W217: 0 | X217: 0 | Y217: 0 | Z217: 0 | AA217: 0 | AB217: 0 | AC217: 0 | AD217: 3.373875 | AE217: 8.372961 | AU217: 11.746836
B218: Land - S | C218: 40 | D218: 0 | E218: 0 | F218: 0 | G218: 0 | H218: 0 | I218: 0 | J218: 0 | K218: 0 | L218: 0 | M218: 0 | N218: 0 | O218: 0 | P218: =P170+P194 -> 0 | Q218: =Q170+Q194 -> 0.0728855136 | R218: 0.1974317544 | S218: 0 | T218: 0 | U218: 0.0126618264 | V218: 0 | W218: 0 | X218: 0 | Y218: 0 | Z218: 0 | AA218: 0 | AB218: 0 | AC218: 0 | AD218: 0 | AE218: 0 | AU218: 0.2829790944
B219: Buildings - S | C219: 40 | D219: 0 | E219: 0 | F219: 0 | G219: 0 | H219: 0 | I219: 0 | J219: 0.1216437048 | K219: 0 | L219: 0 | M219: 0 | N219: 0 | O219: 0 | P219: 0 | Q219: =Q171+Q195 -> 0 | R219: 0.0399976704 | S219: 0 | T219: 0 | U219: 0 | V219: 0 | W219: 6.056616965 | X219: 3.216833501 | Y219: 5.170047628 | Z219: 0.4214746116 | AA219: 0.1658217888 | AB219: 0.073837554 | AC219: 0.0023758464 | AD219: 0 | AE219: 0 | AU219: 15.26864927
B220: Equipment - S | C220: 5 | D220: 0 | E220: 0 | F220: 0 | G220: 0 | H220: 0 | I220: 0 | J220: 0 | K220: 0 | L220: 0 | M220: 0 | N220: 0 | O220: 0 | P220: 0 | Q220: =Q172+Q196 -> 0 | R220: 0.566467002 | S220: 0.172487914 | T220: 0.367526598 | U220: 0.173944316 | V220: 0.291518072 | W220: 1.135911534 | X220: 0.64812149 | Y220: 0.835139606 | Z220: 0.510226598 | AA220: 0.126721482 | AB220: 0.894404922 | AC220: 0.186441314 | AD220: =AD172+AD196 -> 0 | AE220: =AE172+AE196 -> 0 | AU220: 5.908910848
B221: Sum: | D221: =SUM(D214:D220) -> 0 | E221: =SUM(E214:E220) -> 0 | F221: =SUM(F214:F220) -> 0 | G221: =SUM(G214:G220) -> 0 | H221: 0 | I221: 0 | J221: 0.1216437048 | K221: 0 | L221: 0 | M221: 0 | N221: 0 | O221: 0 | P221: 0 | Q221: 0.0728855136 | R221: 0.8038964268 | S221: 0.172487914 | T221: 0.367526598 | U221: 0.1866061424 | V221: 0.291518072 | W221: 7.192528499 | X221: 3.864954991 | Y221: 6.005187234 | Z221: 0.9317012096 | AA221: 0.2925432708 | AB221: 0.968242476 | AC221: 0.1888171604 | AD221: 20.357239 | AE221: =SUM(AE214:AE220) -> 40.033387 | AU221: =SUM(D221:AS221) -> 81.85116521
B223: Total historic cost | D223: =D211+D221 -> 0 | E223: 0 | F223: 0.48503995 | G223: 1.04627393 | H223: 1.4134467 | I223: 5.4059251 | J223: 36.14409227 | K223: 22.2116317 | L223: 17.59838675 | M223: 26.45098628 | N223: 34.69178378 | O223: 29.72674475 | P223: 34.23995322 | Q223: 40.58926431 | R223: 40.39060314 | S223: 46.43588189 | T223: 64.3133171 | U223: 67.8856684 | V223: 69.57659713 | W223: 88.03199638 | X223: 95.99451752 | Y223: 72.60083315 | Z223: 80.09219176 | AA223: 73.73810221 | AB223: 74.09079482 | AC223: 63.67670719 | AD223: 20.587077 | AE223: 40.583079 | AU223: =SUM(D223:AS223) -> 1148.000895
B225: Indexed gross asset value in 2010/2011 prices
B226: Distribution business unit - direct
B227: Pipelines/Above ground installations | C227: 60 | F227: =F203*Indexation!B$4 -> 0 | G227: =G203*Indexation!C$4 -> 0.1639763777 | H227: =H203*Indexation!D$4 -> -1.928135715 | I227: =I203*Indexation!E$4 -> 8.808715179 | J227: =J203*Indexation!F$4 -> 25.95578051 | K227: =K203*Indexation!G$4 -> 34.52568544 | L227: =L203*Indexation!H$4 -> 24.64442039 | M227: =M203*Indexation!I$4 -> 36.91337777 | N227: =N203*Indexation!J$4 -> 46.03342309 | O227: =O203*Indexation!K$4 -> 38.46023363 | P227: =P203*Indexation!L$4 -> 43.80047307 | Q227: =Q203*Indexation!M$4 -> 44.19890661 | R227: =R203*Indexation!N$4 -> 49.32168852 | S227: =S203*Indexation!O$4 -> 54.23092566 | T227: =T203*Indexation!P$4 -> 73.49852717 | U227: =U203*Indexation!Q$4 -> 82.58925799 | V227: =V203*Indexation!R$4 -> 82.90111249 | W227: =W203*Indexation!S$4 -> 91.21131562 | X227: =X203*Indexation!T$4 -> 96.93455449 | Y227: =Y203*Indexation!U$4 -> 65.17394136 | Z227: =Z203*Indexation!V$4 -> 75.36977482 | AA227: =AA203*Indexation!W$4 -> 67.38268029 | AB227: =AB203*Indexation!X$4 -> 65.40335035 | AC227: =AC203*Indexation!Y$4 -> 56.455118 | AD227: =AD203*Indexation!Y$4 -> 0 | AE227: =AE203*Indexation!Z$4 -> 0 | AU227: =SUM(D227:AS227) -> 1162.049103
B228: Dublin Cast Iron | C228: 60 | F228: =F204*Indexation!B$4 -> 0 | G228: =G204*Indexation!C$4 -> 0 | H228: =H204*Indexation!D$4 -> 0 | I228: =I204*Indexation!E$4 -> 0 | J228: =J204*Indexation!F$4 -> 36.46464982 | K228: =K204*Indexation!G$4 -> 0 | L228: =L204*Indexation!H$4 -> 0 | M228: =M204*Indexation!I$4 -> 0 | N228: =N204*Indexation!J$4 -> 0 | O228: =O204*Indexation!K$4 -> 0 | P228: =P204*Indexation!L$4 -> 0 | Q228: =Q204*Indexation!M$4 -> 0 | R228: =R204*Indexation!N$4 -> 0 | S228: =S204*Indexation!O$4 -> 0 | T228: =T204*Indexation!P$4 -> 0 | U228: =U204*Indexation!Q$4 -> 0 | V228: =V204*Indexation!R$4 -> 0 | W228: =W204*Indexation!S$4 -> 0 | X228: =X204*Indexation!T$4 -> 0 | Y228: =Y204*Indexation!U$4 -> 0 | Z228: =Z204*Indexation!V$4 -> 0 | AA228: =AA204*Indexation!W$4 -> 0 | AB228: =AB204*Indexation!X$4 -> 0 | AC228: =AC204*Indexation!Y$4 -> 0 | AD228: =AD204*Indexation!Y$4 -> 0 | AE228: =AE204*Indexation!Z$4 -> 0 | AU228: 36.46464982
B229: Cork Cast Iron | C229: 60 | F229: =F205*Indexation!B$4 -> 0 | G229: =G205*Indexation!C$4 -> 0 | H229: =H205*Indexation!D$4 -> 0.8219214039 | I229: =I205*Indexation!E$4 -> 0 | J229: =J205*Indexation!F$4 -> 0 | K229: =K205*Indexation!G$4 -> 0 | L229: =L205*Indexation!H$4 -> 0 | M229: =M205*Indexation!I$4 -> 0 | N229: =N205*Indexation!J$4 -> 0 | O229: =O205*Indexation!K$4 -> 0 | P229: =P205*Indexation!L$4 -> 0 | Q229: =Q205*Indexation!M$4 -> 0 | R229: =R205*Indexation!N$4 -> 0 | S229: =S205*Indexation!O$4 -> 0 | T229: =T205*Indexation!P$4 -> 0 | U229: =U205*Indexation!Q$4 -> 0 | V229: =V205*Indexation!R$4 -> 0 | W229: =W205*Indexation!S$4 -> 0 | X229: =X205*Indexation!T$4 -> 0 | Y229: =Y205*Indexation!U$4 -> 0 | Z229: =Z205*Indexation!V$4 -> 0 | AA229: =AA205*Indexation!W$4 -> 0 | AB229: =AB205*Indexation!X$4 -> 0 | AC229: =AC205*Indexation!Y$4 -> 0 | AD229: =AD205*Indexation!Y$4 -> 0 | AE229: =AE205*Indexation!Z$4 -> 0 | AU229: 0.8219214039
... 835 more rows

Sheet Calc of PC1 & PC2 adj.
B2: Calculation of adjustments relating to PC2 & PC1 and allocation for recovery
D4: 2012/13 | E4: 2013/14 | F4: 2014/15 | G4: 2015/16 | H4: 2016/17 | I4: Total
B5: PC2 k factor | C5: €m | D5: =PC2_inputs!I110 -> 7.6
B6: PC2 adjustment due to capex underspend | C6: €m | D6: =PC2_inputs!I107*(1+PC2_inputs!K2)^5 -> -55.47720896
B7: PC2 adjustment due to capex negative efficiency/scope | C7: €m | D7: =PC2_inputs!I224 -> -6.443637338
B8: PC1 adjustment due to capex underspend | C8: €m | D8: =PC1_inputs!D93*(1+PC2_inputs!K2)^6 -> -7.049733204
B9: Revenue due to efficiency savings & efficient deferrals | C9: €m | D9: =PC2_inputs!M159+PC2_inputs!M185+PC1_inputs!I144+PC1_inputs!I170 -> 29.51161465
B10: Deferral | C10: €m | D10: 0 | E10: =-D10*(1+PC3_inputs!J3) -> 0
B12: Total | C12: €m | D12: =SUM(D5:D10) -> -31.85896485 | E12: =SUM(E5:E10) -> 0 | F12: =SUM(F5:F10) -> 0 | G12: =SUM(G5:G10) -> 0 | H12: =SUM(H5:H10) -> 0 | I12: =SUM(D12:H12) -> -31.85896485

Sheet Calc of total rev
C1: Year of control | D1: -1 | E1: 0 | F1: 1 | G1: 2 | H1: 3 | I1: 4 | J1: 5
C2: Gas year | D2: 2010/11 | E2: 2011/12 | F2: 2012/13 | G2: 2013/14 | H2: 2014/15 | I2: 2015/16 | J2: 2016/17
B5: Regulated Asset Base (RAB)
B6: Opening RAB | F6: =PC3_inputs!D148 -> 1288.533302 | G6: =PC3_inputs!E148 -> 1305.820617 | H6: =PC3_inputs!F148 -> 1322.096333 | I6: =PC3_inputs!G148 -> 1338.943925 | J6: =PC3_inputs!H148 -> 1340.325495
B7: Closing RAB | F7: =PC3_inputs!D149 -> 1305.820617 | G7: =PC3_inputs!E149 -> 1322.096333 | H7: =PC3_inputs!F149 -> 1338.943925 | I7: =PC3_inputs!G149 -> 1340.325495 | J7: =PC3_inputs!H149 -> 1349.022205
B10: Required revenue for the period
B11: Revenue to reimburse opex & clawbacks / deferrals
B12: Opex | F12: =PC3_inputs!D99 -> 85.09597519 | G12: =PC3_inputs!E99 -> 81.1843861 | H12: =PC3_inputs!F99 -> 74.99525463 | I12: =PC3_inputs!G99 -> 75.89272982 | J12: =PC3_inputs!H99 -> 77.800519
B13: Net Present Value (NPV) of opex | F13: =F12/PC3_inputs!D12 -> 82.50088649 | G13: =G12/PC3_inputs!E12 -> 74.39844049 | H13: =H12/PC3_inputs!F12 -> 65.32950468 | I13: =I12/PC3_inputs!G12 -> 62.84344956 | J13: =J12/PC3_inputs!H12 -> 61.23878928
B14: Deferral or clawback adjustment | F14: ='Calc of PC1 & PC2 adj.'!D12 -> -31.85896485 | G14: ='Calc of PC1 & PC2 adj.'!E12 -> 0 | H14: ='Calc of PC1 & PC2 adj.'!F12 -> 0 | I14: ='Calc of PC1 & PC2 adj.'!G12 -> 0 | J14: ='Calc of PC1 & PC2 adj.'!H12 -> 0
B15: Net Present Value (NPV) of opex and clawbacks/deferrals | C15: =SUM(F15:J15) -> 314.4521056 | F15: =F13+F14 -> 50.64192164 | G15: =G13+G14 -> 74.39844049 | H15: =H13+H14 -> 65.32950468 | I15: =I13+I14 -> 62.84344956 | J15: =J13+J14 -> 61.23878928
B17: Revenue to reimburse capex incurred in PR3
B18: Capex incurred in PR3 | F18: =PC3_inputs!D145 -> 62.5833254 | G18: =PC3_inputs!E145 -> 62.9607484 | H18: =PC3_inputs!F145 -> 63.69418173 | I18: =PC3_inputs!G145 -> 48.19137173 | J18: =PC3_inputs!H145 -> 56.75877673
B19: Net Present Value (NPV) | C19: =SUM(F19:J19) -> 258.43927 | F19: =F18/PC3_inputs!D12 -> 60.67478296 | G19: =G18/PC3_inputs!E12 -> 57.69805893 | H19: =H18/PC3_inputs!F12 -> 55.48496853 | I19: =I18/PC3_inputs!G12 -> 39.90516675 | J19: =J18/PC3_inputs!H12 -> 44.67629282
B22: Revenue to reimburse change in RAB
B23: Opening RAB balance | C23: =F6 -> 1288.533302
B24: NPV of closing RAB balance | C24: =J7/PC3_inputs!H11 -> 1035.274055
B25: Difference | C25: =C23-C24 -> 253.2592471
B27: Total required revenue for the period (NPV
B28: Revenue to reimburse opex & clawbacks / deferrals | C28: =C15 -> 314.4521056
B29: Revenue to reimburse capex | C29: =C19 -> 258.43927
B30: Revenue to reimburse change in RAB | C30: =C25 -> 253.2592471
B31: Total revenue required for the period (NPV) | C31: =SUM(C28:C30) -> 826.1506227

Sheet Outputs1
E1: 1 | F1: 2 | G1: 3 | H1: 4 | I1: 5
E2: 2012/13 | F2: 2013/14 | G2: 2014/15 | H2: 2015/16 | I2: 2016/17
B4: SPLIT OF DISTRIBUTION REVENUE REQUIRED FROM COMMODITY & CAPACITY CHARGES
B6: Proportion of revenue from commodity | C6: =PC3_inputs!B15 -> 0.2
B7: Proportion of revenue from capacity | C7: =PC3_inputs!B16 -> 0.8
B9: NPV of revenue required from commodity (€m) | C9: ='Calc of total rev'!C31*C6 -> 165.2301245
B10: NPV of revenue required from capacity (€m) | C10: =C7*'Calc of total rev'!C31 -> 660.9204982
B12: Conversion from €m to € for | C12: =PC3_inputs!B19 -> 1000000
B14: NPV of revenue required from commodity (€) | C14: =C9*C12 -> 165230124.5
B15: NPV of revenue required from capacity (€) | C15: =C10*C12 -> 660920498.2
B17: DISTRIBUTION ALLOWED REVENUE AND PRICES - COMMODITY
B19: Change from P0 to P1 | C19: ='Distribution 12 13'!H32 -> 0.0241272767 | D19: -0.008876466969 | E19: 0.0007931027838 | F19: 0.001347314296 | G19: 0.006643743741
B21: NPV revenue received less NPV revenue required, € | C21: =C26-C14 -> 0
B23: Average annual tariff, € / MWh | E23: =(PC2_inputs!$E$25*(1+$C$19)) -> 2.611752679 | F23: =(E23*(1+D$19)) -> 2.588569542 | G23: =(F23*(1+E$19)) -> 2.590622544 | H23: 2.594112927 | I23: =(H23*(1+G$19)) -> 2.611347548 | J23: 2.611347548 | K23: 2.611347548 | L23: 2.611347548 | M23: 2.611347548 | N23: 2.611347548 | O23: 2.611347548 | P23: 2.611347548 | Q23: 2.611347548 | R23: 2.611347548 | S23: 2.611347548 | T23: 2.611347548 | U23: 2.611347548 | V23: 2.611347548 | W23: 2.611347548 | X23: 2.611347548 | Y23: 2.611347548 | Z23: 2.611347548 | AA23: 2.611347548 | AB23: 2.611347548 | AC23: 2.611347548 | AD23: 2.611347548 | AE23: 2.611347548 | AF23: 2.611347548 | AG23: 2.611347548 | AH23: 2.611347548 | AI23: 2.611347548 | AJ23: 2.611347548 | AK23: 2.611347548 | AL23: 2.611347548 | AM23: 2.611347548 | AN23: 2.611347548 | AO23: 2.611347548 | AP23: 2.611347548 | AQ23: 2.611347548 | AR23: 2.611347548 | AS23: 2.611347548 | AT23: 2.611347548 | AU23: 2.611347548 | AV23: 2.611347548 | AW23: 2.611347548 | AX23: 2.611347548 | AY23: 2.611347548 | AZ23: 2.611347548 | BA23: 2.611347548 | BB23: 2.611347548 | BC23: 2.611347548 | BD23: 2.611347548 | BE23: 2.611347548 | BF23: 2.611347548 | BG23: 2.611347548 | BH23: 2.611347548 | BI23: 2.611347548 | BJ23: 2.611347548 | BK23: 2.611347548 | BL23: 2.611347548 | BM23: 2.611347548 | BN23: 2.611347548 | BO23: 2.611347548 | BP23: 2.611347548 | BQ23: 2.611347548 | BR23: 2.611347548 | BS23: =(BR23*(1+BQ$19)) -> 2.611347548 | BT23: 2.611347548 | BU23: 2.611347548 | BV23: 2.611347548 | BW23: 2.611347548 | BX23: 2.611347548 | BY23: 2.611347548 | BZ23: 2.611347548 | CA23: 2.611347548 | CB23: 2.611347548 | CC23: 2.611347548 | CD23: 2.611347548 | CE23: 2.611347548 | CF23: 2.611347548 | CG23: 2.611347548 | CH23: 2.611347548 | CI23: 2.611347548 | CJ23: 2.611347548 | CK23: 2.611347548 | CL23: 2.611347548 | CM23: 2.611347548 | CN23: 2.611347548 | CO23: 2.611347548 | CP23: 2.611347548 | CQ23: 2.611347548 | CR23: 2.611347548 | CS23: 2.611347548 | CT23: 2.611347548 | CU23: 2.611347548 | CV23: 2.611347548 | CW23: 2.611347548 | CX23: 2.611347548 | CY23: 2.611347548 | CZ23: 2.611347548 | DA23: 2.611347548 | DB23: 2.611347548 | DC23: 2.611347548 | DD23: 2.611347548 | DE23: 2.611347548 | DF23: 2.611347548 | DG23: 2.611347548 | DH23: 2.611347548 | DI23: 2.611347548 | DJ23: 2.611347548 | DK23: 2.611347548 | DL23: 2.611347548 | DM23: 2.611347548 | DN23: 2.611347548 | DO23: 2.611347548 | DP23: 2.611347548 | DQ23: 2.611347548 | DR23: 2.611347548 | DS23: 2.611347548 | DT23: 2.611347548 | DU23: 2.611347548 | DV23: 2.611347548 | DW23: 2.611347548 | DX23: 2.611347548 | DY23: 2.611347548 | DZ23: 2.611347548 | EA23: 2.611347548 | EB23: 2.611347548 | EC23: 2.611347548 | ED23: 2.611347548 | EE23: =(ED23*(1+EC$19)) -> 2.611347548 | EF23: 2.611347548 | EG23: 2.611347548 | EH23: 2.611347548 | EI23: 2.611347548 | EJ23: 2.611347548 | EK23: 2.611347548 | EL23: 2.611347548 | EM23: 2.611347548 | EN23: 2.611347548 | EO23: 2.611347548 | EP23: 2.611347548 | EQ23: 2.611347548 | ER23: 2.611347548 | ES23: 2.611347548 | ET23: 2.611347548 | EU23: 2.611347548 | EV23: 2.611347548 | EW23: 2.611347548 | EX23: 2.611347548 | EY23: 2.611347548 | EZ23: 2.611347548 | FA23: 2.611347548 | FB23: 2.611347548 | FC23: 2.611347548 | FD23: 2.611347548 | FE23: 2.611347548 | FF23: 2.611347548 | FG23: 2.611347548 | FH23: 2.611347548 | FI23: 2.611347548 | FJ23: 2.611347548 | FK23: 2.611347548 | FL23: 2.611347548 | FM23: 2.611347548 | FN23: 2.611347548 | FO23: 2.611347548 | FP23: 2.611347548 | FQ23: 2.611347548 | FR23: 2.611347548 | FS23: 2.611347548 | FT23: 2.611347548 | FU23: 2.611347548 | FV23: 2.611347548 | FW23: 2.611347548 | FX23: 2.611347548 | FY23: 2.611347548 | FZ23: 2.611347548 | GA23: 2.611347548 | GB23: 2.611347548 | GC23: 2.611347548 | GD23: 2.611347548 | GE23: 2.611347548 | GF23: 2.611347548 | GG23: 2.611347548 | GH23: 2.611347548 | GI23: 2.611347548 | GJ23: 2.611347548 | GK23: 2.611347548 | GL23: 2.611347548 | GM23: 2.611347548 | GN23: 2.611347548 | GO23: 2.611347548 | GP23: 2.611347548 | GQ23: =(GP23*(1+GO$19)) -> 2.611347548 | GR23: 2.611347548 | GS23: 2.611347548 | GT23: 2.611347548 | GU23: 2.611347548 | GV23: 2.611347548 | GW23: 2.611347548 | GX23: 2.611347548 | GY23: 2.611347548 | GZ23: 2.611347548 | HA23: 2.611347548 | HB23: 2.611347548 | HC23: 2.611347548 | HD23: 2.611347548 | HE23: 2.611347548 | HF23: 2.611347548 | HG23: 2.611347548 | HH23: 2.611347548 | HI23: 2.611347548 | HJ23: 2.611347548 | HK23: 2.611347548 | HL23: 2.611347548 | HM23: 2.611347548 | HN23: 2.611347548 | HO23: 2.611347548 | HP23: 2.611347548 | HQ23: 2.611347548 | HR23: 2.611347548 | HS23: 2.611347548 | HT23: 2.611347548 | HU23: 2.611347548 | HV23: 2.611347548 | HW23: 2.611347548 | HX23: 2.611347548 | HY23: 2.611347548 | HZ23: 2.611347548 | IA23: 2.611347548 | IB23: 2.611347548 | IC23: 2.611347548 | ID23: 2.611347548 | IE23: 2.611347548 | IF23: 2.611347548 | IG23: 2.611347548 | IH23: 2.611347548 | II23: 2.611347548 | IJ23: 2.611347548 | IK23: 2.611347548 | IL23: 2.611347548 | IM23: 2.611347548 | IN23: 2.611347548 | IO23: 2.611347548 | IP23: 2.611347548 | IQ23: 2.611347548 | IR23: 2.611347548 | IS23: 2.611347548 | IT23: 2.611347548 | IU23: 2.611347548 | IV23: 2.611347548
B24: Demand, MWh | E24: =PC3_inputs!D22 -> 14467744.14 | F24: =PC3_inputs!E22 -> 14484579.04 | G24: =PC3_inputs!F22 -> 14560341.33 | H24: =PC3_inputs!G22 -> 14584819.19 | I24: =PC3_inputs!H22 -> 14626283.37
B25: Total annual revenue allowed, € | E25: =E23*E24 -> 37786169.51 | F25: =F23*F24 -> 37494340.15 | G25: =G23*G24 -> 37720348.5 | H25: 37815649 | I25: =I23*I24 -> 38194309.23
B26: NPV, € | C26: =SUM(E26:I26) -> 165230124.5 | E26: =E25/PC3_inputs!D12 -> 36633841.67 | F26: =F25/PC3_inputs!E12 -> 34360307.05 | G26: =G25/PC3_inputs!F12 -> 32858768.14 | H26: =H25/PC3_inputs!G12 -> 31313484.65 | I26: =I25/PC3_inputs!H12 -> 30063723.03 | J26: =J25/PC3_inputs!I12 ->  | K26: =K25/PC3_inputs!J12 ->  | L26: =L25/PC3_inputs!K12 ->  | M26: =M25/PC3_inputs!L12 ->  | N26: =N25/PC3_inputs!M12 ->  | O26: =O25/PC3_inputs!N12 ->  | P26: =P25/PC3_inputs!O12 ->  | Q26: =Q25/PC3_inputs!P12 ->  | R26: =R25/PC3_inputs!Q12 ->  | S26: =S25/PC3_inputs!R12 ->  | T26: =T25/PC3_inputs!S12 ->  | U26: =U25/PC3_inputs!T12 ->  | V26: =V25/PC3_inputs!U12 ->  | W26: =W25/PC3_inputs!V12 ->  | X26: =X25/PC3_inputs!W12 ->  | Y26: =Y25/PC3_inputs!X12 ->  | Z26: =Z25/PC3_inputs!Y12 ->  | AA26: =AA25/PC3_inputs!Z12 ->  | AB26: =AB25/PC3_inputs!AA12 ->  | AC26: =AC25/PC3_inputs!AB12 ->  | AD26: =AD25/PC3_inputs!AC12 ->  | AE26: =AE25/PC3_inputs!AD12 ->  | AF26: =AF25/PC3_inputs!AE12 ->  | AG26: =AG25/PC3_inputs!AF12 ->  | AH26: =AH25/PC3_inputs!AG12 ->  | AI26: =AI25/PC3_inputs!AH12 ->  | AJ26: =AJ25/PC3_inputs!AI12 ->  | AK26: =AK25/PC3_inputs!AJ12 ->  | AL26: =AL25/PC3_inputs!AK12 ->  | AM26: =AM25/PC3_inputs!AL12 ->  | AN26: =AN25/PC3_inputs!AM12 ->  | AO26: =AO25/PC3_inputs!AN12 ->  | AP26: =AP25/PC3_inputs!AO12 ->  | AQ26: =AQ25/PC3_inputs!AP12 ->  | AR26: =AR25/PC3_inputs!AQ12 ->  | AS26: =AS25/PC3_inputs!AR12 ->  | AT26: =AT25/PC3_inputs!AS12 ->  | AU26: =AU25/PC3_inputs!AT12 ->  | AV26: =AV25/PC3_inputs!AU12 ->  | AW26: =AW25/PC3_inputs!AV12 ->  | AX26: =AX25/PC3_inputs!AW12 ->  | AY26: =AY25/PC3_inputs!AX12 ->  | AZ26: =AZ25/PC3_inputs!AY12 ->  | BA26: =BA25/PC3_inputs!AZ12 ->  | BB26: =BB25/PC3_inputs!BA12 ->  | BC26: =BC25/PC3_inputs!BB12 ->  | BD26: =BD25/PC3_inputs!BC12 ->  | BE26: =BE25/PC3_inputs!BD12 ->  | BF26: =BF25/PC3_inputs!BE12 ->  | BG26: =BG25/PC3_inputs!BF12 ->  | BH26: =BH25/PC3_inputs!BG12 ->  | BI26: =BI25/PC3_inputs!BH12 ->  | BJ26: =BJ25/PC3_inputs!BI12 ->  | BK26: =BK25/PC3_inputs!BJ12 ->  | BL26: =BL25/PC3_inputs!BK12 ->  | BM26: =BM25/PC3_inputs!BL12 ->  | BN26: =BN25/PC3_inputs!BM12 ->  | BO26: =BO25/PC3_inputs!BN12 ->  | BP26: =BP25/PC3_inputs!BO12 ->  | BQ26: =BQ25/PC3_inputs!BP12 ->  | BR26: =BR25/PC3_inputs!BQ12 ->  | BS26: =BS25/PC3_inputs!BR12 ->  | BT26: =BT25/PC3_inputs!BS12 ->  | BU26: =BU25/PC3_inputs!BT12 ->  | BV26: =BV25/PC3_inputs!BU12 ->  | BW26: =BW25/PC3_inputs!BV12 ->  | BX26: =BX25/PC3_inputs!BW12 ->  | BY26: =BY25/PC3_inputs!BX12 ->  | BZ26: =BZ25/PC3_inputs!BY12 ->  | CA26: =CA25/PC3_inputs!BZ12 ->  | CB26: =CB25/PC3_inputs!CA12 ->  | CC26: =CC25/PC3_inputs!CB12 ->  | CD26: =CD25/PC3_inputs!CC12 ->  | CE26: =CE25/PC3_inputs!CD12 ->  | CF26: =CF25/PC3_inputs!CE12 ->  | CG26: =CG25/PC3_inputs!CF12 ->  | CH26: =CH25/PC3_inputs!CG12 ->  | CI26: =CI25/PC3_inputs!CH12 ->  | CJ26: =CJ25/PC3_inputs!CI12 ->  | CK26: =CK25/PC3_inputs!CJ12 ->  | CL26: =CL25/PC3_inputs!CK12 ->  | CM26: =CM25/PC3_inputs!CL12 ->  | CN26: =CN25/PC3_inputs!CM12 ->  | CO26: =CO25/PC3_inputs!CN12 ->  | CP26: =CP25/PC3_inputs!CO12 ->  | CQ26: =CQ25/PC3_inputs!CP12 ->  | CR26: =CR25/PC3_inputs!CQ12 ->  | CS26: =CS25/PC3_inputs!CR12 ->  | CT26: =CT25/PC3_inputs!CS12 ->  | CU26: =CU25/PC3_inputs!CT12 ->  | CV26: =CV25/PC3_inputs!CU12 ->  | CW26: =CW25/PC3_inputs!CV12 ->  | CX26: =CX25/PC3_inputs!CW12 ->  | CY26: =CY25/PC3_inputs!CX12 ->  | CZ26: =CZ25/PC3_inputs!CY12 ->  | DA26: =DA25/PC3_inputs!CZ12 ->  | DB26: =DB25/PC3_inputs!DA12 ->  | DC26: =DC25/PC3_inputs!DB12 ->  | DD26: =DD25/PC3_inputs!DC12 ->  | DE26: =DE25/PC3_inputs!DD12 ->  | DF26: =DF25/PC3_inputs!DE12 ->  | DG26: =DG25/PC3_inputs!DF12 ->  | DH26: =DH25/PC3_inputs!DG12 ->  | DI26: =DI25/PC3_inputs!DH12 ->  | DJ26: =DJ25/PC3_inputs!DI12 ->  | DK26: =DK25/PC3_inputs!DJ12 ->  | DL26: =DL25/PC3_inputs!DK12 ->  | DM26: =DM25/PC3_inputs!DL12 ->  | DN26: =DN25/PC3_inputs!DM12 ->  | DO26: =DO25/PC3_inputs!DN12 ->  | DP26: =DP25/PC3_inputs!DO12 ->  | DQ26: =DQ25/PC3_inputs!DP12 ->  | DR26: =DR25/PC3_inputs!DQ12 ->  | DS26: =DS25/PC3_inputs!DR12 ->  | DT26: =DT25/PC3_inputs!DS12 ->  | DU26: =DU25/PC3_inputs!DT12 ->  | DV26: =DV25/PC3_inputs!DU12 ->  | DW26: =DW25/PC3_inputs!DV12 ->  | DX26: =DX25/PC3_inputs!DW12 ->  | DY26: =DY25/PC3_inputs!DX12 ->  | DZ26: =DZ25/PC3_inputs!DY12 ->  | EA26: =EA25/PC3_inputs!DZ12 ->  | EB26: =EB25/PC3_inputs!EA12 ->  | EC26: =EC25/PC3_inputs!EB12 ->  | ED26: =ED25/PC3_inputs!EC12 ->  | EE26: =EE25/PC3_inputs!ED12 ->  | EF26: =EF25/PC3_inputs!EE12 ->  | EG26: =EG25/PC3_inputs!EF12 ->  | EH26: =EH25/PC3_inputs!EG12 ->  | EI26: =EI25/PC3_inputs!EH12 ->  | EJ26: =EJ25/PC3_inputs!EI12 ->  | EK26: =EK25/PC3_inputs!EJ12 ->  | EL26: =EL25/PC3_inputs!EK12 ->  | EM26: =EM25/PC3_inputs!EL12 ->  | EN26: =EN25/PC3_inputs!EM12 ->  | EO26: =EO25/PC3_inputs!EN12 ->  | EP26: =EP25/PC3_inputs!EO12 ->  | EQ26: =EQ25/PC3_inputs!EP12 ->  | ER26: =ER25/PC3_inputs!EQ12 ->  | ES26: =ES25/PC3_inputs!ER12 ->  | ET26: =ET25/PC3_inputs!ES12 ->  | EU26: =EU25/PC3_inputs!ET12 ->  | EV26: =EV25/PC3_inputs!EU12 ->  | EW26: =EW25/PC3_inputs!EV12 ->  | EX26: =EX25/PC3_inputs!EW12 ->  | EY26: =EY25/PC3_inputs!EX12 ->  | EZ26: =EZ25/PC3_inputs!EY12 ->  | FA26: =FA25/PC3_inputs!EZ12 ->  | FB26: =FB25/PC3_inputs!FA12 ->  | FC26: =FC25/PC3_inputs!FB12 ->  | FD26: =FD25/PC3_inputs!FC12 ->  | FE26: =FE25/PC3_inputs!FD12 ->  | FF26: =FF25/PC3_inputs!FE12 ->  | FG26: =FG25/PC3_inputs!FF12 ->  | FH26: =FH25/PC3_inputs!FG12 ->  | FI26: =FI25/PC3_inputs!FH12 ->  | FJ26: =FJ25/PC3_inputs!FI12 ->  | FK26: =FK25/PC3_inputs!FJ12 ->  | FL26: =FL25/PC3_inputs!FK12 ->  | FM26: =FM25/PC3_inputs!FL12 ->  | FN26: =FN25/PC3_inputs!FM12 ->  | FO26: =FO25/PC3_inputs!FN12 ->  | FP26: =FP25/PC3_inputs!FO12 ->  | FQ26: =FQ25/PC3_inputs!FP12 ->  | FR26: =FR25/PC3_inputs!FQ12 ->  | FS26: =FS25/PC3_inputs!FR12 ->  | FT26: =FT25/PC3_inputs!FS12 ->  | FU26: =FU25/PC3_inputs!FT12 ->  | FV26: =FV25/PC3_inputs!FU12 ->  | FW26: =FW25/PC3_inputs!FV12 ->  | FX26: =FX25/PC3_inputs!FW12 ->  | FY26: =FY25/PC3_inputs!FX12 ->  | FZ26: =FZ25/PC3_inputs!FY12 ->  | GA26: =GA25/PC3_inputs!FZ12 ->  | GB26: =GB25/PC3_inputs!GA12 ->  | GC26: =GC25/PC3_inputs!GB12 ->  | GD26: =GD25/PC3_inputs!GC12 ->  | GE26: =GE25/PC3_inputs!GD12 ->  | GF26: =GF25/PC3_inputs!GE12 ->  | GG26: =GG25/PC3_inputs!GF12 ->  | GH26: =GH25/PC3_inputs!GG12 ->  | GI26: =GI25/PC3_inputs!GH12 ->  | GJ26: =GJ25/PC3_inputs!GI12 ->  | GK26: =GK25/PC3_inputs!GJ12 ->  | GL26: =GL25/PC3_inputs!GK12 ->  | GM26: =GM25/PC3_inputs!GL12 ->  | GN26: =GN25/PC3_inputs!GM12 ->  | GO26: =GO25/PC3_inputs!GN12 ->  | GP26: =GP25/PC3_inputs!GO12 ->  | GQ26: =GQ25/PC3_inputs!GP12 ->  | GR26: =GR25/PC3_inputs!GQ12 ->  | GS26: =GS25/PC3_inputs!GR12 ->  | GT26: =GT25/PC3_inputs!GS12 ->  | GU26: =GU25/PC3_inputs!GT12 ->  | GV26: =GV25/PC3_inputs!GU12 ->  | GW26: =GW25/PC3_inputs!GV12 ->  | GX26: =GX25/PC3_inputs!GW12 ->  | GY26: =GY25/PC3_inputs!GX12 ->  | GZ26: =GZ25/PC3_inputs!GY12 ->  | HA26: =HA25/PC3_inputs!GZ12 ->  | HB26: =HB25/PC3_inputs!HA12 ->  | HC26: =HC25/PC3_inputs!HB12 ->  | HD26: =HD25/PC3_inputs!HC12 ->  | HE26: =HE25/PC3_inputs!HD12 ->  | HF26: =HF25/PC3_inputs!HE12 ->  | HG26: =HG25/PC3_inputs!HF12 ->  | HH26: =HH25/PC3_inputs!HG12 ->  | HI26: =HI25/PC3_inputs!HH12 ->  | HJ26: =HJ25/PC3_inputs!HI12 ->  | HK26: =HK25/PC3_inputs!HJ12 ->  | HL26: =HL25/PC3_inputs!HK12 ->  | HM26: =HM25/PC3_inputs!HL12 ->  | HN26: =HN25/PC3_inputs!HM12 ->  | HO26: =HO25/PC3_inputs!HN12 ->  | HP26: =HP25/PC3_inputs!HO12 ->  | HQ26: =HQ25/PC3_inputs!HP12 ->  | HR26: =HR25/PC3_inputs!HQ12 ->  | HS26: =HS25/PC3_inputs!HR12 ->  | HT26: =HT25/PC3_inputs!HS12 ->  | HU26: =HU25/PC3_inputs!HT12 ->  | HV26: =HV25/PC3_inputs!HU12 ->  | HW26: =HW25/PC3_inputs!HV12 ->  | HX26: =HX25/PC3_inputs!HW12 ->  | HY26: =HY25/PC3_inputs!HX12 ->  | HZ26: =HZ25/PC3_inputs!HY12 ->  | IA26: =IA25/PC3_inputs!HZ12 ->  | IB26: =IB25/PC3_inputs!IA12 ->  | IC26: =IC25/PC3_inputs!IB12 ->  | ID26: =ID25/PC3_inputs!IC12 ->  | IE26: =IE25/PC3_inputs!ID12 ->  | IF26: =IF25/PC3_inputs!IE12 ->  | IG26: =IG25/PC3_inputs!IF12 ->  | IH26: =IH25/PC3_inputs!IG12 ->  | II26: =II25/PC3_inputs!IH12 ->  | IJ26: =IJ25/PC3_inputs!II12 ->  | IK26: =IK25/PC3_inputs!IJ12 ->  | IL26: =IL25/PC3_inputs!IK12 -> 
H28: 37815649
B29: DISTRIBUTION ALLOWED REVENUE AND PRICES - CAPACITY | H29: =H25-H28 -> 0
B32: Change from P0 to P1 | C32: ='Distribution 12 13'!H31 -> 0.06309660988 | D32: -0.05619781348 | E32: 0.0007977764012 | F32: 0.001873171846 | G32: 0.006110736094
B34: NPV revenue received less NPV revenue required | C34: =C39-C15 -> 0
B36: Average annual tariff, € per MWh / day | E36: =(PC2_inputs!$E$26*(1+$C$32)) -> 1358.037604 | F36: =(E36*(1+D$32)) -> 1281.71886 | G36: =(F36*(1+E$32)) -> 1282.741385 | H36: =(G36*(1+F$32)) -> 1285.14418 | I36: =(H36*(1+G$32)) -> 1292.997357
B37: Demand, MWh/day | E37: =PC3_inputs!D23 -> 114559.3817 | F37: =PC3_inputs!E23 -> 115228.359 | G37: =PC3_inputs!F23 -> 116165.9495 | H37: =PC3_inputs!G23 -> 117180.7406 | I37: =PC3_inputs!H23 -> 118266.0091
B38: Total annual revenue allowed, € | E38: =E36*E37 -> 155575948.1 | F38: 147690360.8 | G38: 149010871 | H38: 150439742.6 | I38: =I36*I37 -> 152917637.1
B39: NPV, € | C39: =SUM(E39:I39) -> 660920498.2 | E39: =E38/PC3_inputs!D12 -> 150831500.7 | F39: =F38/PC3_inputs!E12 -> 135345391.5 | G39: =G38/PC3_inputs!F12 -> 129805631.6 | H39: =H38/PC3_inputs!G12 -> 124572569.7 | I39: =I38/PC3_inputs!H12 -> 120365404.7 | J39: =J38/PC3_inputs!I12 ->  | K39: =K38/PC3_inputs!J12 ->  | L39: =L38/PC3_inputs!K12 ->  | M39: =M38/PC3_inputs!L12 ->  | N39: =N38/PC3_inputs!M12 ->  | O39: =O38/PC3_inputs!N12 ->  | P39: =P38/PC3_inputs!O12 ->  | Q39: =Q38/PC3_inputs!P12 ->  | R39: =R38/PC3_inputs!Q12 ->  | S39: =S38/PC3_inputs!R12 ->  | T39: =T38/PC3_inputs!S12 ->  | U39: =U38/PC3_inputs!T12 ->  | V39: =V38/PC3_inputs!U12 ->  | W39: =W38/PC3_inputs!V12 ->  | X39: =X38/PC3_inputs!W12 ->  | Y39: =Y38/PC3_inputs!X12 ->  | Z39: =Z38/PC3_inputs!Y12 ->  | AA39: =AA38/PC3_inputs!Z12 ->  | AB39: =AB38/PC3_inputs!AA12 ->  | AC39: =AC38/PC3_inputs!AB12 ->  | AD39: =AD38/PC3_inputs!AC12 ->  | AE39: =AE38/PC3_inputs!AD12 ->  | AF39: =AF38/PC3_inputs!AE12 ->  | AG39: =AG38/PC3_inputs!AF12 ->  | AH39: =AH38/PC3_inputs!AG12 ->  | AI39: =AI38/PC3_inputs!AH12 ->  | AJ39: =AJ38/PC3_inputs!AI12 ->  | AK39: =AK38/PC3_inputs!AJ12 ->  | AL39: =AL38/PC3_inputs!AK12 ->  | AM39: =AM38/PC3_inputs!AL12 ->  | AN39: =AN38/PC3_inputs!AM12 ->  | AO39: =AO38/PC3_inputs!AN12 ->  | AP39: =AP38/PC3_inputs!AO12 ->  | AQ39: =AQ38/PC3_inputs!AP12 ->  | AR39: =AR38/PC3_inputs!AQ12 ->  | AS39: =AS38/PC3_inputs!AR12 ->  | AT39: =AT38/PC3_inputs!AS12 ->  | AU39: =AU38/PC3_inputs!AT12 ->  | AV39: =AV38/PC3_inputs!AU12 ->  | AW39: =AW38/PC3_inputs!AV12 ->  | AX39: =AX38/PC3_inputs!AW12 ->  | AY39: =AY38/PC3_inputs!AX12 ->  | AZ39: =AZ38/PC3_inputs!AY12 ->  | BA39: =BA38/PC3_inputs!AZ12 ->  | BB39: =BB38/PC3_inputs!BA12 ->  | BC39: =BC38/PC3_inputs!BB12 ->  | BD39: =BD38/PC3_inputs!BC12 ->  | BE39: =BE38/PC3_inputs!BD12 ->  | BF39: =BF38/PC3_inputs!BE12 ->  | BG39: =BG38/PC3_inputs!BF12 ->  | BH39: =BH38/PC3_inputs!BG12 ->  | BI39: =BI38/PC3_inputs!BH12 ->  | BJ39: =BJ38/PC3_inputs!BI12 ->  | BK39: =BK38/PC3_inputs!BJ12 ->  | BL39: =BL38/PC3_inputs!BK12 ->  | BM39: =BM38/PC3_inputs!BL12 ->  | BN39: =BN38/PC3_inputs!BM12 ->  | BO39: =BO38/PC3_inputs!BN12 ->  | BP39: =BP38/PC3_inputs!BO12 ->  | BQ39: =BQ38/PC3_inputs!BP12 ->  | BR39: =BR38/PC3_inputs!BQ12 ->  | BS39: =BS38/PC3_inputs!BR12 ->  | BT39: =BT38/PC3_inputs!BS12 ->  | BU39: =BU38/PC3_inputs!BT12 ->  | BV39: =BV38/PC3_inputs!BU12 ->  | BW39: =BW38/PC3_inputs!BV12 ->  | BX39: =BX38/PC3_inputs!BW12 ->  | BY39: =BY38/PC3_inputs!BX12 ->  | BZ39: =BZ38/PC3_inputs!BY12 ->  | CA39: =CA38/PC3_inputs!BZ12 ->  | CB39: =CB38/PC3_inputs!CA12 ->  | CC39: =CC38/PC3_inputs!CB12 ->  | CD39: =CD38/PC3_inputs!CC12 ->  | CE39: =CE38/PC3_inputs!CD12 ->  | CF39: =CF38/PC3_inputs!CE12 ->  | CG39: =CG38/PC3_inputs!CF12 ->  | CH39: =CH38/PC3_inputs!CG12 ->  | CI39: =CI38/PC3_inputs!CH12 ->  | CJ39: =CJ38/PC3_inputs!CI12 ->  | CK39: =CK38/PC3_inputs!CJ12 ->  | CL39: =CL38/PC3_inputs!CK12 ->  | CM39: =CM38/PC3_inputs!CL12 ->  | CN39: =CN38/PC3_inputs!CM12 ->  | CO39: =CO38/PC3_inputs!CN12 ->  | CP39: =CP38/PC3_inputs!CO12 ->  | CQ39: =CQ38/PC3_inputs!CP12 ->  | CR39: =CR38/PC3_inputs!CQ12 ->  | CS39: =CS38/PC3_inputs!CR12 ->  | CT39: =CT38/PC3_inputs!CS12 ->  | CU39: =CU38/PC3_inputs!CT12 ->  | CV39: =CV38/PC3_inputs!CU12 ->  | CW39: =CW38/PC3_inputs!CV12 ->  | CX39: =CX38/PC3_inputs!CW12 ->  | CY39: =CY38/PC3_inputs!CX12 ->  | CZ39: =CZ38/PC3_inputs!CY12 ->  | DA39: =DA38/PC3_inputs!CZ12 ->  | DB39: =DB38/PC3_inputs!DA12 ->  | DC39: =DC38/PC3_inputs!DB12 ->  | DD39: =DD38/PC3_inputs!DC12 ->  | DE39: =DE38/PC3_inputs!DD12 ->  | DF39: =DF38/PC3_inputs!DE12 ->  | DG39: =DG38/PC3_inputs!DF12 ->  | DH39: =DH38/PC3_inputs!DG12 ->  | DI39: =DI38/PC3_inputs!DH12 ->  | DJ39: =DJ38/PC3_inputs!DI12 ->  | DK39: =DK38/PC3_inputs!DJ12 ->  | DL39: =DL38/PC3_inputs!DK12 ->  | DM39: =DM38/PC3_inputs!DL12 ->  | DN39: =DN38/PC3_inputs!DM12 ->  | DO39: =DO38/PC3_inputs!DN12 ->  | DP39: =DP38/PC3_inputs!DO12 ->  | DQ39: =DQ38/PC3_inputs!DP12 ->  | DR39: =DR38/PC3_inputs!DQ12 ->  | DS39: =DS38/PC3_inputs!DR12 ->  | DT39: =DT38/PC3_inputs!DS12 ->  | DU39: =DU38/PC3_inputs!DT12 ->  | DV39: =DV38/PC3_inputs!DU12 ->  | DW39: =DW38/PC3_inputs!DV12 ->  | DX39: =DX38/PC3_inputs!DW12 ->  | DY39: =DY38/PC3_inputs!DX12 ->  | DZ39: =DZ38/PC3_inputs!DY12 ->  | EA39: =EA38/PC3_inputs!DZ12 ->  | EB39: =EB38/PC3_inputs!EA12 ->  | EC39: =EC38/PC3_inputs!EB12 ->  | ED39: =ED38/PC3_inputs!EC12 ->  | EE39: =EE38/PC3_inputs!ED12 ->  | EF39: =EF38/PC3_inputs!EE12 ->  | EG39: =EG38/PC3_inputs!EF12 ->  | EH39: =EH38/PC3_inputs!EG12 ->  | EI39: =EI38/PC3_inputs!EH12 ->  | EJ39: =EJ38/PC3_inputs!EI12 ->  | EK39: =EK38/PC3_inputs!EJ12 ->  | EL39: =EL38/PC3_inputs!EK12 ->  | EM39: =EM38/PC3_inputs!EL12 ->  | EN39: =EN38/PC3_inputs!EM12 ->  | EO39: =EO38/PC3_inputs!EN12 ->  | EP39: =EP38/PC3_inputs!EO12 ->  | EQ39: =EQ38/PC3_inputs!EP12 ->  | ER39: =ER38/PC3_inputs!EQ12 ->  | ES39: =ES38/PC3_inputs!ER12 ->  | ET39: =ET38/PC3_inputs!ES12 ->  | EU39: =EU38/PC3_inputs!ET12 ->  | EV39: =EV38/PC3_inputs!EU12 ->  | EW39: =EW38/PC3_inputs!EV12 ->  | EX39: =EX38/PC3_inputs!EW12 ->  | EY39: =EY38/PC3_inputs!EX12 ->  | EZ39: =EZ38/PC3_inputs!EY12 ->  | FA39: =FA38/PC3_inputs!EZ12 ->  | FB39: =FB38/PC3_inputs!FA12 ->  | FC39: =FC38/PC3_inputs!FB12 ->  | FD39: =FD38/PC3_inputs!FC12 ->  | FE39: =FE38/PC3_inputs!FD12 ->  | FF39: =FF38/PC3_inputs!FE12 ->  | FG39: =FG38/PC3_inputs!FF12 ->  | FH39: =FH38/PC3_inputs!FG12 ->  | FI39: =FI38/PC3_inputs!FH12 ->  | FJ39: =FJ38/PC3_inputs!FI12 ->  | FK39: =FK38/PC3_inputs!FJ12 ->  | FL39: =FL38/PC3_inputs!FK12 ->  | FM39: =FM38/PC3_inputs!FL12 ->  | FN39: =FN38/PC3_inputs!FM12 ->  | FO39: =FO38/PC3_inputs!FN12 ->  | FP39: =FP38/PC3_inputs!FO12 ->  | FQ39: =FQ38/PC3_inputs!FP12 ->  | FR39: =FR38/PC3_inputs!FQ12 ->  | FS39: =FS38/PC3_inputs!FR12 ->  | FT39: =FT38/PC3_inputs!FS12 ->  | FU39: =FU38/PC3_inputs!FT12 ->  | FV39: =FV38/PC3_inputs!FU12 ->  | FW39: =FW38/PC3_inputs!FV12 ->  | FX39: =FX38/PC3_inputs!FW12 ->  | FY39: =FY38/PC3_inputs!FX12 ->  | FZ39: =FZ38/PC3_inputs!FY12 ->  | GA39: =GA38/PC3_inputs!FZ12 ->  | GB39: =GB38/PC3_inputs!GA12 ->  | GC39: =GC38/PC3_inputs!GB12 ->  | GD39: =GD38/PC3_inputs!GC12 ->  | GE39: =GE38/PC3_inputs!GD12 ->  | GF39: =GF38/PC3_inputs!GE12 ->  | GG39: =GG38/PC3_inputs!GF12 ->  | GH39: =GH38/PC3_inputs!GG12 ->  | GI39: =GI38/PC3_inputs!GH12 ->  | GJ39: =GJ38/PC3_inputs!GI12 ->  | GK39: =GK38/PC3_inputs!GJ12 ->  | GL39: =GL38/PC3_inputs!GK12 ->  | GM39: =GM38/PC3_inputs!GL12 ->  | GN39: =GN38/PC3_inputs!GM12 ->  | GO39: =GO38/PC3_inputs!GN12 ->  | GP39: =GP38/PC3_inputs!GO12 ->  | GQ39: =GQ38/PC3_inputs!GP12 ->  | GR39: =GR38/PC3_inputs!GQ12 ->  | GS39: =GS38/PC3_inputs!GR12 ->  | GT39: =GT38/PC3_inputs!GS12 ->  | GU39: =GU38/PC3_inputs!GT12 ->  | GV39: =GV38/PC3_inputs!GU12 ->  | GW39: =GW38/PC3_inputs!GV12 ->  | GX39: =GX38/PC3_inputs!GW12 ->  | GY39: =GY38/PC3_inputs!GX12 ->  | GZ39: =GZ38/PC3_inputs!GY12 ->  | HA39: =HA38/PC3_inputs!GZ12 ->  | HB39: =HB38/PC3_inputs!HA12 ->  | HC39: =HC38/PC3_inputs!HB12 ->  | HD39: =HD38/PC3_inputs!HC12 ->  | HE39: =HE38/PC3_inputs!HD12 ->  | HF39: =HF38/PC3_inputs!HE12 ->  | HG39: =HG38/PC3_inputs!HF12 ->  | HH39: =HH38/PC3_inputs!HG12 ->  | HI39: =HI38/PC3_inputs!HH12 ->  | HJ39: =HJ38/PC3_inputs!HI12 ->  | HK39: =HK38/PC3_inputs!HJ12 ->  | HL39: =HL38/PC3_inputs!HK12 ->  | HM39: =HM38/PC3_inputs!HL12 ->  | HN39: =HN38/PC3_inputs!HM12 ->  | HO39: =HO38/PC3_inputs!HN12 ->  | HP39: =HP38/PC3_inputs!HO12 ->  | HQ39: =HQ38/PC3_inputs!HP12 ->  | HR39: =HR38/PC3_inputs!HQ12 ->  | HS39: =HS38/PC3_inputs!HR12 ->  | HT39: =HT38/PC3_inputs!HS12 ->  | HU39: =HU38/PC3_inputs!HT12 ->  | HV39: =HV38/PC3_inputs!HU12 ->  | HW39: =HW38/PC3_inputs!HV12 ->  | HX39: =HX38/PC3_inputs!HW12 ->  | HY39: =HY38/PC3_inputs!HX12 ->  | HZ39: =HZ38/PC3_inputs!HY12 ->  | IA39: =IA38/PC3_inputs!HZ12 ->  | IB39: =IB38/PC3_inputs!IA12 ->  | IC39: =IC38/PC3_inputs!IB12 ->  | ID39: =ID38/PC3_inputs!IC12 ->  | IE39: =IE38/PC3_inputs!ID12 ->  | IF39: =IF38/PC3_inputs!IE12 ->  | IG39: =IG38/PC3_inputs!IF12 ->  | IH39: =IH38/PC3_inputs!IG12 ->  | II39: =II38/PC3_inputs!IH12 ->  | IJ39: =IJ38/PC3_inputs!II12 ->  | IK39: =IK38/PC3_inputs!IJ12 ->  | IL39: =IL38/PC3_inputs!IK12 -> 

Sheet Outputs2
C5: 2012/13 | D5: 2013/14 | E5: 2014/15 | F5: 2015/16 | G5: 2016/17 | H5: Total
B6: Opex | C6: =PC3_inputs!D99 -> 85.09597519 | D6: =PC3_inputs!E99 -> 81.1843861 | E6: =PC3_inputs!F99 -> 74.99525463 | F6: =PC3_inputs!G99 -> 75.89272982 | G6: =PC3_inputs!H99 -> 77.800519 | H6: =SUM(C6:G6) -> 394.9688647
B10: Annual Revenue | C10: =(Outputs1!E25+Outputs1!E38)/Outputs1!$C$12 -> 193.3621176 | D10: =(Outputs1!F25+Outputs1!F38)/Outputs1!$C$12 -> 185.184701 | E10: =(Outputs1!G25+Outputs1!G38)/Outputs1!$C$12 -> 186.7312195 | F10: =(Outputs1!H25+Outputs1!H38)/Outputs1!$C$12 -> 188.2553916 | G10: =(Outputs1!I25+Outputs1!I38)/Outputs1!$C$12 -> 191.1119463 | H10: =SUM(C10:G10) -> 944.645376

Sheet Distribution 16 17
E1: Distribution
F3: Current Forecast
A6: Revenue | C6: Allowed revenue for period as per decision | D6: 10/11 monies | E6: BICt+1 | F6: =Outputs2!G10 -> 191.1119463
C7: Inflation | E7: HICPDj | F7: =Inflation!E40 -> 0.03523941247 | H7: Rates @50% | I7: -1.229526
C8: Inflated allowed Revenue | F8: =F6*(F7+1) -> 197.846619 | H8: Safety @ 100% | I8: 1.810081
H9: CER Levy | I9: -0.497059
C10: Connection differences costs | F10: 0 | H10: ISO | I10: -0.000414
C11: Forecast less allowable pass through (50%) | F11: -1.229526 | H11: Shrinkage | I11: -1.081469
C12: Forecast less allowable pass through (100%) | F12: =SUM(I8:I11) -> 0.231139
C13: Correction factor Kt-1 | E13: Kt-1 | F13: -5.60158
C24: Allowable Revenue | F24: =SUM(F8:F13) -> 191.246652
A27: Tariff | C27: Demand
C28: Capacity | D28: GWh | F28: 112.15
C29: Commodity | D29: GWh | F29: 15372
A32: Volume Range (MWh) | C32: Capacity Charge( c/peak day kWh)
A33: > | B33: < or= | C33: A | D33: B | E33: Total
A34: 0 | B34: 73 | C34: 154.512 | E34: 154.512
A35: 73 | B35: 14653 | C35: 136.7805 | D35: 3.9764 | E35: A - B *Ln(PDV[MWh])
A36: 14653 | B36: 57500 | C36: 341.7271 | D36: 49.0381 | E36: A - B *Ln(PDV[MWh])
A37: 57500 | C37: 42.141 | E37: 42.141
A40: Volume Range (MWh) | C40: Commodity Charge( c/ kWh)
A41: > | B41: < or= | C41: A | D41: B | E41: Total
A42: 0 | B42: 73 | C42: 0.337 | E42: 0.337
A43: 73 | B43: 14653 | C43: 0.2692 | D43: 0.0262 | E43: A - B *Ln(PDV[MWh])
A44: 14653 | B44: 57500 | C44: 0.3137 | D44: 0.0414 | E44: A - B *Ln(PDV[MWh])
A45: 57500 | C45: 0.0613 | E45: 0.0613
C48: 15/16 charge in 15/16 monies | D48: 15/1 charge in 16/17 monies | E48: 16/17 charge in 16/17 monies | F48: 15/16 charge in 15/16 monies vs. 16/17 charge ( nominal) | G48: 15/16 charge in 16/17 monies vs. 16/17 charge ( Real)
A49: Capacity | C49: 153.6833 | D49: 155.6812 | E49: 154.512 | F49: 0.005 | G49: -0.008
A51: Commodity | C51: 0.3412 | D51: 0.3456 | E51: 0.337 | F51: -0.012 | G51: -0.025
F52: % Change in Weighted Tariff
F54: 0.002 | G54: -0.011

Sheet Distribution 15 16
E1: Distribution
F3: Current Forecast
A6: Revenue | C6: Allowed revenue for period as per decision | D6: 10/11 monies | E6: BICt+1 | F6: =Outputs2!F10 -> 188.2553916
C7: Inflation | E7: HICPDj | F7: =Inflation!E30 -> 0.03788991291
C8: Inflated allowed Revenue | F8: =F6*(F7+1) -> 195.388372
C10: Connection differences costs | F10: 0
C11: Forecast less allowable pass through (50%) | F11: 0.3497
C12: Forecast less allowable pass through (100%) | F12: 1.6255
C13: Correction factor Kt-1 | E13: Kt-1 | F13: -0.9757
C24: Allowable Revenue | F24: =SUM(F8:F13) -> 196.387872
A27: Tariff | C27: Demand
C28: Capacity | D28: GWh | F28: 113584
C29: Commodity | D29: GWh | F29: 15344.28
A32: Volume Range (MWh) | C32: Capacity Charge( c/peak day kWh)
A33: > | B33: < or= | C33: A | D33: B | E33: Total
A34: 0 | B34: 73 | C34: 153.6833 | E34: 153.6833
A35: 73 | B35: 14653 | C35: 136.0469 | D35: 3.9551 | E35: A - B *Ln(PDV[MWh])
A36: 14653 | B36: 57500 | C36: 339.8943 | D36: 48.775 | E36: A - B *Ln(PDV[MWh])
A37: 57500 | C37: 41.9149 | E37: 41.9149
A40: Volume Range (MWh) | C40: Commodity Charge( c/ kWh)
A41: > | B41: < or= | C41: A | D41: B | E41: Total
A42: 0 | B42: 73 | C42: 0.3412 | E42: 0.3412
A43: 73 | B43: 14653 | C43: 0.2725 | D43: 0.0265 | E43: A - B *Ln(PDV[MWh])
A44: 14653 | B44: 57500 | C44: 0.3176 | D44: 0.0419 | E44: A - B *Ln(PDV[MWh])
A45: 57500 | C45: 0.0621 | E45: 0.0621

Sheet Distribution 14 15
E1: Distribution
F3: Current Forecast
A6: Revenue | C6: Allowed revenue for period as per decision | D6: 10/11 monies | E6: BICt+1 | F6: =Outputs2!E10 -> 186.7312195
C7: Inflation | E7: HICPDj | F7: =Inflation!E21 -> 0.02812274681
C8: Inflated allowed Revenue | F8: =F6*(1+F7) -> 191.9826143
C10: Connection differences costs | F10: 0
C11: Forecast less allowable pass through (50%) | F11: 0.3646336821
C12: Forecast less allowable pass through (100%) | F12: 1.071528114
C13: Correction factor Kt-1 | E13: Kt-1 | F13: -1.875578565
C15: Spare K factor
C16: Spare K factor
C24: Allowable Revenue | F24: =SUM(F8:F13) -> 191.5431975
A27: Tariff | C27: Demand
C28: Capacity | D28: GWh | F28: 116.58
C29: Commodity | D29: GWh | F29: 14781.18
C34: Volume Range (MWh) | E34: Capacity Charge (c\peak day kWh)
C35: > | D35: < or= | E35: A | F35: B | G35: Total
C36: 0 | D36: 73 | E36: 147.1558 | G36: 147.1558
C37: 73 | D37: 14653 | E37: 130.2685 | F37: 3.7871 | G37: A-B*Ln(PDV[MWh])
C38: 14653 | D38: 57500 | E38: 325.4577 | F38: 46.7034 | G38: A-B*Ln(PDV[MWh])
C39: 57500 | E39: 40.1347 | G39: 40.1347
C42: Volume Range (MWh) | E42: Commodity Charge( c/ kWh)
C43: > | D43: < or= | E43: A | F43: B | G43: Total
C44: 0 | D44: 73 | E44: 0.3451 | G44: 0.3451
C45: 73 | D45: 14653 | E45: 0.2757 | F45: 0.0268 | G45: A-B*Ln(PDV[MWh])
C46: 14653 | D46: 57500 | E46: 0.3212 | F46: 0.0424 | G46: A-B*Ln(PDV[MWh])
C47: 57500 | E47: 0.0628 | G47: 0.0628

Sheet Distribution 13 14
E1: Distribution
F3: Current Forecast
A6: Revenue | C6: Allowed revenue for period as per decision | D6: 10/11 monies | E6: BICt+1 | F6: =Outputs2!D10 -> 185.184701
C7: Inflation | E7: HICPDj | F7: =Inflation!E13 -> 0.031216396
C8: Inflated allowed Revenue | F8: =F6*(1+F7) -> 190.9654999
C10: Connection differences costs | F10: 0
C11: forecast less allowable pass through (50%) | F11: 0.57
C12: forecast less allowable pass through (100%) | F12: 2.35
C13: Correction factor Kt-1 | E13: Kt-1 | F13: 4.59
C15: Spare K factor
C16: Spare K factor
C24: Allowable Revenue | F24: =SUM(F8:F13) -> 198.4754999
A27: Tariff | C27: Demand
C28: Capacity | D28: GWh | F28: 115.2
C29: Commodity | D29: GWh | F29: 14689
D32: 2013-14 Distribution Tariff
D35: Volume Range (MWh) | F35: Capacity Charge (c/pk day kWh)
D36: > | E36: < or = | F36: A | G36: B | H36: Total
D37: 0 | E37: 73 | F37: 154.8157 | H37: 154.8157
D38: 73 | E38: 14653 | F38: 137.0493 | G38: 3.9842 | H38: A - B *Ln(PDV[MWh])
D39: 14653 | E39: 57500 | F39: 342.3986 | G39: 49.1344 | H39: A - B *Ln(PDV[MWh])
D40: 57500 | F40: 42.2238 | H40: 42.98423688
D42: Volume Range (MWh) | F42: Commodity Charge (c/kWh)
D43: > | E43: < or = | F43: A | G43: B | H43: Total
D44: 0 | E44: 73 | F44: 0.3578 | H44: 0.3578
D45: 73 | E45: 14653 | F45: 0.2858 | G45: 0.0278 | H45: A - B *Ln(PDV[MWh])
D46: 14653 | E46: 57500 | F46: 0.333 | G46: 0.0439 | H46: A - B *Ln(PDV[MWh])
D47: 57500 | F47: 0.0651 | H47: 0.0625672417
C49: The table below shows the first category tariff changes from 2012/13 to 2013/14 in both real and nominal
C50: terms. The percentage changes are the same for the other three tariff categories
C51: Previous tariffs | G51: Change Nominal
C52: 2012/13
C53: Capacity | D53: €/MWh | F53: 157.6038 | G53: =H$37/F53-1 -> -0.0176905633
C54: Commodity | D54: €/MWh | F54: 0.3439 | G54: =H$44/F54-1 -> 0.04041872637
C55: Overall Change (80% capacity 20% commodity) | G55: =G53*0.8+G54*0.2 -> -0.006068705364

Sheet Distribution 12 13
E1: Distribution
F3: Current Forecast | I3: Original forecast
A6: Revenue | C6: Allowed revenue for period as per decision | D6: 10/11 monies | E6: BICt+1 | F6: =194278839/1000000 -> 194.278839 | I6: =F6 -> 194.278839
C7: Inflation | E7: HICPDj | F7: =Inflation!E6 -> 0.035286 | I7: 0
C8: Inflated allowed Revenue | F8: =F6*(1+F7) -> 201.1341621 | I8: =I6*(1+I7) -> 194.278839
C10: Connection differences costs | F10: 0
C11: forecast less allowable pass through (50%) | F11: 0 | I11: 0
C12: forecast less allowable pass through (100%) | F12: 0.41 | I12: 0
C13: Correction factor Kt-1 | E13: Kt-1 | F13: -1.96 | I13: 0
C15: Spare K factor
C16: Spare K factor
C18: PC2 under recovery | F18: 1.51
C19: 2011 siteworks under recovery | F19: 0.02
C20: Smart metering Design phase | F20: 4.16
C22: forecast other revenues | F22: 0 | I22: 0
C24: Allowable Revenue | F24: =SUM(F8:F23) -> 205.2741621 | G24: =F24/(1+F$7) -> 198.277734 | I24: =SUM(I8:I23) -> 194.278839
A27: Tariff | C27: Demand
C28: Capacity | D28: GWh | F28: =I28 -> 116.8025 | G28: =(G24*80%/F28)*1000 -> 1358.037604 | H28: =PC2_inputs!E26 -> 1277.435739 | I28: 116.8025
C29: Commodity | D29: GWh | F29: =I29 -> 15183.5 | G29: =(G24*20%/F29)*1000 -> 2.611752679 | H29: =PC2_inputs!E25 -> 2.550222749 | I29: 15183.5
H31: =G28/H28-1 -> 0.06309660988
H32: =G29/H29-1 -> 0.0241272767
D33: 2012-13 Distribution Tariff
D36: Volume Range (MWh) | F36: Capacity Charge (c/pk day kWh)
D37: > | E37: < or = | F37: A | G37: B | H37: Total
D38: 0 | E38: 73 | F38: 157.6038179 | H38: 157.6038179
D39: 73 | E39: 14653 | F39: 139.5175437 | G39: 4.055957153 | H39: A - B *Ln(PDV[MWh])
D40: 14653 | E40: 57500 | F40: 348.564984 | G40: 50.01933227 | H40: A - B *Ln(PDV[MWh])
D41: 57500 | F41: 42.98423688 | H41: 42.98423688
D43: Volume Range (MWh) | F43: Commodity Charge (c/kWh)
D44: > | E44: < or = | F44: A | G44: B | H44: Total
D45: 0 | E45: 73 | F45: 0.3439263224 | H45: 0.3439263224
D46: 73 | E46: 14653 | F46: 0.2746508404 | G46: 0.02670395677 | H46: A - B *Ln(PDV[MWh])
D47: 14653 | E47: 57500 | F47: 0.3200604673 | G47: 0.04218451141 | H47: A - B *Ln(PDV[MWh])
D48: 57500 | F48: 0.0625672417 | H48: 0.0625672417
C50: The table below shows the first category tariff changes from 2010/11 to 2011/12 in both real and nominal
C51: terms. The percentage changes are the same for the other three tariff categories
C52: Previous tariffs | G52: Change Nominal
C53: 2011/12
C54: Capacity | D54: €/MWh | F54: 141.7889 | G54: =H$38/F54-1 -> 0.1115384766
C55: Commodity | D55: €/MWh | F55: 0.3192 | G55: =H$45/F55-1 -> 0.07746341611
C56: Overall Change (80% capacity 20% commodity)
C58: 2010/11
C59: Capacity | D59: €/MWh | F59: 140.3934 | G59: =H$38/F59-1 -> 0.1225870867
C60: Commodity | D60: €/MWh | F60: 0.3064 | G60: =H$45/F60-1 -> 0.1224749426
C61: Overall Change (80% capacity 20% commodity) | G61: =G59*0.8+G60*0.2 -> 0.1225646579

Sheet Inflation
C2: from 10/11 monies to | E2: 2013-03-01
C4: HICP | D4: 11/12 | E4: 0.022
C5: HICP | D5: Half 12/13 | E5: 0.013
E6: =(1+E4)*(1+E5)-1 -> 0.035286
C8: from 10/11 monies to | E8: 2014-03-01
C10: HICP | D10: 11/12 | E10: 0.022
C11: HICP | D11: 12/13 | E11: 0.006
C12: HICP | D12: Half 13/14 | E12: 0.003
E13: =(1+E10)*(1+E11)*(1+E12)-1 -> 0.031216396
C15: from 10/11 monies to | E15: 2015-03-01
C17: HICP | D17: 11/12 | E17: 0.022
C18: HICP | D18: 12/13 | E18: 0.006
C19: HICP | D19: 13/14 | E19: 0.003
C20: HICP | D20: Half 14/15 | E20: -0.003
E21: =(1+E17)*(1+E18)*(1+E19)*(1+E20)-1 -> 0.02812274681
C23: from 10/11 monies to | E23: 2016-03-01
C25: HICP | D25: 11/12 | E25: 0.022
C26: HICP | D26: 12/13 | E26: 0.006
C27: HICP | D27: 13/14 | E27: 0.003
C28: HICP | D28: 14/15 | E28: -0.003
C29: HICP | D29: Half 15/16 | E29: 0.0095
E30: =(1+E25)*(1+E26)*(1+E27)*(1+E28)*(1+E29)-1 -> 0.03788991291
C32: from 10/11 monies to | E32: 2017-03-01
C34: HICP | D34: 11/12 | E34: 0.022
C35: HICP | D35: 12/13 | E35: 0.006
C36: HICP | D36: 13/14 | E36: 0.003
C37: HICP | D37: 14/15 | E37: -0.003
C38: HICP | D38: 15/16 | E38: -0.006
C39: HICP | D39: Half 16/17 | E39: 0.013
E40: =(1+E34)*(1+E35)*(1+E36)*(1+E37)*(1+E38)*(1+E39)-1 -> 0.03523941247
